Workbook

Sheet INICIO (hidden)

Sheet Instructivo (hidden)
B2: Matriz Mapa de Riesgos
B4: Teniendo en cuenta que con la expedición del Decreto 1499 de 2017 “Por medio del cual se modifica el Decreto 1083 de 2015, Decreto Único Reglamentario del Sector Función Pública, en lo relacionado con el Sistema de Gestión establecido en el artículo 133 de la Ley 1753 de 2015”, se crea un solo Sistema de Gestión y se alinea con el Sistema de Control Interno, hoy todas las entidades públicas requieren actualizar y/o implementar el Modelo Integrado de Planeación y Gestión MIPG, modelo que incorpora el Modelo Estándar de Control Interno MECI a través de la 7a dimensión del mismo. En este marco general, el proceso de administración del riesgo es un esfuerzo conjunto entre la Alta Dirección y los servidores en todos sus niveles, ejercicio que inicia con la formulación de la política de Administración del Riesgo, la cual incluye los niveles de responsabilidad frente al seguimiento y evaluación, aspectos que deberán definirse acorde con el Esquema de Líneas de Defensa vinculado a la Dimensión 7. Teniendo en cuenta lo anterior y dada la necesidad de las entidades frente a la estructuración de los mapas de riesgos, como herramienta fundamental frente a la gestión del riesgo, el presente formato desarrolla un esquema completo acorde con los contenidos metodológicos de la Guía para la Administración del Riesgo y el diseño de controles V5. El formato cuenta con celdas parametrizadas y permite contar con los respectivos mapas de calor para riesgo inherente y riesgo residual.
B6: Orientaciones Generales
B7: Antes de iniciar con el diligenciamiento de la información en la matriz, se requiere haber avanzado en el análisis del proceso, su objetivo, alcance, actividades clave, considere los lineamientos establecidos en el Paso 2: identificación del riesgo, donde se explica ampliamente las bases para adelanter este análisis. Así mismo, considere en el Paso 3: valoración del riesgo los lineamientos para definir el No. de veces que se hace la actividad con la cual se relaciona el riesgo y su impacto en términos económicos o reputacionales. En este mismo paso se analizan los controles que deben responder a los atributos de eficiencia e informativos. NOTA: Si lo considera pertinente, es posible agregar hojas de trabajo adicionales al presente formato que permitan incluir la traza de estos análisis.
B9: El archivo contiene las siguientes hojas: - Hoja 1 Instructivo - Hoja 2 Mapa Riesgos: Encontrará la totalidad de la estructura para la identificación y valoración de los riesgos por proceso, programa o proyecto, acorde con el nivel de desagregación que la entidad considere necesaria.
C12: Columna | E12: Descripción - Lineamientos para el diligenciamiento
C13: Proceso | E13: Diligencie el nombre del proceso al cual se le identificarán y valorarán los riesgos.
C14: Objetivo | E14: Diligencie el objetivo del proceso.
C15: Alcance | E15: Diligencie el alcance del proceso.
C16: Referencia | E16: Permite definir unl consecutivo de riesgos. Una entidad puede ir en el riesgo 150, pero tener 70 riesgos, lo que permite llevar una traza de los riesgos. Esta información la debe administrar la oficina asesora de planeación o gerencia de riesgos. Cuando un el riesgo salga del mapa no existirá otro riesgo con el mismo número.
C17: Impacto | E17: Analice las consecuencias que puede ocasionar a la organización la materialización del riesgo, redacte de la forma más concreta posible.
C18: Causa Inmediata | E18: Circunstancias bajo las cuales se presenta el riesgo, es la situación más evidente frente al riesgo, redacte de la forma más concreta posible.
C19: Causa Raíz | E19: Causa principal o básica, corresponde a las razones por la cuales se puede presentar el riesgo, redacte de la forma más concreta posible.
C20: Descripción del Riesgo | E20: Consolida o resume los análisis sobre impacto + causa inmediata + causa raíz, permitiendo contar con una redacción clara y concreta del riesgo indentificado. Tenga en cuenta la estructura de alto nivel establecida en al guía, inicia con POSIBILIDAD DE + Impacto para la entidad (Qué) + Causa Inmediata (Cómo) + Causa Raíz (Por qué)
C21: Clasificación del Riesgo | E21: Utilice la lista de despligue que se encuentra parametrizada, le aparecerán las opciones: i)Daños Activos Fisicos, ii)Ejecucion y Administracion de procesos, iii)Fallas Tecnologicas, iv)Fraude Externo, v)Fraude Interno, vi)Relaciones Laborales, vii)Usuarios, productos y practicas organizacionales.
C22: Frecuencia con la cual se lleva a cabo la actividad | E22: Defina el # de veces que se ejecuta la actividad durante el año, (Recuerde la probabilidad e ocurrencia del riesgo se defien como el No. de veces que se pasa por el punto de riesgo en el periodo de 1 año). La matriz automáticamente hará el cálculo para el nivel de probabilidad inherente (Columnas H-I)
C23: Criterios de Impacto | E23: Utilice la lista de despligue que se encuentra parametrizada, le aparecerán las opciones de la tabla de Impacto en la tabla Impacto del presente documento. La matriz automáticamente hará el cálculo para el nivel de impacto inherente (Columnas K)
C24: Zona de Riesgo Inherente | E24: Teniendo en cuenta que ingresó la información de PROBABILIDAD e IMPACTO, la matriz automáticamente hará el cálculo para la zona de riesgo inherente (Columna O)
C25: Descripción del Control | E25: Recuerde que el control se define como la medida que permite reducir o mitigar un riesgo. Defina el control (es) que atacan la causa raíz del riesgo, considere la estructura explicada en la guía: Responsable de ejecutar el control + Acción + Complemento
C26: Afectación | E26: Esta casilla no se diligencia, depende de la selección en la columna S.
C27: ATRIBUTOS EFICIENCIA Tipo | E27: Utilice la lista de despligue que se encuentra parametrizada, le aparecerán las opciones: i)Preventivo, ii)Detectivo, iii)Correctivo.
C28: ATRIBUTOS EFICIENCIA Implementación | E28: Utilice la lista de despligue que se encuentra parametrizada, le aparecerán las opciones: i)Automático, ii)Manual.
C29: ATRIBUTOS EFICIENCIA Implementación | E29: Utilice la lista de despligue que se encuentra parametrizada, le aparecerán las opciones: i)Automático, ii)Manual.
C30: ATRIBUTOS EFICIENCIA Calificación | E30: La matriz automáticamente hará el cálculo para el control analizado (Columna T)
C31: ATRIBUTOS INFORMATIVOS Documentación | E31: Utilice la lista de despligue que se encuentra parametrizada, le aparecerán las opciones: i)Documentado, ii)Sin documentar.
C32: ATRIBUTOS INFORMATIVOS Frecuencia | E32: Utilice la lista de despligue que se encuentra parametrizada, le aparecerán las opciones: i)Continua, ii)Aleatoria.
C33: ATRIBUTOS INFORMATIVOS Evidencia | E33: Utilice la lista de despligue que se encuentra parametrizada, le aparecerán las opciones: i)Con Registro, ii) Sin Registro.
C34: Evaluación del Nivel de Riesgo - Nivel de Riesgo Residual | E34: La matriz automáticamente hará el cálculo, acorde con el control o controles definidos con sus atributos analizados, lo que permitirá establecer el nivel de riesgo inherente (Columnas Y- Z- AA -AB- AC-AD).
C35: Tratamiento | E35: Utilice la lista de despligue que se encuentra parametrizada, le aparecerán las opciones: i)Aceptar, ii)Evitar, iii)Reducir (compartir), iv)Reducir (mitigar).
C36: Plan de Acción Responsable, fecha implementación, fecha seguimiento, seguimiento. | E36: Esta casilla dependerá del tratamiento establecido, si es Aceptar no se requieren acciones adicionales, en caso de escoger Reducir (mitigar) se deben diligenciar las acciones que se adelantarán como complemento a los controles establecidos, no necesariamente son controles adicionales. Para Reducir (compartir), es viable diligenciar la acción que deriva de esta (ejemplo póliza seguros, terceración), indicando información relevante.
C37: Estado | E37: Utilice la lista de despligue que se encuentra parametrizada, le aparecerán las opciones: i)Finalizado, ii)En curso, la selección en este caso dependerá de las acciones del plan que se hayan establecido en cada caso.
B40: - Hoja 3 Mapa Riesgos de Corrupción: Encontrará la totalidad de la estructura para la identificación y valoración de los riesgos por proceso, programa o proyecto, acorde con el nivel de desagregación que la entidad considere necesaria.
B41: - Hoja 4 Matriz de Calor Inherente: En esta hoja, en la medida en que ese diligencia el Mapa Final, se verán reflejados los riesgos en su zona correspondiente. Esta hoja no se diligencia se genera de manera automática.
B42: - Hoja 5 Matriz de Calor Residual: En esta hoja, en la medida en que ese diligencia el Mapa Final, se verán reflejados los riesgos en su zona correspondiente. Esta hoja no se diligencia se genera de manera automática.
B43: - Hoja 6 Tabla de probabilidad: Tabla referente para todos los cálculos (no se diligencia)
B44: - Hoja 7 Tabla de Impacto: Tabla referente para todos los cálculos (no se diligencia)
B45: - Hoja 8 Tabla de Valoración de Controles: Tabla referente para todos los cálculos (no se diligencia)

Sheet Monitoreo_1er_trim
B5: Informe monitoreo desde la segunda línea de defensa a la gestión de riesgos realizada para el primer trimestre de 2025.
B7: A la fecha la matriz de riesgos identificada cuenta con 91 riesgos entre los cuales se identificaron de seguridad y privacidad, gestión, corrupción y fiscal, así:
B8: Tipo de Riesgo / Proceso | C8: Cantidad
B9: Fiscal | C9: =SUM(C10) -> 2
B10: ENERGÍA | C10: 2
B11: Gestión | C11: =SUM(C12:C29) -> 66
B12: ASUNTOS NUCLEARES | C12: 1
B13: CONTROL DISCIPLINARIO | C13: 2
B14: DIRECCIONAMIENTO ESTRATÉGICO | C14: 4
B15: ENERGÍA | C15: 7
B16: GESTIÓN CONTRACTUAL | C16: 1
B17: GESTIÓN DE COMUNICACIONES | C17: 2
B18: GESTIÓN DE RECURSOS FÍSICOS | C18: 4
B19: GESTIÓN DEL CONOCIMIENTO, LA INFORMACIÓN Y LA INNOVACIÓN | C19: 1
B20: GESTIÓN DEL RELACIONAMIENTO CON LOS GRUPOS DE VALOR | C20: 2
B21: GESTIÓN DOCUMENTAL | C21: 2
B22: GESTIÓN FINANCIERA | C22: 9
B23: GESTIÓN JURÍDICA | C23: 4
B24: GESTIÓN TALENTO HUMANO | C24: 1
B25: GESTIÓN TECNOLÓGICA | C25: 3
B26: HIDROCARBUROS | C26: 14
B27: MEJORAMIENTO | C27: 2
B28: MINERIA | C28: 5
B29: SOCIAMBIENTAL | C29: 2
B30: Seguridad y Privacidad | C30: =SUM(C31) -> 5
B31: GESTIÓN TECNOLÓGICA | C31: 5
B32: Corrupción - Fraude Interno | C32: =SUM(C33:C41) -> 18
B33: ENERGÍA | C33: 3
B34: GESTIÓN CONTRACTUAL | C34: 1
B35: GESTIÓN DE RECURSOS FÍSICOS | C35: 3
B36: GESTIÓN DOCUMENTAL | C36: 1
B37: GESTIÓN FINANCIERA | C37: 2
B38: GESTIÓN TALENTO HUMANO | C38: 1
B39: GESTIÓN TECNOLÓGICA | C39: 2
B40: HIDROCARBUROS | C40: 2
B41: MINERIA | C41: 3
B42: Total general | C42: =+C11+C9+C30+C32 -> 91
B44: La zona de riesgos final donde se encuentran los riesgos es la siguiente:
B46: Zona de Riesgo Final | C46: Cantidad de Riesgos
B47: Alto | C47: =SUM(C48:C51) -> 20
B48: Fiscal | C48: 1
B49: Gestión | C49: 14
B50: Seguridad y privacidad | C50: 2
B51: Corrupción | C51: 3
B52: Bajo | C52: =SUM(C53) -> 10
B53: Gestión | C53: 10
B54: Extremo | C54: =SUM(C55:C57) -> 35
B55: Gestión | C55: 19
B56: Corrupción | C56: 15
B57: Seguridad y privacidad | C57: 1
B58: Moderado | C58: =SUM(C59:C61) -> 26
B59: Fiscal | C59: 1
B60: Gestión | C60: 23
B61: Seguridad y privacidad | C61: 2
B62: Total general | C62: =+C47+C52+C54+C58 -> 91
B64: Se puede observar que ningún riesgo de corrupción se encuentra en zona baja o moderado; igualmente se evidencia que la zona de riesgo donde hay mayor riesgos identificada es la zona moderado.
B68: Recomendaciones:
A69: 1 | B69: Para este periodo de seguimiento se realizó un monitoreo desde la segunda línea de defensa, el cual se plasmó en cada una de las matrices de los procesos con el fin de lograr que el siguiente reporte tenga ya subsanada la observación.
A70: 2 | B70: Es importante precisar que 34 riesgos no obtuvieron retroalimentación a partir del seguimiento realizado toda vez que no se realizó reporte por parte de la primera línea de defensa
A71: 3 | B71: Se continúa con la observación a algunos procesos de verificar la evidencia reportada en razón a que para algunos casos no se pudo realizar verificación de la ejecución del control
A72: 4 | B72: Adicionalmente, se precisa que el reporte de ejecución del control debe obedecer a lo que se informó que se entregará de evidencia
B74: Procesos que no realizaron reporte para el periodo de seguimiento | C74: Cantidad
B75: Riesgo de Gestión | C75: =SUM(C76:C81) -> 22
B76: ENERGÍA | C76: 1
B77: GESTIÓN DE RECURSOS FÍSICOS | C77: 2
B78: GESTIÓN FINANCIERA | C78: 1
B79: GESTIÓN TECNOLÓGICA | C79: 3
B80: HIDROCARBUROS | C80: 13
B81: SOCIAMBIENTAL | C81: 2
B82: Riesgo de Corrupción | C82: =SUM(C83:C86) -> 7
B83: GESTIÓN FINANCIERA | C83: 1
B84: GESTIÓN TECNOLÓGICA | C84: 2
B85: HIDROCARBUROS | C85: 2
B86: MINERIA | C86: 2
B87: Riesgo de Seguridad y Privacidad | C87: =SUM(C88) -> 5
B88: GESTIÓN TECNOLÓGICA | C88: 5
B89: Total General | C89: =+C75+C82+C87 -> 34

Sheet Matriz_Riesgos_Gestión_Fiscal
C2: FORMATO PARA LA FORMULACIÓN Y TRATAMIENTOS DE RIESGOS
F3: E-ME-F-08
F4: 2024-12-26 | G4: V-4
A5: Proceso: | C5: TODOS LOS PROCESOS
A6: Identificación del riesgo | J6: Análisis del riesgo inherente | Q6: Evaluación del riesgo - Valoración de los controles | W6: Atributos | AC6: Evaluación del riesgo - Nivel del riesgo residual | AJ6: Plan de acción | AN6: Responsable de Tratamiento
A7: Referencia | B7: Proceso | C7: Tipo de Riesgo | D7: Descripción del Riesgo | E7: Impacto | F7: Causa o circunstancia Inmediata ¿Cómo? | G7: Causa Raíz ¿Por a que? | H7: Clasificación del Riesgo | I7: Frecuencia con la cual se realiza la actividad anual | J7: Probabilidad Inherente | K7: % | L7: Impacto | M7: Observación de criterio | N7: Impacto Inherente | O7: % | P7: Zona de Riesgo Inherente | Q7: No. Control | R7: Descripción del Control | S7: Cargo del responsable del control | T7: Acción que realiza | U7: Evidencia esperada del control | V7: Afectación | W7: Tipo | X7: Implementación | Y7: Calificación | Z7: Documentación | AA7: Frecuencia | AB7: Evidencia | AC7: Probabilidad Residual | AD7: Probabilidad Residual Final | AE7: % | AF7: Impacto Residual Final | AG7: % | AH7: Zona de Riesgo Final | AI7: Tratamiento | AJ7: Acción a realizar | AK7: Cargo del Responsable | AL7: Fecha de implementación | AM7: Fecha de seguimiento | AN7: Cargo del responsable | AO7: Área del Responsable | AP7: Jefe del Área del Responsable | AQ7: Fecha Implementación (Inicio) | AR7: Fecha de Implementación (Fin) | AS7: Reporte primer Trimestre | AT7: ¿se materializó? Si/No | AU7: Seguimiento segunda línea de defensa | AV7: Reporte segundo Trimestre | AW7: ¿se materializó? Si/No | AX7: Seguimiento segunda línea de defensa | AY7: Reporte tercer Trimestre | AZ7: ¿se materializó? Si/No | BA7: Seguimiento segunda línea de defensa | BB7: Reporte cuarto Trimestre | BC7: ¿se materializó? Si/No | BD7: Seguimiento segunda línea de defensa
A8: 1 | B8: DIRECCIONAMIENTO ESTRATÉGICO | C8: Gestión | D8: =IF(C8="Fiscal",_xlfn.CONCAT("Posibilidad de efectos dañosos sobre bienes públicos "," por o para ",F8," debido a ",G8),IF(C8="Gestión",_xlfn.CONCAT("Posibilidad de afectacion ",E8," por ",F8," debido a ",G8),"")) -> Posibilidad de afectacion reputacional por Brindar inadecuada información a la ciudadanía sobre el cumplimiento de las metas y toma de decisiones imprecisas por parte de la alta dirección en temas estratégicos debido a Ineficiente seguimiento y evaluación por parte de los líderes/ ejecutores de la programación y seguimiento de las prioridades estratégicas y los compromisos adquiridos | E8: reputacional | F8: Brindar inadecuada información a la ciudadanía sobre el cumplimiento de las metas y toma de decisiones imprecisas por parte de la alta dirección en temas estratégicos | G8: Ineficiente seguimiento y evaluación por parte de los líderes/ ejecutores de la programación y seguimiento de las prioridades estratégicas y los compromisos adquiridos | H8: Ejecucion y Administracion de procesos | I8: 24 | J8: =IF(I8<=0,"",IF(I8<=2,"Muy Baja",IF(I8<=24,"Baja",IF(I8<=500,"Media",IF(I8<=5000,"Alta","Muy Alta"))))) -> Baja | K8: =IF(J8="","",IF(J8="Muy Baja",0.2,IF(J8="Baja",0.4,IF(J8="Media",0.6,IF(J8="Alta",0.8,IF(J8="Muy Alta",1,)))))) -> 0.4 | L8: El riesgo afecta la imagen de la entidad a nivel nacional, con efecto publicitarios sostenible a nivel país | M8: =IF(NOT(ISERROR(MATCH(L8,'Tabla Impacto'!#REF!,0))),'Tabla Impacto'!$F$229&"Por favor no seleccionar los criterios de impacto(Afectación Económica o presupuestal y Pérdida Reputacional)",L8) -> El riesgo afecta la imagen de la entidad a nivel nacional, con efecto publicitarios sostenible a nivel país | N8: =IF(OR(M8='Tabla Impacto'!$C$11,M8='Tabla Impacto'!$D$11),"Leve",IF(OR(M8='Tabla Impacto'!$C$12,M8='Tabla Impacto'!$D$12),"Menor",IF(OR(M8='Tabla Impacto'!$C$13,M8='Tabla Impacto'!$D$13),"Moderado",IF(OR(M8='Tabla Impacto'!$C$14,M8='Tabla Impacto'!$D$14),"Mayor",IF(OR(M8='Tabla Impacto'!$C$15,M8='Tabla Impacto'!$D$15),"Catastrófico",""))))) -> Catastrófico | O8: =IF(N8="","",IF(N8="Leve",0.2,IF(N8="Menor",0.4,IF(N8="Moderado",0.6,IF(N8="Mayor",0.8,IF(N8="Catastrófico",1,)))))) -> 1 | P8: =IF(OR(AND(J8="Muy Baja",N8="Leve"),AND(J8="Muy Baja",N8="Menor"),AND(J8="Baja",N8="Leve")),"Bajo",IF(OR(AND(J8="Muy baja",N8="Moderado"),AND(J8="Baja",N8="Menor"),AND(J8="Baja",N8="Moderado"),AND(J8="Media",N8="Leve"),AND(J8="Media",N8="Menor"),AND(J8="Media",N8="Moderado"),AND(J8="Alta",N8="Leve"),AND(J8="Alta",N8="Menor")),"Moderado",IF(OR(AND(J8="Muy Baja",N8="Mayor"),AND(J8="Baja",N8="Mayor"),AND(J8="Media",N8="Mayor"),AND(J8="Alta",N8="Moderado"),AND(J8="Alta",N8="Mayor"),AND(J8="Muy Alta",N8="Leve"),AND(J8="Muy Alta",N8="Menor"),AND(J8="Muy Alta",N8="Moderado"),AND(J8="Muy Alta",N8="Mayor")),"Alto",IF(OR(AND(J8="Muy Baja",N8="Catastrófico"),AND(J8="Baja",N8="Catastrófico"),AND(J8="Media",N8="Catastrófico"),AND(J8="Alta",N8="Catastrófico"),AND(J8="Muy Alta",N8="Catastrófico")),"Extremo","")))) -> Extremo | Q8: 1 | R8: El profesional de la Oficina de Planeación y Gestión Internacional, del Grupo de Gestión y Cumplimiento, realiza un seguimiento de manera periódica de los avances cuantitativos/cualitativos del cronograma de actividades frente a las acciones estipuladas en el Plan de Acción Anual, los Planes Plurianuales de Inversiones y los compromisos CONPES y lo presenta de manera oportuna a la alta dirección para la toma de decisiones. En caso de encontrar desviaciones en la ejecución de las acciones solicita aclaraciones a la primera línea de defensa | S8: Profesional de la Oficina de Planeación y Gestión Internacional del Grupo de Gestión y Cumplimiento | T8: Formulación de un cronograma de actividades para cumplir con las acciones estipuladas en el Plan de Acción Anual, los Planes Plurianuales de Inversiones y los compromisos CONPES y realiza el seguimiento de manera periódica de los avances cuantitativos/cualitativos y lo presenta de manera oportuna a la alta dirección para la toma de decisiones. | U8: Informes detallados Cronograma de actividades | V8: =IF(OR(W8="Preventivo",W8="Detectivo"),"Probabilidad",IF(W8="Correctivo","Impacto","")) -> Probabilidad | W8: Detectivo | X8: Automático | Y8: =IF(AND(W8="Preventivo",X8="Automático"),"50%",IF(AND(W8="Preventivo",X8="Manual"),"40%",IF(AND(W8="Detectivo",X8="Automático"),"40%",IF(AND(W8="Detectivo",X8="Manual"),"30%",IF(AND(W8="Correctivo",X8="Automático"),"35%",IF(AND(W8="Correctivo",X8="Manual"),"25%","")))))) -> 40% | Z8: Documentado | AA8: Continua | AB8: Con Registro | AC8: =IFERROR(IF(V8="Probabilidad",(K8-(+K8*Y8)),IF(V8="Impacto",K8,"")),"") -> 0.24 | AD8: =IFERROR(IF(AC8="","",IF(AC8<=0.2,"Muy Baja",IF(AC8<=0.4,"Baja",IF(AC8<=0.6,"Media",IF(AC8<=0.8,"Alta","Muy Alta"))))),"") -> Baja | AE8: =+AC8 -> 0.24 | AF8: =IFERROR(IF(AG8="","",IF(AG8<=0.2,"Leve",IF(AG8<=0.4,"Menor",IF(AG8<=0.6,"Moderado",IF(AG8<=0.8,"Mayor","Catastrófico"))))),"") -> Catastrófico | AG8: =IFERROR(IF(V8="Impacto",(O8-(+O8*Y8)),IF(V8="Probabilidad",O8,"")),"") -> 1 | AH8: =IFERROR(IF(OR(AND(AD8="Muy Baja",AF8="Leve"),AND(AD8="Muy Baja",AF8="Menor"),AND(AD8="Baja",AF8="Leve")),"Bajo",IF(OR(AND(AD8="Muy baja",AF8="Moderado"),AND(AD8="Baja",AF8="Menor"),AND(AD8="Baja",AF8="Moderado"),AND(AD8="Media",AF8="Leve"),AND(AD8="Media",AF8="Menor"),AND(AD8="Media",AF8="Moderado"),AND(AD8="Alta",AF8="Leve"),AND(AD8="Alta",AF8="Menor")),"Moderado",IF(OR(AND(AD8="Muy Baja",AF8="Mayor"),AND(AD8="Baja",AF8="Mayor"),AND(AD8="Media",AF8="Mayor"),AND(AD8="Alta",AF8="Moderado"),AND(AD8="Alta",AF8="Mayor"),AND(AD8="Muy Alta",AF8="Leve"),AND(AD8="Muy Alta",AF8="Menor"),AND(AD8="Muy Alta",AF8="Moderado"),AND(AD8="Muy Alta",AF8="Mayor")),"Alto",IF(OR(AND(AD8="Muy Baja",AF8="Catastrófico"),AND(AD8="Baja",AF8="Catastrófico"),AND(AD8="Media",AF8="Catastrófico"),AND(AD8="Alta",AF8="Catastrófico"),AND(AD8="Muy Alta",AF8="Catastrófico")),"Extremo","")))),"") -> Extremo | AI8: Evitar | AN8: Laura Vivianne Bermúdez Oficina de Planeación y Gestión Internacional Grupo de Gestión y Cumplimiento | AO8: Oficina de Planeación y Gestión Internacional | AP8: Jefe de la Oficina de Planeación y Gestión Internacional | AQ8: 2025-02-01 | AR8: 2025-12-31 | AS8: Se realizaron los cronogramas durante el mes de febrero para las prioridades estratégicas. El seguimiento se esperaba hacer en el mes de marzo, sin embargo, con el cambio de administración el proceso de seguimiento no se efectuado ya que se está a la espera de que los nuevos directivos revisen y aprueben las prioridades estratégicas establecidas. | AT8: No | AU8: Se evidencia la programación de cada uno de los proyectos, sin embargo en el estado se ve que dice "En proceso" pero en las fechas de inicio y fin para realizar la actividad, dicha acción por planeación ya se encuentra vencida. Se sugiere revisar. Respecto del seguimiento, se requiere se inicie a establecer un control que permita operar cuando hay cambio de personal a cargo del cumplimiento de las actividades que denote que la estrategia continua a pesar del cambio.
A9: 2 | B9: DIRECCIONAMIENTO ESTRATÉGICO | C9: Gestión | D9: =IF(C9="Fiscal",_xlfn.CONCAT("Posibilidad de efectos dañosos sobre bienes públicos "," por o para ",F9," debido a ",G9),IF(C9="Gestión",_xlfn.CONCAT("Posibilidad de afectacion ",E9," por ",F9," debido a ",G9),"")) -> Posibilidad de afectacion reputacional por Incumplimiento de los tiempos para el registro o actualización de los proyectos de inversión en la PIIP, debido a devoluciones de los procesos y/o trámites presupuestales | E9: reputacional | F9: Incumplimiento de los tiempos para el registro o actualización de los proyectos de inversión en la PIIP, | G9: devoluciones de los procesos y/o trámites presupuestales | H9: Ejecucion y Administracion de procesos | I9: 172 | J9: Media | K9: 0.6 | L9: El riesgo afecta la imagen de la entidad a nivel nacional, con efecto publicitarios sostenible a nivel país | M9: =IF(NOT(ISERROR(MATCH(L9,'Tabla Impacto'!#REF!,0))),'Tabla Impacto'!$F$229&"Por favor no seleccionar los criterios de impacto(Afectación Económica o presupuestal y Pérdida Reputacional)",L9) -> El riesgo afecta la imagen de la entidad a nivel nacional, con efecto publicitarios sostenible a nivel país | N9: =IF(OR(M9='Tabla Impacto'!$C$11,M9='Tabla Impacto'!$D$11),"Leve",IF(OR(M9='Tabla Impacto'!$C$12,M9='Tabla Impacto'!$D$12),"Menor",IF(OR(M9='Tabla Impacto'!$C$13,M9='Tabla Impacto'!$D$13),"Moderado",IF(OR(M9='Tabla Impacto'!$C$14,M9='Tabla Impacto'!$D$14),"Mayor",IF(OR(M9='Tabla Impacto'!$C$15,M9='Tabla Impacto'!$D$15),"Catastrófico",""))))) -> Catastrófico | O9: =IF(N9="","",IF(N9="Leve",0.2,IF(N9="Menor",0.4,IF(N9="Moderado",0.6,IF(N9="Mayor",0.8,IF(N9="Catastrófico",1,)))))) -> 1 | P9: =IF(OR(AND(J9="Muy Baja",N9="Leve"),AND(J9="Muy Baja",N9="Menor"),AND(J9="Baja",N9="Leve")),"Bajo",IF(OR(AND(J9="Muy baja",N9="Moderado"),AND(J9="Baja",N9="Menor"),AND(J9="Baja",N9="Moderado"),AND(J9="Media",N9="Leve"),AND(J9="Media",N9="Menor"),AND(J9="Media",N9="Moderado"),AND(J9="Alta",N9="Leve"),AND(J9="Alta",N9="Menor")),"Moderado",IF(OR(AND(J9="Muy Baja",N9="Mayor"),AND(J9="Baja",N9="Mayor"),AND(J9="Media",N9="Mayor"),AND(J9="Alta",N9="Moderado"),AND(J9="Alta",N9="Mayor"),AND(J9="Muy Alta",N9="Leve"),AND(J9="Muy Alta",N9="Menor"),AND(J9="Muy Alta",N9="Moderado"),AND(J9="Muy Alta",N9="Mayor")),"Alto",IF(OR(AND(J9="Muy Baja",N9="Catastrófico"),AND(J9="Baja",N9="Catastrófico"),AND(J9="Media",N9="Catastrófico"),AND(J9="Alta",N9="Catastrófico"),AND(J9="Muy Alta",N9="Catastrófico")),"Extremo","")))) -> Extremo | Q9: 1 | R9: El y/o la Coordinador(a) del Grupo de Programación y Gestión Estrategica de Proyectos y profesional designado, dispone de un enlace para asesorar a los gerentes de proyectos de inversión, presenta e informa el cronograma del ciclo de formulación y actualización de proyectos, Anteproyecto y MGMP, posteriormente realiza seguimiento al estado de avance de cada uno de los trámites para el registro y/o actualización de los mismos en la PIIP; en caso de encontrar desviaciones en los tiempos definidos establece acciones correctivas y/o preventivas requeridas con el gerente del proyecto y de ser necesario con la alta dirección. | S9: Coordinador(a) y profesionales designados del Grupo de Programación y Gestión Estratégica de Proyectos | T9: Disponer de un enlace para asesorar los gerentes de proyectos de inversión Presentar e informar el cronograma del ciclo del proyecto de inversión Realizar el seguimiento al estado de avance de cada uno de los trámites para el registro y/o actualización de los proyectos de inversión en la PIIP Establecer acciones correctivas y/o preventivas requeridas con el gerente del proyecto y de ser necesario con la alta dirección | U9: Instrumentos de control definidos para tal fin, cronograma ciclo de proyectos de inversión, formato de ajuste de ficha proyectos de inversión, matriz de proyectos, presentaciones y reuniones de seguimiento | V9: =IF(OR(W9="Preventivo",W9="Detectivo"),"Probabilidad",IF(W9="Correctivo","Impacto","")) -> Probabilidad | W9: Preventivo | X9: Manual | Y9: =IF(AND(W9="Preventivo",X9="Automático"),"50%",IF(AND(W9="Preventivo",X9="Manual"),"40%",IF(AND(W9="Detectivo",X9="Automático"),"40%",IF(AND(W9="Detectivo",X9="Manual"),"30%",IF(AND(W9="Correctivo",X9="Automático"),"35%",IF(AND(W9="Correctivo",X9="Manual"),"25%","")))))) -> 40% | Z9: Sin Documentar | AA9: Continua | AB9: Con Registro | AC9: =IFERROR(IF(V9="Probabilidad",(K9-(+K9*Y9)),IF(V9="Impacto",K9,"")),"") -> 0.36 | AD9: =IFERROR(IF(AC9="","",IF(AC9<=0.2,"Muy Baja",IF(AC9<=0.4,"Baja",IF(AC9<=0.6,"Media",IF(AC9<=0.8,"Alta","Muy Alta"))))),"") -> Baja | AE9: =+AC9 -> 0.36 | AF9: =IFERROR(IF(AG9="","",IF(AG9<=0.2,"Leve",IF(AG9<=0.4,"Menor",IF(AG9<=0.6,"Moderado",IF(AG9<=0.8,"Mayor","Catastrófico"))))),"") -> Catastrófico | AG9: =IFERROR(IF(V9="Impacto",(O9-(+O9*Y9)),IF(V9="Probabilidad",O9,"")),"") -> 1 | AH9: =IFERROR(IF(OR(AND(AD9="Muy Baja",AF9="Leve"),AND(AD9="Muy Baja",AF9="Menor"),AND(AD9="Baja",AF9="Leve")),"Bajo",IF(OR(AND(AD9="Muy baja",AF9="Moderado"),AND(AD9="Baja",AF9="Menor"),AND(AD9="Baja",AF9="Moderado"),AND(AD9="Media",AF9="Leve"),AND(AD9="Media",AF9="Menor"),AND(AD9="Media",AF9="Moderado"),AND(AD9="Alta",AF9="Leve"),AND(AD9="Alta",AF9="Menor")),"Moderado",IF(OR(AND(AD9="Muy Baja",AF9="Mayor"),AND(AD9="Baja",AF9="Mayor"),AND(AD9="Media",AF9="Mayor"),AND(AD9="Alta",AF9="Moderado"),AND(AD9="Alta",AF9="Mayor"),AND(AD9="Muy Alta",AF9="Leve"),AND(AD9="Muy Alta",AF9="Menor"),AND(AD9="Muy Alta",AF9="Moderado"),AND(AD9="Muy Alta",AF9="Mayor")),"Alto",IF(OR(AND(AD9="Muy Baja",AF9="Catastrófico"),AND(AD9="Baja",AF9="Catastrófico"),AND(AD9="Media",AF9="Catastrófico"),AND(AD9="Alta",AF9="Catastrófico"),AND(AD9="Muy Alta",AF9="Catastrófico")),"Extremo","")))),"") -> Extremo | AI9: Evitar | AN9: Profesional Grupo de Programación y Gestión Estratégica de Proyectos | AO9: Oficina Asesora de Planeación y Gestión Internacional | AP9: Miguel Angel Cardozo Tovar | AQ9: 2025-01-15 | AR9: 2025-12-31 | AS9: Durante el primer trimestre de 2025, no se materializo el riesgo descrito, de conformidad con lo indicado en el archivo de evidencias, donde se puede validar la labor desarrollada y la aplicación de los respectivos controles y la relación de actividades desarrolladas. | AT9: No | AU9: Se evidencia en la matriz de seguimiento a proyectos la designación por parte de la OPGI de líder Coordinador, Responsable MME, Corresponsable MME y Enlace Presupuestal y a su vez el seguimiento de cada proyecto
A10: 3 | B10: DIRECCIONAMIENTO ESTRATÉGICO | C10: Gestión | D10: Posibilidad de afectacion económico por falta de oportunidad en el reporte de alertas tempranas por rezagos en la ejecución presupuestal del rubro de inversión debido a incumplimiento al seguimiento de la ejecución presupuestal en el marco de los acuerdos de gestión | E10: económico | F10: falta de oportunidad en el reporte de alertas tempranas por rezagos en la ejecución presupuestal del rubro de inversión | G10: incumplimiento al seguimiento de la ejecución presupuestal en el marco de los acuerdos de gestión | H10: Usuarios, productos y practicas , organizacionales | I10: 88 | J10: Media | K10: 0.6 | L10: El riesgo afecta la imagen de de la entidad con efecto publicitario sostenido a nivel de sector administrativo, nivel departamental o municipal | M10: =IF(NOT(ISERROR(MATCH(L10,'[5]Tabla Impacto'!#REF!,0))),'[5]Tabla Impacto'!$F$229&"Por favor no seleccionar los criterios de impacto(Afectación Económica o presupuestal y Pérdida Reputacional)",L10) -> El riesgo afecta la imagen de de la entidad con efecto publicitario sostenido a nivel de sector administrativo, nivel departamental o municipal | N10: =IF(OR(M10='[5]Tabla Impacto'!$C$11,M10='[5]Tabla Impacto'!$D$11),"Leve",IF(OR(M10='[5]Tabla Impacto'!$C$12,M10='[5]Tabla Impacto'!$D$12),"Menor",IF(OR(M10='[5]Tabla Impacto'!$C$13,M10='[5]Tabla Impacto'!$D$13),"Moderado",IF(OR(M10='[5]Tabla Impacto'!$C$14,M10='[5]Tabla Impacto'!$D$14),"Mayor",IF(OR(M10='[5]Tabla Impacto'!$C$15,M10='[5]Tabla Impacto'!$D$15),"Catastrófico",""))))) -> Mayor | O10: 0.8 | P10: Alto | Q10: 1 | R10: El y/o la Coordinador(a) del Grupo de Programación y Gestión Estrategica de Proyectos y profesionales designados, solicitan a los responsables de la ejecución de proyectos de inversión el diligenciamiento de la matriz de acuerdos de gestión, en cumplimiento de parámetros establecidos por el Ministerio y posteriormente realiza seguimiento periódico a la ejecución presupuestal; en caso de encontrar desviaciones, solicita la respectiva justificación a los gerentes de proyectos, con el fin de que establezcan un plan de choque para alcanzar las metas de ejecución presupuestal a través de acuerdos de gestión. | S10: Coordinador(a) y profesionales designados del Grupo de Programación y Gestión Estratégica de Proyectos | T10: Solicitar la formalización de los acuerdos de gestión y consolidar la información Realizar seguimiento periódico a la ejecución presupuestal en el marco de los acuerdos de gestión | U10: Acuerdos de gestión, informes de ejecución, boletines ejecutivos, correo electrónico con informe de reuniones de seguimiento sobre PAE y reuniones de seguimiento con las áreas organizaciones y/o entidades adscritas. Reportes de seguimiento a nivel de producto en la PIIP | V10: Probabilidad | W10: Preventivo | X10: Manual | Y10: =IF(AND(W10="Preventivo",X10="Automático"),"50%",IF(AND(W10="Preventivo",X10="Manual"),"40%",IF(AND(W10="Detectivo",X10="Automático"),"40%",IF(AND(W10="Detectivo",X10="Manual"),"30%",IF(AND(W10="Correctivo",X10="Automático"),"35%",IF(AND(W10="Correctivo",X10="Manual"),"25%","")))))) -> 40% | Z10: Sin Documentar | AA10: Continua | AB10: Con Registro | AC10: 0.36 | AD10: Baja | AE10: 0.36 | AF10: Mayor | AG10: 0.8 | AH10: Alto | AI10: Reducir (compartir) | AN10: Profesional Grupo de Grupo de Programación y Gestión Estratégica de Proyectos | AO10: Oficina Asesora de Planeación y Gestión Internacional | AP10: Miguel Angel Cardozo Tovar | AQ10: 2025-01-15 | AR10: 2025-12-31 | AS10: Durante el primer trimestre de 2025, no se materializo el riesgo descrito, de conformidad con lo indicado en el archivo de evidencias, donde se puede validar la labor desarrollada y la aplicación de los respectivos controles y la relación de actividades desarrolladas | AT10: No | AU10: Se evidencia seguimiento realizado a la ejecución y la consolidación de los acuerdos de gestión, sin embargo no se evidenciar la formalización de los acuerdos de gestión, se sugiere ajustar la evidencia y dejar los acuerdos formalizados.
A11: 4 | B11: DIRECCIONAMIENTO ESTRATÉGICO | C11: Gestión | D11: Posibilidad de afectacion económico y reputacional por demandas y quejas de los interesados en la gestión de los trámites debido a incumplimiento normativo relacionado con los trámites y servicios del Ministerio. | E11: económico y reputacional | F11: demandas y quejas de los interesados en la gestión de los trámites | G11: incumplimiento normativo relacionado con los trámites y servicios del Ministerio. | H11: Usuarios, productos y practicas , organizacionales | I11: 40 | J11: Media | K11: =IF(J11="","",IF(J11="Muy Baja",0.2,IF(J11="Baja",0.4,IF(J11="Media",0.6,IF(J11="Alta",0.8,IF(J11="Muy Alta",1,)))))) -> 0.6 | L11: El riesgo afecta la imagen de la entidad a nivel nacional, con efecto publicitarios sostenible a nivel país | M11: =IF(NOT(ISERROR(MATCH(L11,'[5]Tabla Impacto'!#REF!,0))),'[5]Tabla Impacto'!$F$229&"Por favor no seleccionar los criterios de impacto(Afectación Económica o presupuestal y Pérdida Reputacional)",L11) -> El riesgo afecta la imagen de la entidad a nivel nacional, con efecto publicitarios sostenible a nivel país | N11: =IF(OR(M11='[5]Tabla Impacto'!$C$11,M11='[5]Tabla Impacto'!$D$11),"Leve",IF(OR(M11='[5]Tabla Impacto'!$C$12,M11='[5]Tabla Impacto'!$D$12),"Menor",IF(OR(M11='[5]Tabla Impacto'!$C$13,M11='[5]Tabla Impacto'!$D$13),"Moderado",IF(OR(M11='[5]Tabla Impacto'!$C$14,M11='[5]Tabla Impacto'!$D$14),"Mayor",IF(OR(M11='[5]Tabla Impacto'!$C$15,M11='[5]Tabla Impacto'!$D$15),"Catastrófico",""))))) -> Catastrófico | O11: =IF(N11="","",IF(N11="Leve",0.2,IF(N11="Menor",0.4,IF(N11="Moderado",0.6,IF(N11="Mayor",0.8,IF(N11="Catastrófico",1,)))))) -> 1 | P11: =IF(OR(AND(J11="Muy Baja",N11="Leve"),AND(J11="Muy Baja",N11="Menor"),AND(J11="Baja",N11="Leve")),"Bajo",IF(OR(AND(J11="Muy baja",N11="Moderado"),AND(J11="Baja",N11="Menor"),AND(J11="Baja",N11="Moderado"),AND(J11="Media",N11="Leve"),AND(J11="Media",N11="Menor"),AND(J11="Media",N11="Moderado"),AND(J11="Alta",N11="Leve"),AND(J11="Alta",N11="Menor")),"Moderado",IF(OR(AND(J11="Muy Baja",N11="Mayor"),AND(J11="Baja",N11="Mayor"),AND(J11="Media",N11="Mayor"),AND(J11="Alta",N11="Moderado"),AND(J11="Alta",N11="Mayor"),AND(J11="Muy Alta",N11="Leve"),AND(J11="Muy Alta",N11="Menor"),AND(J11="Muy Alta",N11="Moderado"),AND(J11="Muy Alta",N11="Mayor")),"Alto",IF(OR(AND(J11="Muy Baja",N11="Catastrófico"),AND(J11="Baja",N11="Catastrófico"),AND(J11="Media",N11="Catastrófico"),AND(J11="Alta",N11="Catastrófico"),AND(J11="Muy Alta",N11="Catastrófico")),"Extremo","")))) -> Extremo | Q11: 1 | R11: El profesional de la Oficina de Planeación y Gestión Internacional, del Grupo de Gestión y Desempeño, verifica que la información de los tramites publicados en el SUIT se encuentra actualizada y sea la correcta a través de una plantilla de validación de información de cada tramite y la revisa con los encargados misionales correspondientes | S11: Profesional Grupo de Gestión y Desempeño que administra el SUIT | T11: Verifica que la información de los tramites publicados en el SUIT se encuentra actualizada y sea la correcta a través de una plantilla de validación de información de cada tramite y la revisa con los encargados misionales correspondientes | U11: Plantilla de validación de información de cada tramite | V11: =IF(OR(W11="Preventivo",W11="Detectivo"),"Probabilidad",IF(W11="Correctivo","Impacto","")) -> Probabilidad | W11: Preventivo | X11: Manual | Y11: 40% | Z11: Sin Documentar | AA11: Continua | AB11: Con Registro | AC11: =IFERROR(IF(V11="Probabilidad",(K11-(+K11*Y11)),IF(V11="Impacto",K11,"")),"") -> 0.36 | AD11: =IFERROR(IF(AC11="","",IF(AC11<=0.2,"Muy Baja",IF(AC11<=0.4,"Baja",IF(AC11<=0.6,"Media",IF(AC11<=0.8,"Alta","Muy Alta"))))),"") -> Baja | AE11: =+AC11 -> 0.36 | AF11: =IFERROR(IF(AG11="","",IF(AG11<=0.2,"Leve",IF(AG11<=0.4,"Menor",IF(AG11<=0.6,"Moderado",IF(AG11<=0.8,"Mayor","Catastrófico"))))),"") -> Catastrófico | AG11: =IFERROR(IF(V11="Impacto",(O11-(+O11*Y11)),IF(V11="Probabilidad",O11,"")),"") -> 1 | AH11: =IFERROR(IF(OR(AND(AD11="Muy Baja",AF11="Leve"),AND(AD11="Muy Baja",AF11="Menor"),AND(AD11="Baja",AF11="Leve")),"Bajo",IF(OR(AND(AD11="Muy baja",AF11="Moderado"),AND(AD11="Baja",AF11="Menor"),AND(AD11="Baja",AF11="Moderado"),AND(AD11="Media",AF11="Leve"),AND(AD11="Media",AF11="Menor"),AND(AD11="Media",AF11="Moderado"),AND(AD11="Alta",AF11="Leve"),AND(AD11="Alta",AF11="Menor")),"Moderado",IF(OR(AND(AD11="Muy Baja",AF11="Mayor"),AND(AD11="Baja",AF11="Mayor"),AND(AD11="Media",AF11="Mayor"),AND(AD11="Alta",AF11="Moderado"),AND(AD11="Alta",AF11="Mayor"),AND(AD11="Muy Alta",AF11="Leve"),AND(AD11="Muy Alta",AF11="Menor"),AND(AD11="Muy Alta",AF11="Moderado"),AND(AD11="Muy Alta",AF11="Mayor")),"Alto",IF(OR(AND(AD11="Muy Baja",AF11="Catastrófico"),AND(AD11="Baja",AF11="Catastrófico"),AND(AD11="Media",AF11="Catastrófico"),AND(AD11="Alta",AF11="Catastrófico"),AND(AD11="Muy Alta",AF11="Catastrófico")),"Extremo","")))),"") -> Extremo | AI11: Reducir (compartir) | AN11: Profesional Grupo de Gestión y Desempeño que administra el SUIT | AO11: Oficina Asesora de Planeación y Gestión Internacional | AP11: Miguel Angel Cardozo Tovar | AQ11: 2025-01-15 | AR11: 2025-12-31 | AS11: Durante el primer trimestre de 2025, no se materializo el riesgo descrito. Se revisó la información registrada en el Sistema Único de Información de Trámites -SUIT, y la vigencia de la normativa asociada a los trámites registrados. | AT11: No | AU11: No se evidencia soporte de ejecución de la actividad de validación de información de cada tramite en conjunto con los encargados misionales correspondientes
A12: 5 | B12: MEJORAMIENTO | C12: Gestión | D12: Posibilidad de afectacion reputacional por reprocesos y aumento de carga administrativa debido a documentos del Sistema Integrado de Gestión publicados sin el cumplimiento de los requerimientos de calidad establecidos | E12: reputacional | F12: reprocesos y aumento de carga administrativa | G12: documentos del Sistema Integrado de Gestión publicados sin el cumplimiento de los requerimientos de calidad establecidos | H12: Ejecucion y Administracion de procesos | I12: 51 | J12: Media | K12: =IF(J12="","",IF(J12="Muy Baja",0.2,IF(J12="Baja",0.4,IF(J12="Media",0.6,IF(J12="Alta",0.8,IF(J12="Muy Alta",1,)))))) -> 0.6 | L12: El riesgo afecta la imagen de la entidad a nivel nacional, con efecto publicitarios sostenible a nivel país | M12: =IF(NOT(ISERROR(MATCH(L12,'[5]Tabla Impacto'!#REF!,0))),'[5]Tabla Impacto'!$F$229&"Por favor no seleccionar los criterios de impacto(Afectación Económica o presupuestal y Pérdida Reputacional)",L12) -> El riesgo afecta la imagen de la entidad a nivel nacional, con efecto publicitarios sostenible a nivel país | N12: =IF(OR(M12='[5]Tabla Impacto'!$C$11,M12='[5]Tabla Impacto'!$D$11),"Leve",IF(OR(M12='[5]Tabla Impacto'!$C$12,M12='[5]Tabla Impacto'!$D$12),"Menor",IF(OR(M12='[5]Tabla Impacto'!$C$13,M12='[5]Tabla Impacto'!$D$13),"Moderado",IF(OR(M12='[5]Tabla Impacto'!$C$14,M12='[5]Tabla Impacto'!$D$14),"Mayor",IF(OR(M12='[5]Tabla Impacto'!$C$15,M12='[5]Tabla Impacto'!$D$15),"Catastrófico",""))))) -> Catastrófico | O12: =IF(N12="","",IF(N12="Leve",0.2,IF(N12="Menor",0.4,IF(N12="Moderado",0.6,IF(N12="Mayor",0.8,IF(N12="Catastrófico",1,)))))) -> 1 | P12: =IF(OR(AND(J12="Muy Baja",N12="Leve"),AND(J12="Muy Baja",N12="Menor"),AND(J12="Baja",N12="Leve")),"Bajo",IF(OR(AND(J12="Muy baja",N12="Moderado"),AND(J12="Baja",N12="Menor"),AND(J12="Baja",N12="Moderado"),AND(J12="Media",N12="Leve"),AND(J12="Media",N12="Menor"),AND(J12="Media",N12="Moderado"),AND(J12="Alta",N12="Leve"),AND(J12="Alta",N12="Menor")),"Moderado",IF(OR(AND(J12="Muy Baja",N12="Mayor"),AND(J12="Baja",N12="Mayor"),AND(J12="Media",N12="Mayor"),AND(J12="Alta",N12="Moderado"),AND(J12="Alta",N12="Mayor"),AND(J12="Muy Alta",N12="Leve"),AND(J12="Muy Alta",N12="Menor"),AND(J12="Muy Alta",N12="Moderado"),AND(J12="Muy Alta",N12="Mayor")),"Alto",IF(OR(AND(J12="Muy Baja",N12="Catastrófico"),AND(J12="Baja",N12="Catastrófico"),AND(J12="Media",N12="Catastrófico"),AND(J12="Alta",N12="Catastrófico"),AND(J12="Muy Alta",N12="Catastrófico")),"Extremo","")))) -> Extremo | Q12: 1 | R12: El profesional de la Oficina de Planeación y Gestión Internacional del Grupo de Gestión y Desempeño realiza asesoría y revisión de las solicitudes de control documental en conjunto con los responsables de los procesos y posteriormente, valida los documentos que son remitidos para ser aprobados; en caso de encontrar inconsistencias en los documentos remite a los procesos para ajustes | S12: Profesional Grupo de Gestión y Desempeño que administra el SIG | T12: Realizar asesoría y revisión de las solicitudes de control documental en conjunto con los responsables de los procesos Validar los documentos antes de ser aprobados para evitar errores en forma y/o contenido, | U12: Listado de verificación de actualización de documentos Correos Electrónicos | V12: =IF(OR(W12="Preventivo",W12="Detectivo"),"Probabilidad",IF(W12="Correctivo","Impacto","")) -> Probabilidad | W12: Preventivo | X12: Manual | Y12: =IF(AND(W12="Preventivo",X12="Automático"),"50%",IF(AND(W12="Preventivo",X12="Manual"),"40%",IF(AND(W12="Detectivo",X12="Automático"),"40%",IF(AND(W12="Detectivo",X12="Manual"),"30%",IF(AND(W12="Correctivo",X12="Automático"),"35%",IF(AND(W12="Correctivo",X12="Manual"),"25%","")))))) -> 40% | Z12: Documentado | AA12: Continua | AB12: Con Registro | AC12: =IFERROR(IF(V12="Probabilidad",(K12-(+K12*Y12)),IF(V12="Impacto",K12,"")),"") -> 0.36 | AD12: =IFERROR(IF(AC12="","",IF(AC12<=0.2,"Muy Baja",IF(AC12<=0.4,"Baja",IF(AC12<=0.6,"Media",IF(AC12<=0.8,"Alta","Muy Alta"))))),"") -> Baja | AE12: =+AC12 -> 0.36 | AF12: =IFERROR(IF(AG12="","",IF(AG12<=0.2,"Leve",IF(AG12<=0.4,"Menor",IF(AG12<=0.6,"Moderado",IF(AG12<=0.8,"Mayor","Catastrófico"))))),"") -> Catastrófico | AG12: =IFERROR(IF(V12="Impacto",(O12-(+O12*Y12)),IF(V12="Probabilidad",O12,"")),"") -> 1 | AH12: =IFERROR(IF(OR(AND(AD12="Muy Baja",AF12="Leve"),AND(AD12="Muy Baja",AF12="Menor"),AND(AD12="Baja",AF12="Leve")),"Bajo",IF(OR(AND(AD12="Muy baja",AF12="Moderado"),AND(AD12="Baja",AF12="Menor"),AND(AD12="Baja",AF12="Moderado"),AND(AD12="Media",AF12="Leve"),AND(AD12="Media",AF12="Menor"),AND(AD12="Media",AF12="Moderado"),AND(AD12="Alta",AF12="Leve"),AND(AD12="Alta",AF12="Menor")),"Moderado",IF(OR(AND(AD12="Muy Baja",AF12="Mayor"),AND(AD12="Baja",AF12="Mayor"),AND(AD12="Media",AF12="Mayor"),AND(AD12="Alta",AF12="Moderado"),AND(AD12="Alta",AF12="Mayor"),AND(AD12="Muy Alta",AF12="Leve"),AND(AD12="Muy Alta",AF12="Menor"),AND(AD12="Muy Alta",AF12="Moderado"),AND(AD12="Muy Alta",AF12="Mayor")),"Alto",IF(OR(AND(AD12="Muy Baja",AF12="Catastrófico"),AND(AD12="Baja",AF12="Catastrófico"),AND(AD12="Media",AF12="Catastrófico"),AND(AD12="Alta",AF12="Catastrófico"),AND(AD12="Muy Alta",AF12="Catastrófico")),"Extremo","")))),"") -> Extremo | AI12: Evitar | AN12: Profesional Grupo de Gestión y Desempeño que administra el SIG | AO12: Oficina de Planeación y Gestión Internacional | AP12: Jefe de la Oficina de Planeación y Gestión Internacional | AQ12: 2025-01-15 | AR12: 2025-12-31 | AS12: Durante el primer trimestre de 2025 se atendieron 38 solicitudes documentales, las cuales, fueron oficializadas en el Sistema Integrado de Gestión mediante el listado maestro de documentos | AT12: No | AU12: Se evidencia actualización de listado maestro de documentos según las solicitudes de los procesos, se sugiere ala proceso la verificación de cada uno de los procedimientos que están con fecha de elaboración muy anterior, toda vez que la normatividad se actualiza y hubo cambio de personal por concurso hace dos años en el ministerio y han habido tres cambios de ministros
A13: 6 | B13: MEJORAMIENTO | C13: Gestión | D13: Posibilidad de afectacion económico y reputacional por sanciones, multas o demandas debido a incumplimiento u omisión de requisitos legales y otros aplicables al Sistema de Gestión Ambiental de la entidad. | E13: económico y reputacional | F13: sanciones, multas o demandas | G13: incumplimiento u omisión de requisitos legales y otros aplicables al Sistema de Gestión Ambiental de la entidad. | H13: Ejecucion y Administracion de procesos | I13: 24 | J13: Baja | K13: =IF(J13="","",IF(J13="Muy Baja",0.2,IF(J13="Baja",0.4,IF(J13="Media",0.6,IF(J13="Alta",0.8,IF(J13="Muy Alta",1,)))))) -> 0.4 | L13: El riesgo afecta la imagen de la entidad con algunos usuarios de relevancia frente al logro de los objetivos | M13: =IF(NOT(ISERROR(MATCH(L13,'[5]Tabla Impacto'!#REF!,0))),'[5]Tabla Impacto'!$F$229&"Por favor no seleccionar los criterios de impacto(Afectación Económica o presupuestal y Pérdida Reputacional)",L13) -> El riesgo afecta la imagen de la entidad con algunos usuarios de relevancia frente al logro de los objetivos | N13: =IF(OR(M13='[5]Tabla Impacto'!$C$11,M13='[5]Tabla Impacto'!$D$11),"Leve",IF(OR(M13='[5]Tabla Impacto'!$C$12,M13='[5]Tabla Impacto'!$D$12),"Menor",IF(OR(M13='[5]Tabla Impacto'!$C$13,M13='[5]Tabla Impacto'!$D$13),"Moderado",IF(OR(M13='[5]Tabla Impacto'!$C$14,M13='[5]Tabla Impacto'!$D$14),"Mayor",IF(OR(M13='[5]Tabla Impacto'!$C$15,M13='[5]Tabla Impacto'!$D$15),"Catastrófico",""))))) -> Moderado | O13: =IF(N13="","",IF(N13="Leve",0.2,IF(N13="Menor",0.4,IF(N13="Moderado",0.6,IF(N13="Mayor",0.8,IF(N13="Catastrófico",1,)))))) -> 0.6 | P13: =IF(OR(AND(J13="Muy Baja",N13="Leve"),AND(J13="Muy Baja",N13="Menor"),AND(J13="Baja",N13="Leve")),"Bajo",IF(OR(AND(J13="Muy baja",N13="Moderado"),AND(J13="Baja",N13="Menor"),AND(J13="Baja",N13="Moderado"),AND(J13="Media",N13="Leve"),AND(J13="Media",N13="Menor"),AND(J13="Media",N13="Moderado"),AND(J13="Alta",N13="Leve"),AND(J13="Alta",N13="Menor")),"Moderado",IF(OR(AND(J13="Muy Baja",N13="Mayor"),AND(J13="Baja",N13="Mayor"),AND(J13="Media",N13="Mayor"),AND(J13="Alta",N13="Moderado"),AND(J13="Alta",N13="Mayor"),AND(J13="Muy Alta",N13="Leve"),AND(J13="Muy Alta",N13="Menor"),AND(J13="Muy Alta",N13="Moderado"),AND(J13="Muy Alta",N13="Mayor")),"Alto",IF(OR(AND(J13="Muy Baja",N13="Catastrófico"),AND(J13="Baja",N13="Catastrófico"),AND(J13="Media",N13="Catastrófico"),AND(J13="Alta",N13="Catastrófico"),AND(J13="Muy Alta",N13="Catastrófico")),"Extremo","")))) -> Moderado | Q13: 1 | R13: El profesional de la Oficina de Planeación y Gestión Internacional que brinda soporte al Sistema de Gestión Ambiental, realiza la revisión semestral a la implementación de los controles operacionales y al cumplimiento de los requisitos legales y otros aplicables al Sistema de Gestión Ambiental | S13: El profesional de la Oficina de Planeación y Gestión Internacional que brinda soporte al Sistema de Gestión Ambiental | T13: Realizar la revisión semestral a la implementación de los controles operacionales y al cumplimiento de los requisitos legales y otros aplicables al Sistema de Gestión Ambienta | U13: Matriz de identificación de Aspectos y Valoración de Impactos Ambientales. Monitoreo en la Matriz de requisitos legales ambientales. | V13: Probabilidad | W13: Preventivo | X13: Manual | Y13: 40% | Z13: Sin Documentar | AA13: Continua | AB13: Con Registro | AC13: =IFERROR(IF(V13="Probabilidad",(K13-(+K13*Y13)),IF(V13="Impacto",K13,"")),"") -> 0.24 | AD13: =IFERROR(IF(AC13="","",IF(AC13<=0.2,"Muy Baja",IF(AC13<=0.4,"Baja",IF(AC13<=0.6,"Media",IF(AC13<=0.8,"Alta","Muy Alta"))))),"") -> Baja | AE13: =+AC13 -> 0.24 | AF13: =IFERROR(IF(AG13="","",IF(AG13<=0.2,"Leve",IF(AG13<=0.4,"Menor",IF(AG13<=0.6,"Moderado",IF(AG13<=0.8,"Mayor","Catastrófico"))))),"") -> Moderado | AG13: =IFERROR(IF(V13="Impacto",(O13-(+O13*Y13)),IF(V13="Probabilidad",O13,"")),"") -> 0.6 | AH13: =IFERROR(IF(OR(AND(AD13="Muy Baja",AF13="Leve"),AND(AD13="Muy Baja",AF13="Menor"),AND(AD13="Baja",AF13="Leve")),"Bajo",IF(OR(AND(AD13="Muy baja",AF13="Moderado"),AND(AD13="Baja",AF13="Menor"),AND(AD13="Baja",AF13="Moderado"),AND(AD13="Media",AF13="Leve"),AND(AD13="Media",AF13="Menor"),AND(AD13="Media",AF13="Moderado"),AND(AD13="Alta",AF13="Leve"),AND(AD13="Alta",AF13="Menor")),"Moderado",IF(OR(AND(AD13="Muy Baja",AF13="Mayor"),AND(AD13="Baja",AF13="Mayor"),AND(AD13="Media",AF13="Mayor"),AND(AD13="Alta",AF13="Moderado"),AND(AD13="Alta",AF13="Mayor"),AND(AD13="Muy Alta",AF13="Leve"),AND(AD13="Muy Alta",AF13="Menor"),AND(AD13="Muy Alta",AF13="Moderado"),AND(AD13="Muy Alta",AF13="Mayor")),"Alto",IF(OR(AND(AD13="Muy Baja",AF13="Catastrófico"),AND(AD13="Baja",AF13="Catastrófico"),AND(AD13="Media",AF13="Catastrófico"),AND(AD13="Alta",AF13="Catastrófico"),AND(AD13="Muy Alta",AF13="Catastrófico")),"Extremo","")))),"") -> Moderado | AI13: Evitar | AN13: Profesional Grupo de Gestión y Desempeño que administra el SGA | AO13: Oficina de Planeación y Gestión Internacional | AP13: Jefe de la Oficina de Planeación y Gestión Internacional | AQ13: 2025-01-15 | AR13: 2025-12-31 | AS13: De acuerdo con el control establecido no se efectúa en el periodo revisión a los controles operacionales establecidos en la Matriz de identificación de aspectos y valoración de impactos ambientales. De otro lado, si bien la revisión al cumplimiento de requisitos legales y otros aplicables al Sistema de Gestión Ambiental es semestral, teniendo en cuenta el cambio en la metodología se realizó a actualización de la matriz así como el seguimiento correspondiente en el mes de febrero de 2025. | AT13: No | AU13: Se evidencia validación de requisitos, el 24 de febrero de 2025, se sugiere que en la matriz exista columna que indique link o repositorio donde se encuentra la EVIDENCIA DE EJECUCIÓN O CUMPLIMIENTO; se sugiere que se unifique el riesgo con el del proceso Gestión de Recursos Físicos a menos que desde ese proceso se estén haciendo otras validaciones, dado que veo la validación en la misma matriz
A14: 7 | B14: GESTIÓN TALENTO HUMANO | C14: Gestión | D14: Posibilidad de afectacion económico y reputacional por fuga de conocimiento debido a entrega inadecuada del cargo | E14: económico y reputacional | F14: fuga de conocimiento | G14: entrega inadecuada del cargo | H14: Ejecucion y Administracion de procesos | I14: 75 | J14: Media | K14: 0.6 | L14: El riesgo afecta la imagen de alguna área de la organización | M14: =IF(NOT(ISERROR(MATCH(L14,'[5]Tabla Impacto'!#REF!,0))),'[5]Tabla Impacto'!$F$229&"Por favor no seleccionar los criterios de impacto(Afectación Económica o presupuestal y Pérdida Reputacional)",L14) -> El riesgo afecta la imagen de alguna área de la organización | N14: =IF(OR(M14='[5]Tabla Impacto'!$C$11,M14='[5]Tabla Impacto'!$D$11),"Leve",IF(OR(M14='[5]Tabla Impacto'!$C$12,M14='[5]Tabla Impacto'!$D$12),"Menor",IF(OR(M14='[5]Tabla Impacto'!$C$13,M14='[5]Tabla Impacto'!$D$13),"Moderado",IF(OR(M14='[5]Tabla Impacto'!$C$14,M14='[5]Tabla Impacto'!$D$14),"Mayor",IF(OR(M14='[5]Tabla Impacto'!$C$15,M14='[5]Tabla Impacto'!$D$15),"Catastrófico",""))))) -> Leve | O14: 0.2 | P14: Moderado | Q14: 1 | R14: El coordinador del Grupo de Gestión Laboral y Carrera Administrativa realiza la verificación del diligenciamiento del formato de control de documento, de los empleados que ya no harán parte de la carrera administrativa; en caso que no se cuente con el documento se solicitará al jefe inmediato el documento hasta obtener el documento | S14: coordinador del Grupo de Gestión Laboral y Carrera Administrativa | T14: Realizar la verificación del diligenciamiento del formato de control de documento, de los empleados que ya no harán parte de la carrera administrativa | U14: Formato control de documentos para retiro diligenciado y parte de los expedientes | V14: =IF(OR(W14="Preventivo",W14="Detectivo"),"Probabilidad",IF(W14="Correctivo","Impacto","")) -> Probabilidad | W14: Detectivo | X14: Manual | Y14: =IF(AND(W14="Preventivo",X14="Automático"),"50%",IF(AND(W14="Preventivo",X14="Manual"),"40%",IF(AND(W14="Detectivo",X14="Automático"),"40%",IF(AND(W14="Detectivo",X14="Manual"),"30%",IF(AND(W14="Correctivo",X14="Automático"),"35%",IF(AND(W14="Correctivo",X14="Manual"),"25%","")))))) -> 30% | Z14: Documentado | AA14: Continua | AB14: Con Registro | AC14: 0.42 | AD14: Media | AE14: 0.42 | AF14: Leve | AG14: 0.2 | AH14: Moderado | AI14: Evitar | AN14: Julia Felipe Aguilar Arboleda Coordinador Grupo Humanización | AO14: Subdirección de Talento Humano | AP14: Subdirectora de Talento Humano | AQ14: 2025-02-01 | AR14: 2025-12-31 | AS14: Durante el primer trimestre de 2025, se verificaron con el Formato de Control de Documentos 32 retiros, y se realizaron 4 reiteraciones, las evidencias reposan en la historia laboral de cada uno de los exfuncionarios | AT14: No | AU14: Se requiere que se revise desde el proceso la validación de este control, toda vez que para determinar que no hubo fuga de conocimiento debe existir inicialmente la identificación del conocimiento explícito y tácito que tienen y la validación que existan repositorios creados que garanticen la información y que estos estén articulados con los instrumentos archivísticos
A15: 8 | B15: GESTIÓN DE COMUNICACIONES | C15: Gestión | D15: Posibilidad de afectacion económico y reputacional por Investigaciones penales, fiscales o disciplinarias, aumento de PQRSD debido a baja divulgación y socialización de la temática institucional y sectorial mediante la difusión de información por medio de los diferentes canales de comunicación (internos y externos) | E15: económico y reputacional | F15: Investigaciones penales, fiscales o disciplinarias, aumento de PQRSD | G15: baja divulgación y socialización de la temática institucional y sectorial mediante la difusión de información por medio de los diferentes canales de comunicación (internos y externos) | H15: Ejecucion y Administracion de procesos | I15: 50 | J15: Media | K15: 0.6 | L15: Entre 100 y 500 SMLMV | M15: =IF(NOT(ISERROR(MATCH(L15,'[5]Tabla Impacto'!#REF!,0))),'[5]Tabla Impacto'!$F$229&"Por favor no seleccionar los criterios de impacto(Afectación Económica o presupuestal y Pérdida Reputacional)",L15) -> Entre 100 y 500 SMLMV | N15: =IF(OR(M15='[5]Tabla Impacto'!$C$11,M15='[5]Tabla Impacto'!$D$11),"Leve",IF(OR(M15='[5]Tabla Impacto'!$C$12,M15='[5]Tabla Impacto'!$D$12),"Menor",IF(OR(M15='[5]Tabla Impacto'!$C$13,M15='[5]Tabla Impacto'!$D$13),"Moderado",IF(OR(M15='[5]Tabla Impacto'!$C$14,M15='[5]Tabla Impacto'!$D$14),"Mayor",IF(OR(M15='[5]Tabla Impacto'!$C$15,M15='[5]Tabla Impacto'!$D$15),"Catastrófico",""))))) -> Mayor | O15: 0.8 | P15: Alto | Q15: 1 | R15: La Lider SIG, gestion y calidad, realiza mesas de trabajo al interior del gupo de comunicaciones y prensa, para verificar el cumplimiento de las acciones trazadas para el cumplimiento del objetivo del proceso,información que queda documentada a traves de actas en las mesas de trabajo | S15: Lideo SIG y Gestor de Calidad | T15: Verificar el cumplimiento de las las acciones estratégicas que se realizarán para cumplir los objetivos del proceso | U15: actas que documenten lo tratado en las mesas de trabajo | V15: =IF(OR(W15="Preventivo",W15="Detectivo"),"Probabilidad",IF(W15="Correctivo","Impacto","")) -> Probabilidad | W15: Preventivo | X15: Manual | Y15: =IF(AND(W15="Preventivo",X15="Automático"),"50%",IF(AND(W15="Preventivo",X15="Manual"),"40%",IF(AND(W15="Detectivo",X15="Automático"),"40%",IF(AND(W15="Detectivo",X15="Manual"),"30%",IF(AND(W15="Correctivo",X15="Automático"),"35%",IF(AND(W15="Correctivo",X15="Manual"),"25%","")))))) -> 40% | Z15: Sin Documentar | AA15: Continua | AB15: Con Registro | AC15: 0.36 | AD15: Baja | AE15: 0.36 | AF15: Mayor | AG15: 0.8 | AH15: Alto | AI15: Evitar | AN15: Lideo SIG y Gestor de Calidad | AO15: Grupo de Comunicaciones y Prensa | AP15: Laura Vanessa Gomez Charris | AQ15: 2025-02-01 | AR15: 30/04/2025 | AS15: Durante el primer trimestre, el Grupo de Comunicaciones y Prensa sostuvo reuniones presenciales semanales para coordinar actividades, atender requerimientos, realizar coberturas y definir estrategias, promoviendo así una comunicación efectiva entre los miembros del equipo. Esta dinámica permitió optimizar los procesos internos y avanzar con mayor eficiencia en la ejecución de las tareas asignadas. Como parte del seguimiento al cumplimiento del Plan de Acción, se consolidó un espacio de planificación estratégica orientado no solo a estructurar las acciones a desarrollar, sino también a garantizar una gestión oportuna de las solicitudes recibidas desde distintas dependencias. En este contexto, se fortaleció el control sobre la atención a Peticiones, Quejas, Reclamos y Sugerencias (PQRS), derechos de petición y otros requerimientos, asegurando su correcta tramitación por parte de los responsables. Adicionalmente, como medida de control permanente, se revisan de forma sistemática las cuentas de cobro presentadas por los contratistas, verificando que las bandejas de ARGO se encuentren al día y sin derechos de petición pendientes por responder, como requisito indispensable para su aprobación. Estas acciones, junto con el seguimiento riguroso a los canales institucionales y la trazabilidad de las solicitudes, han permitido mantener una comunicación efectiva y transparente. Esto ha contribuido a mitigar posibles riesgos de carácter reputacional o administrativo, como el aumento de las PQRSD o la apertura de investigaciones penales, fiscales o disciplinarias, al garantizar una divulgación oportuna y adecuada de la información institucional y sectorial a través de los medios internos y externos del Ministerio. | AT15: No | AU15: Se requiere que la evidencia soporte las acciones estratégicas y el seguimiento realizado a corte 30 de marzo. No se adjunta evidencia
A16: 9 | B16: GESTIÓN DE COMUNICACIONES | C16: Gestión | D16: Posibilidad de afectacion económico y reputacional por Demandas de los grupos de valor, partes interesadas, usuarios por incumplimiento de contenga la estrategia institucional a realizar a través de los diferentes canales de comunicación del Ministerio de Minas y Energía debido a Ausencia de un Plan Estratégico de Comunicaciones | E16: económico y reputacional | F16: Demandas de los grupos de valor, partes interesadas, usuarios por incumplimiento de contenga la estrategia institucional a realizar a través de los diferentes canales de comunicación del Ministerio de Minas y Energía | G16: Ausencia de un Plan Estratégico de Comunicaciones | H16: Ejecucion y Administracion de procesos | I16: 50 | J16: Media | K16: =IF(J16="","",IF(J16="Muy Baja",0.2,IF(J16="Baja",0.4,IF(J16="Media",0.6,IF(J16="Alta",0.8,IF(J16="Muy Alta",1,)))))) -> 0.6 | L16: Mayor a 500 SMLMV | M16: =IF(NOT(ISERROR(MATCH(L16,'[5]Tabla Impacto'!#REF!,0))),'[5]Tabla Impacto'!$F$229&"Por favor no seleccionar los criterios de impacto(Afectación Económica o presupuestal y Pérdida Reputacional)",L16) -> Mayor a 500 SMLMV | N16: =IF(OR(M16='[5]Tabla Impacto'!$C$11,M16='[5]Tabla Impacto'!$D$11),"Leve",IF(OR(M16='[5]Tabla Impacto'!$C$12,M16='[5]Tabla Impacto'!$D$12),"Menor",IF(OR(M16='[5]Tabla Impacto'!$C$13,M16='[5]Tabla Impacto'!$D$13),"Moderado",IF(OR(M16='[5]Tabla Impacto'!$C$14,M16='[5]Tabla Impacto'!$D$14),"Mayor",IF(OR(M16='[5]Tabla Impacto'!$C$15,M16='[5]Tabla Impacto'!$D$15),"Catastrófico",""))))) -> Catastrófico | O16: =IF(N16="","",IF(N16="Leve",0.2,IF(N16="Menor",0.4,IF(N16="Moderado",0.6,IF(N16="Mayor",0.8,IF(N16="Catastrófico",1,)))))) -> 1 | P16: =IF(OR(AND(J16="Muy Baja",N16="Leve"),AND(J16="Muy Baja",N16="Menor"),AND(J16="Baja",N16="Leve")),"Bajo",IF(OR(AND(J16="Muy baja",N16="Moderado"),AND(J16="Baja",N16="Menor"),AND(J16="Baja",N16="Moderado"),AND(J16="Media",N16="Leve"),AND(J16="Media",N16="Menor"),AND(J16="Media",N16="Moderado"),AND(J16="Alta",N16="Leve"),AND(J16="Alta",N16="Menor")),"Moderado",IF(OR(AND(J16="Muy Baja",N16="Mayor"),AND(J16="Baja",N16="Mayor"),AND(J16="Media",N16="Mayor"),AND(J16="Alta",N16="Moderado"),AND(J16="Alta",N16="Mayor"),AND(J16="Muy Alta",N16="Leve"),AND(J16="Muy Alta",N16="Menor"),AND(J16="Muy Alta",N16="Moderado"),AND(J16="Muy Alta",N16="Mayor")),"Alto",IF(OR(AND(J16="Muy Baja",N16="Catastrófico"),AND(J16="Baja",N16="Catastrófico"),AND(J16="Media",N16="Catastrófico"),AND(J16="Alta",N16="Catastrófico"),AND(J16="Muy Alta",N16="Catastrófico")),"Extremo","")))) -> Extremo | Q16: 1 | R16: La Lider SIG, gestion y calidad, realiza seguimiento al plan de comunicaciones y verifica el cumplimiento de los indicadores, en caso de encontrar desviaciones en el control, solicita ajustes respectivos | S16: Lideo SIG y Gestor de Calidad | T16: Formulación del plan de comunicaciones Realizar seguimiento al plan de comunicaciones Meición del plan de comunicaciones a través de indicadores | U16: Plan de comunicaciones Seguimientos al plan de comunicaciones Reporte de indicadores | V16: Probabilidad | W16: Preventivo | X16: Manual | Y16: 40% | Z16: Sin Documentar | AA16: Continua | AB16: Con Registro | AC16: =IFERROR(IF(V16="Probabilidad",(K16-(+K16*Y16)),IF(V16="Impacto",K16,"")),"") -> 0.36 | AD16: =IFERROR(IF(AC16="","",IF(AC16<=0.2,"Muy Baja",IF(AC16<=0.4,"Baja",IF(AC16<=0.6,"Media",IF(AC16<=0.8,"Alta","Muy Alta"))))),"") -> Baja | AE16: =+AC16 -> 0.36 | AF16: =IFERROR(IF(AG16="","",IF(AG16<=0.2,"Leve",IF(AG16<=0.4,"Menor",IF(AG16<=0.6,"Moderado",IF(AG16<=0.8,"Mayor","Catastrófico"))))),"") -> Catastrófico | AG16: =IFERROR(IF(V16="Impacto",(O16-(+O16*Y16)),IF(V16="Probabilidad",O16,"")),"") -> 1 | AH16: =IFERROR(IF(OR(AND(AD16="Muy Baja",AF16="Leve"),AND(AD16="Muy Baja",AF16="Menor"),AND(AD16="Baja",AF16="Leve")),"Bajo",IF(OR(AND(AD16="Muy baja",AF16="Moderado"),AND(AD16="Baja",AF16="Menor"),AND(AD16="Baja",AF16="Moderado"),AND(AD16="Media",AF16="Leve"),AND(AD16="Media",AF16="Menor"),AND(AD16="Media",AF16="Moderado"),AND(AD16="Alta",AF16="Leve"),AND(AD16="Alta",AF16="Menor")),"Moderado",IF(OR(AND(AD16="Muy Baja",AF16="Mayor"),AND(AD16="Baja",AF16="Mayor"),AND(AD16="Media",AF16="Mayor"),AND(AD16="Alta",AF16="Moderado"),AND(AD16="Alta",AF16="Mayor"),AND(AD16="Muy Alta",AF16="Leve"),AND(AD16="Muy Alta",AF16="Menor"),AND(AD16="Muy Alta",AF16="Moderado"),AND(AD16="Muy Alta",AF16="Mayor")),"Alto",IF(OR(AND(AD16="Muy Baja",AF16="Catastrófico"),AND(AD16="Baja",AF16="Catastrófico"),AND(AD16="Media",AF16="Catastrófico"),AND(AD16="Alta",AF16="Catastrófico"),AND(AD16="Muy Alta",AF16="Catastrófico")),"Extremo","")))),"") -> Extremo | AI16: Evitar | AN16: Lideo SIG y Gestor de Calidad | AO16: Grupo de Comunicaciones y Prensa | AP16: Laura Vanessa Gomez Charris | AQ16: 2025-02-01 | AR16: 30/04/2025 | AS16: Durante el primer trimestre de 2025, el Grupo de Comunicaciones y Prensa sostuvo reuniones presenciales semanales con el objetivo de diseñar e implementar estrategias orientadas a fortalecer el conocimiento, la apropiación y la participación activa de la ciudadanía en torno a la Transición Energética Justa. En este marco, se habilitó un espacio de trabajo específico para socializar y estructurar el plan de comunicación, donde se definieron las líneas estratégicas a implementar a través de los distintos canales del Ministerio de Minas y Energía. Cabe resaltar que, durante este periodo, se presentó un cambio en la dirección del Ministerio, así como en la jefatura del Grupo de Comunicaciones y Prensa. Esto ha implicado un ajuste progresivo en el enfoque comunicacional, que actualmente se encuentra en proceso de alineación con los nuevos lineamientos institucionales. A pesar de esta transición, se ha mantenido el compromiso con una comunicación estratégica que vaya más allá de la simple difusión de información, buscando generar un vínculo activo y reflexivo con la ciudadanía. El énfasis ha estado en posicionar la Transición Energética Justa como un proceso integral que no solo promueve el paso hacia energías limpias, sino que también representa una oportunidad para dinamizar las economías locales, organizar la actividad minera, reducir la pobreza energética y contribuir a la construcción de paz desde la equidad territorial. | AT16: No | AU16: Se requiere dejar soporte del plan y la construcción mencionada; para posteriores seguimientos adjuntar seguimiento a su cumplimiento
A17: 10 | B17: GESTIÓN TECNOLÓGICA | C17: Gestión | D17: Posibilidad de afectacion económico y reputacional por Generación de sobrecostos por redundancia de software en sistemas de información y herramientas tecnologías que ya se encuentran en funcionamiento dentro de la infraestructura de la entidad, baja gobernanza sobre la soberanía de datos y aumento de brechas en seguridad. debido a Ausencia de normativas y controles obligatorios para la supervisión y aprobación de adquisiciones y desarrollos tecnológicos por parte del Ministerio y Ausencia de mecanismos de control y seguimiento continuo sobre los contratos TIC, permitiendo su ejecución sin auditoría técnica, financiera y de cumplimiento. | E17: económico y reputacional | F17: Generación de sobrecostos por redundancia de software en sistemas de información y herramientas tecnologías que ya se encuentran en funcionamiento dentro de la infraestructura de la entidad, baja gobernanza sobre la soberanía de datos y aumento de brechas en seguridad. | G17: Ausencia de normativas y controles obligatorios para la supervisión y aprobación de adquisiciones y desarrollos tecnológicos por parte del Ministerio y Ausencia de mecanismos de control y seguimiento continuo sobre los contratos TIC, permitiendo su ejecución sin auditoría técnica, financiera y de cumplimiento. | H17: Ejecucion y Administracion de procesos | I17: 12 | J17: Baja | K17: 0.4 | L17: Entre 100 y 500 SMLMV | M17: =IF(NOT(ISERROR(MATCH(L17,'[5]Tabla Impacto'!#REF!,0))),'[5]Tabla Impacto'!$F$229&"Por favor no seleccionar los criterios de impacto(Afectación Económica o presupuestal y Pérdida Reputacional)",L17) -> Entre 100 y 500 SMLMV | N17: =IF(OR(M17='[5]Tabla Impacto'!$C$11,M17='[5]Tabla Impacto'!$D$11),"Leve",IF(OR(M17='[5]Tabla Impacto'!$C$12,M17='[5]Tabla Impacto'!$D$12),"Menor",IF(OR(M17='[5]Tabla Impacto'!$C$13,M17='[5]Tabla Impacto'!$D$13),"Moderado",IF(OR(M17='[5]Tabla Impacto'!$C$14,M17='[5]Tabla Impacto'!$D$14),"Mayor",IF(OR(M17='[5]Tabla Impacto'!$C$15,M17='[5]Tabla Impacto'!$D$15),"Catastrófico",""))))) -> Mayor | O17: 0.8 | P17: Alto | Q17: 1 | R17: El contratista de segudidad de la información verifica que exista el lineamiento institucional para la adquisición y desarrollos tecnológicos alineados con la estrategia TIC del ministerio, adicionalmente, valida que haya una supervisión y auditoría trimestral a los proyectos tecnológicos en ejecución, verificando cumplimiento, trazabilidad y uso eficiente del presupuesto, igualmente, verifica que inventario de activos de Información se encuentre actualizado, asegurando que toda nueva adquisición o desarrollo sea registrado y gestionado adecuadamente | S17: contratista- Seguridad de la información | T17: 1. Establecer un lineamiento institucional para la adquisición y desarrollos tecnológicos alineados con la estrategia TIC del ministerio. Que cuente con la aprobación del grupo TIC. 2. Supervisar y auditar trimestralmente los proyectos tecnológicos en ejecución, verificando cumplimiento, trazabilidad y uso eficiente del presupuesto. 3. Actualizar y mantener el inventario de activos de Información, asegurando que toda nueva adquisición o desarrollo sea registrado y gestionado adecuadamente. | U17: 1. Lineamiento institucional y actas de aprobación o rechazo de adquisiciones y desarrollos tecnológicos, documentadas en el sistema de gestión del Grupo TIC. 2. Reportes de auditoría trimestral sobre el cumplimiento del procedimiento de supervisión de proyectos TIC, con hallazgos y acciones correctivas. 3. Registro actualizado en el Inventario de Activos de Información, reflejando cada adquisición o desarrollo aprobado, su responsable y estado de uso. | V17: =IF(OR(W17="Preventivo",W17="Detectivo"),"Probabilidad",IF(W17="Correctivo","Impacto","")) -> Probabilidad | W17: Preventivo | X17: Manual | Y17: =IF(AND(W17="Preventivo",X17="Automático"),"50%",IF(AND(W17="Preventivo",X17="Manual"),"40%",IF(AND(W17="Detectivo",X17="Automático"),"40%",IF(AND(W17="Detectivo",X17="Manual"),"30%",IF(AND(W17="Correctivo",X17="Automático"),"35%",IF(AND(W17="Correctivo",X17="Manual"),"25%","")))))) -> 40% | Z17: Sin Documentar | AA17: Continua | AB17: Con Registro | AC17: 0.24 | AD17: Baja | AE17: 0.24 | AF17: Mayor | AG17: 0.8 | AH17: Alto | AI17: Evitar | AJ17: Documentar el procedimiento de adquisición de software o herramientas de tecnología | AK17: Andrés Molano- contratista- Seguridad de la información | AL17: 2025-04-20 | AM17: 2025-06-30 | AN17: contratista- Seguridad de la información | AO17: Grupo de Tecnologías de la Información y las Comunicaciones TICS. | AP17: Andrés Alejandro Ayure- Coordinador Grupo TICS | AQ17: 2025-02-21 | AR17: 2025-12-31 | AU17: No se realizó reporte por parte de la primera línea
A18: 11 | B18: GESTIÓN TECNOLÓGICA | C18: Gestión | D18: Posibilidad de afectacion económico y reputacional por Retrasos en la ejecución presupuestal, sobrecostos y afectación en la continuidad operativa debido a Ausencia de un mecanismo de planeación estratégica que permita programar con antelación las necesidades tecnológicas y optimizar la ejecución del presupuesto TIC. | E18: económico y reputacional | F18: Retrasos en la ejecución presupuestal, sobrecostos y afectación en la continuidad operativa | G18: Ausencia de un mecanismo de planeación estratégica que permita programar con antelación las necesidades tecnológicas y optimizar la ejecución del presupuesto TIC. | H18: Ejecucion y Administracion de procesos | I18: 2 | J18: Muy Baja | K18: =IF(J18="","",IF(J18="Muy Baja",0.2,IF(J18="Baja",0.4,IF(J18="Media",0.6,IF(J18="Alta",0.8,IF(J18="Muy Alta",1,)))))) -> 0.2 | L18: Entre 100 y 500 SMLMV | M18: =IF(NOT(ISERROR(MATCH(L18,'[5]Tabla Impacto'!#REF!,0))),'[5]Tabla Impacto'!$F$229&"Por favor no seleccionar los criterios de impacto(Afectación Económica o presupuestal y Pérdida Reputacional)",L18) -> Entre 100 y 500 SMLMV | N18: =IF(OR(M18='[5]Tabla Impacto'!$C$11,M18='[5]Tabla Impacto'!$D$11),"Leve",IF(OR(M18='[5]Tabla Impacto'!$C$12,M18='[5]Tabla Impacto'!$D$12),"Menor",IF(OR(M18='[5]Tabla Impacto'!$C$13,M18='[5]Tabla Impacto'!$D$13),"Moderado",IF(OR(M18='[5]Tabla Impacto'!$C$14,M18='[5]Tabla Impacto'!$D$14),"Mayor",IF(OR(M18='[5]Tabla Impacto'!$C$15,M18='[5]Tabla Impacto'!$D$15),"Catastrófico",""))))) -> Mayor | O18: =IF(N18="","",IF(N18="Leve",0.2,IF(N18="Menor",0.4,IF(N18="Moderado",0.6,IF(N18="Mayor",0.8,IF(N18="Catastrófico",1,)))))) -> 0.8 | P18: =IF(OR(AND(J18="Muy Baja",N18="Leve"),AND(J18="Muy Baja",N18="Menor"),AND(J18="Baja",N18="Leve")),"Bajo",IF(OR(AND(J18="Muy baja",N18="Moderado"),AND(J18="Baja",N18="Menor"),AND(J18="Baja",N18="Moderado"),AND(J18="Media",N18="Leve"),AND(J18="Media",N18="Menor"),AND(J18="Media",N18="Moderado"),AND(J18="Alta",N18="Leve"),AND(J18="Alta",N18="Menor")),"Moderado",IF(OR(AND(J18="Muy Baja",N18="Mayor"),AND(J18="Baja",N18="Mayor"),AND(J18="Media",N18="Mayor"),AND(J18="Alta",N18="Moderado"),AND(J18="Alta",N18="Mayor"),AND(J18="Muy Alta",N18="Leve"),AND(J18="Muy Alta",N18="Menor"),AND(J18="Muy Alta",N18="Moderado"),AND(J18="Muy Alta",N18="Mayor")),"Alto",IF(OR(AND(J18="Muy Baja",N18="Catastrófico"),AND(J18="Baja",N18="Catastrófico"),AND(J18="Media",N18="Catastrófico"),AND(J18="Alta",N18="Catastrófico"),AND(J18="Muy Alta",N18="Catastrófico")),"Extremo","")))) -> Alto | Q18: 1 | R18: El funcionario del Grupo TICs, verifica que se realice el cumplimiento del cronograma anual de contrataciones TIC, que este se encuentre actualizado para que garantice la optimización del presupuesto y la oportunidad en las compras; adicionalmente, realiza control y seguimiento a los contratos TIC suscritos | S18: Funcionario | T18: 1. Implementar un cronograma anual de contrataciones TIC alineado con el presupuesto y las necesidades operativas del ministerio. 2. Actualizar y mantener un plan de adquisiciones tecnológicas que garantice la optimización del presupuesto y la oportunidad en las compras. 3. Control y seguimiento trimestralmente los contratos TIC, verificando entregables, costos y calidad de los productos adquiridos. | U18: 1. Plan Anual de Contrataciones TIC, con cronogramas de ejecución y seguimiento. 2. Registro actualizado en el sistema de adquisiciones TIC, reflejando el estado de cada proceso de contratación. 3. Informes de calidad de cierre | V18: Probabilidad | W18: Preventivo | X18: Manual | Y18: 40% | Z18: Documentado | AA18: Continua | AB18: Con Registro | AC18: =IFERROR(IF(V18="Probabilidad",(K18-(+K18*Y18)),IF(V18="Impacto",K18,"")),"") -> 0.12 | AD18: =IFERROR(IF(AC18="","",IF(AC18<=0.2,"Muy Baja",IF(AC18<=0.4,"Baja",IF(AC18<=0.6,"Media",IF(AC18<=0.8,"Alta","Muy Alta"))))),"") -> Muy Baja | AE18: =+AC18 -> 0.12 | AF18: =IFERROR(IF(AG18="","",IF(AG18<=0.2,"Leve",IF(AG18<=0.4,"Menor",IF(AG18<=0.6,"Moderado",IF(AG18<=0.8,"Mayor","Catastrófico"))))),"") -> Mayor | AG18: =IFERROR(IF(V18="Impacto",(O18-(+O18*Y18)),IF(V18="Probabilidad",O18,"")),"") -> 0.8 | AH18: =IFERROR(IF(OR(AND(AD18="Muy Baja",AF18="Leve"),AND(AD18="Muy Baja",AF18="Menor"),AND(AD18="Baja",AF18="Leve")),"Bajo",IF(OR(AND(AD18="Muy baja",AF18="Moderado"),AND(AD18="Baja",AF18="Menor"),AND(AD18="Baja",AF18="Moderado"),AND(AD18="Media",AF18="Leve"),AND(AD18="Media",AF18="Menor"),AND(AD18="Media",AF18="Moderado"),AND(AD18="Alta",AF18="Leve"),AND(AD18="Alta",AF18="Menor")),"Moderado",IF(OR(AND(AD18="Muy Baja",AF18="Mayor"),AND(AD18="Baja",AF18="Mayor"),AND(AD18="Media",AF18="Mayor"),AND(AD18="Alta",AF18="Moderado"),AND(AD18="Alta",AF18="Mayor"),AND(AD18="Muy Alta",AF18="Leve"),AND(AD18="Muy Alta",AF18="Menor"),AND(AD18="Muy Alta",AF18="Moderado"),AND(AD18="Muy Alta",AF18="Mayor")),"Alto",IF(OR(AND(AD18="Muy Baja",AF18="Catastrófico"),AND(AD18="Baja",AF18="Catastrófico"),AND(AD18="Media",AF18="Catastrófico"),AND(AD18="Alta",AF18="Catastrófico"),AND(AD18="Muy Alta",AF18="Catastrófico")),"Extremo","")))),"") -> Alto | AI18: Evitar | AN18: Funcionario | AO18: Grupo de Tecnologías de la Información y las Comunicaciones TICS. | AP18: Andrés Alejandro Ayure- Coordinador Grupo TICS | AQ18: 2025-02-21 | AR18: 2025-12-31 | AU18: No se realizó reporte por parte de la primera línea
A19: 12 | B19: GESTIÓN TECNOLÓGICA | C19: Gestión | D19: Posibilidad de afectacion económico y reputacional por Generación de sobrecostos y desperdicio de recursos TIC debido a la falta de monitoreo y optimización de la infraestructura tecnológica del ministerio, lo que impacta la eficiencia operativa y la sostenibilidad del gasto. debido a Ausencia de un proceso de gestión, monitoreo y optimización de la infraestructura tecnológica, permitiendo el subuso, sobrecarga o inadecuada distribución de los recursos TIC. | E19: económico y reputacional | F19: Generación de sobrecostos y desperdicio de recursos TIC debido a la falta de monitoreo y optimización de la infraestructura tecnológica del ministerio, lo que impacta la eficiencia operativa y la sostenibilidad del gasto. | G19: Ausencia de un proceso de gestión, monitoreo y optimización de la infraestructura tecnológica, permitiendo el subuso, sobrecarga o inadecuada distribución de los recursos TIC. | H19: Ejecucion y Administracion de procesos | I19: 2 | J19: Muy Baja | K19: 0.2 | L19: Entre 50 y 100 SMLMV | M19: =IF(NOT(ISERROR(MATCH(L19,'[5]Tabla Impacto'!#REF!,0))),'[5]Tabla Impacto'!$F$229&"Por favor no seleccionar los criterios de impacto(Afectación Económica o presupuestal y Pérdida Reputacional)",L19) -> Entre 50 y 100 SMLMV | N19: =IF(OR(M19='[5]Tabla Impacto'!$C$11,M19='[5]Tabla Impacto'!$D$11),"Leve",IF(OR(M19='[5]Tabla Impacto'!$C$12,M19='[5]Tabla Impacto'!$D$12),"Menor",IF(OR(M19='[5]Tabla Impacto'!$C$13,M19='[5]Tabla Impacto'!$D$13),"Moderado",IF(OR(M19='[5]Tabla Impacto'!$C$14,M19='[5]Tabla Impacto'!$D$14),"Mayor",IF(OR(M19='[5]Tabla Impacto'!$C$15,M19='[5]Tabla Impacto'!$D$15),"Catastrófico",""))))) -> Moderado | O19: 0.6 | P19: Moderado | Q19: 1 | R19: El contratista de infraestuctura tecnológica valida trimestralmente la capacidad y carga de la infraestructura, optimizando su uso antes de realizar nuevas adquisiciones; en caso de encontrar desviaciones procede a la informar lo encontrado para ajustar los recursos | S19: Contratista- Infraestructura tecnológica | T19: Supervisar trimestralmente la capacidad y carga de la infraestructura, optimizando su uso antes de realizar nuevas adquisiciones; en caso de encontrar desviaciones procede a la informar | U19: Actas de auditoría y revisión de capacidad, identificando necesidades reales de adquisición o ajuste de recursos. | V19: Probabilidad | W19: Preventivo | X19: Manual | Y19: 40% | Z19: Documentado | AA19: Continua | AB19: Con Registro | AC19: 0.12 | AD19: Muy Baja | AE19: 0.12 | AF19: Moderado | AG19: 0.6 | AH19: Moderado | AI19: Evitar | AN19: Contratista- Infraestructura tecnológica | AO19: Grupo de Tecnologías de la Información y las Comunicaciones TICS. | AP19: Andrés Alejandro Ayure- Coordinador Grupo TICS | AQ19: 2025-02-21 | AR19: 2025-12-31 | AU19: No se realizó reporte por parte de la primera línea
A20: 13 | B20: GESTIÓN DEL CONOCIMIENTO, LA INFORMACIÓN Y LA INNOVACIÓN | C20: Gestión | D20: Posibilidad de afectacion económico y reputacional por Pérdida de conocimiento estratégico debido a baja capacidad de transferencia y difusión del conocimiento en los procesos llevados a cabo dentro del Ministerio | E20: económico y reputacional | F20: Pérdida de conocimiento estratégico | G20: baja capacidad de transferencia y difusión del conocimiento en los procesos llevados a cabo dentro del Ministerio | H20: Ejecucion y Administracion de procesos | I20: 10 | J20: Baja | K20: =IF(J20="","",IF(J20="Muy Baja",0.2,IF(J20="Baja",0.4,IF(J20="Media",0.6,IF(J20="Alta",0.8,IF(J20="Muy Alta",1,)))))) -> 0.4 | L20: El riesgo afecta la imagen de la entidad a nivel nacional, con efecto publicitarios sostenible a nivel país | M20: =IF(NOT(ISERROR(MATCH(L20,'[5]Tabla Impacto'!#REF!,0))),'[5]Tabla Impacto'!$F$229&"Por favor no seleccionar los criterios de impacto(Afectación Económica o presupuestal y Pérdida Reputacional)",L20) -> El riesgo afecta la imagen de la entidad a nivel nacional, con efecto publicitarios sostenible a nivel país | N20: =IF(OR(M20='[5]Tabla Impacto'!$C$11,M20='[5]Tabla Impacto'!$D$11),"Leve",IF(OR(M20='[5]Tabla Impacto'!$C$12,M20='[5]Tabla Impacto'!$D$12),"Menor",IF(OR(M20='[5]Tabla Impacto'!$C$13,M20='[5]Tabla Impacto'!$D$13),"Moderado",IF(OR(M20='[5]Tabla Impacto'!$C$14,M20='[5]Tabla Impacto'!$D$14),"Mayor",IF(OR(M20='[5]Tabla Impacto'!$C$15,M20='[5]Tabla Impacto'!$D$15),"Catastrófico",""))))) -> Catastrófico | O20: =IF(N20="","",IF(N20="Leve",0.2,IF(N20="Menor",0.4,IF(N20="Moderado",0.6,IF(N20="Mayor",0.8,IF(N20="Catastrófico",1,)))))) -> 1 | P20: =IF(OR(AND(J20="Muy Baja",N20="Leve"),AND(J20="Muy Baja",N20="Menor"),AND(J20="Baja",N20="Leve")),"Bajo",IF(OR(AND(J20="Muy baja",N20="Moderado"),AND(J20="Baja",N20="Menor"),AND(J20="Baja",N20="Moderado"),AND(J20="Media",N20="Leve"),AND(J20="Media",N20="Menor"),AND(J20="Media",N20="Moderado"),AND(J20="Alta",N20="Leve"),AND(J20="Alta",N20="Menor")),"Moderado",IF(OR(AND(J20="Muy Baja",N20="Mayor"),AND(J20="Baja",N20="Mayor"),AND(J20="Media",N20="Mayor"),AND(J20="Alta",N20="Moderado"),AND(J20="Alta",N20="Mayor"),AND(J20="Muy Alta",N20="Leve"),AND(J20="Muy Alta",N20="Menor"),AND(J20="Muy Alta",N20="Moderado"),AND(J20="Muy Alta",N20="Mayor")),"Alto",IF(OR(AND(J20="Muy Baja",N20="Catastrófico"),AND(J20="Baja",N20="Catastrófico"),AND(J20="Media",N20="Catastrófico"),AND(J20="Alta",N20="Catastrófico"),AND(J20="Muy Alta",N20="Catastrófico")),"Extremo","")))) -> Extremo | Q20: 1 | R20: El grupo de Comunicaciones, realiza la formulación del plan de comunicaciones, posteriormente realizar seguimiento al plan, a través de reuniones que documentan los trabajado en las mesas de trabajo | S20: Contratista encargado de los procesos de gestión del conocimiento y la innovación delegado por la Subdirectora de Talento Humano Subdirectora de Talento Humano | T20: Formular, aprobar y ejecutar un plan de trabajo que logre identificar y evitar la pérdida de conocimiento estratégico del ministerio, el plan contiene acciones de transferencia y difusión del conocimiento Realizar actividades de seguimiento al plan establecido; en caso de encontrar desviaciones en la ejecución del plan se tomarán acciones correctivas para lograr el objetivo del plan | U20: Diagnóstico del estado de la información Estadísticas Documentos word y excel Elementos de comunicación estratégica | V20: =IF(OR(W20="Preventivo",W20="Detectivo"),"Probabilidad",IF(W20="Correctivo","Impacto","")) -> Probabilidad | W20: Preventivo | X20: Manual | Y20: =IF(AND(W20="Preventivo",X20="Automático"),"50%",IF(AND(W20="Preventivo",X20="Manual"),"40%",IF(AND(W20="Detectivo",X20="Automático"),"40%",IF(AND(W20="Detectivo",X20="Manual"),"30%",IF(AND(W20="Correctivo",X20="Automático"),"35%",IF(AND(W20="Correctivo",X20="Manual"),"25%","")))))) -> 40% | Z20: Sin Documentar | AA20: Continua | AB20: Con Registro | AC20: =IFERROR(IF(V20="Probabilidad",(K20-(+K20*Y20)),IF(V20="Impacto",K20,"")),"") -> 0.24 | AD20: =IFERROR(IF(AC20="","",IF(AC20<=0.2,"Muy Baja",IF(AC20<=0.4,"Baja",IF(AC20<=0.6,"Media",IF(AC20<=0.8,"Alta","Muy Alta"))))),"") -> Baja | AE20: =+AC20 -> 0.24 | AF20: =IFERROR(IF(AG20="","",IF(AG20<=0.2,"Leve",IF(AG20<=0.4,"Menor",IF(AG20<=0.6,"Moderado",IF(AG20<=0.8,"Mayor","Catastrófico"))))),"") -> Catastrófico | AG20: =IFERROR(IF(V20="Impacto",(O20-(+O20*Y20)),IF(V20="Probabilidad",O20,"")),"") -> 1 | AH20: =IFERROR(IF(OR(AND(AD20="Muy Baja",AF20="Leve"),AND(AD20="Muy Baja",AF20="Menor"),AND(AD20="Baja",AF20="Leve")),"Bajo",IF(OR(AND(AD20="Muy baja",AF20="Moderado"),AND(AD20="Baja",AF20="Menor"),AND(AD20="Baja",AF20="Moderado"),AND(AD20="Media",AF20="Leve"),AND(AD20="Media",AF20="Menor"),AND(AD20="Media",AF20="Moderado"),AND(AD20="Alta",AF20="Leve"),AND(AD20="Alta",AF20="Menor")),"Moderado",IF(OR(AND(AD20="Muy Baja",AF20="Mayor"),AND(AD20="Baja",AF20="Mayor"),AND(AD20="Media",AF20="Mayor"),AND(AD20="Alta",AF20="Moderado"),AND(AD20="Alta",AF20="Mayor"),AND(AD20="Muy Alta",AF20="Leve"),AND(AD20="Muy Alta",AF20="Menor"),AND(AD20="Muy Alta",AF20="Moderado"),AND(AD20="Muy Alta",AF20="Mayor")),"Alto",IF(OR(AND(AD20="Muy Baja",AF20="Catastrófico"),AND(AD20="Baja",AF20="Catastrófico"),AND(AD20="Media",AF20="Catastrófico"),AND(AD20="Alta",AF20="Catastrófico"),AND(AD20="Muy Alta",AF20="Catastrófico")),"Extremo","")))),"") -> Extremo | AI20: Evitar | AN20: Contratista encargado de los procesos de gestión del conocimiento y la innovación delegado por la Subdirectora de Talento Humano | AO20: Subdirección de Talento Humano | AP20: Subdirectora de Talento Humano | AQ20: 2025-02-01 | AR20: 2025-12-31 | AS20: 1.Aplicación del Autodiagnóstico de la Política de Gestión del Conocimiento y la Innovación, a través de la herramienta dispuesta por el Modelo Integrado de Planeación y Gestión (MIPG). 2. Formalización de documentos de buenas prácticas y lecciones aprendidas, en articulación con la OFICINA ASESORA DE PLANEACIÓN. 3.Socialización de herramientas disponibles para la transferencia del conocimiento, con el objetivo de promover su uso y apropiación entre los servidores públicos. 4.Primera actividad del 'Rincón del Conocimiento', enfocada en la construcción participativa de un mapa de conocimiento sobre la Transición Energética Justa (TEJ). | AT20: No | AU20: No se evidencia soporte de la ejecución del control, se requiere evidencias del plan y el seguimiento a la fecha
A21: 14 | B21: GESTIÓN JURÍDICA | C21: Gestión | D21: Posibilidad de afectacion económico por sanciones de entes de control por imposibilidad de realizar el cobro del título ejecutivo debido a incumplimiento de las caracteristicas legales que soporten la exigibilidad del título | E21: económico | F21: sanciones de entes de control por imposibilidad de realizar el cobro del título ejecutivo | G21: incumplimiento de las caracteristicas legales que soporten la exigibilidad del título | H21: Ejecucion y Administracion de procesos | I21: 80 | J21: Media | K21: 0.6 | L21: Entre 100 y 500 SMLMV | M21: =IF(NOT(ISERROR(MATCH(L21,'[5]Tabla Impacto'!#REF!,0))),'[5]Tabla Impacto'!$F$229&"Por favor no seleccionar los criterios de impacto(Afectación Económica o presupuestal y Pérdida Reputacional)",L21) -> Entre 100 y 500 SMLMV | N21: =IF(OR(M21='[5]Tabla Impacto'!$C$11,M21='[5]Tabla Impacto'!$D$11),"Leve",IF(OR(M21='[5]Tabla Impacto'!$C$12,M21='[5]Tabla Impacto'!$D$12),"Menor",IF(OR(M21='[5]Tabla Impacto'!$C$13,M21='[5]Tabla Impacto'!$D$13),"Moderado",IF(OR(M21='[5]Tabla Impacto'!$C$14,M21='[5]Tabla Impacto'!$D$14),"Mayor",IF(OR(M21='[5]Tabla Impacto'!$C$15,M21='[5]Tabla Impacto'!$D$15),"Catastrófico",""))))) -> Mayor | O21: 0.8 | P21: Alto | Q21: 1 | R21: El profesional a cargo del proceso, verifica los requisitos del Título Ejecutivo (Claro, Expreso y Exigible) y que cuente con los anexos soporte del mismo (Actos Administrativos y certificación de ejecutoria). El profesional certifica expresamente el cumplimiento o no de requisitos y envía al Coordinador del grupo el proyecto de Auto de Avocar Conocimiento o el proyecto de Memorando devolutivo al área de origen, para que subsane | S21: Profesional | T21: Verifica el cumplimiento de los requisitos del Titulo Ejecutivo en caractríticas legales tales como: claro, expreso y exigible con sus anexos soporte que se encuentran descritos, para que su cobro sea jurídicamente viable. | U21: Correo electrónico de cumplimiento de requisitos legales (sábana) | V21: Probabilidad | W21: Preventivo | X21: Manual | Y21: =IF(AND(W21="Preventivo",X21="Automático"),"50%",IF(AND(W21="Preventivo",X21="Manual"),"40%",IF(AND(W21="Detectivo",X21="Automático"),"40%",IF(AND(W21="Detectivo",X21="Manual"),"30%",IF(AND(W21="Correctivo",X21="Automático"),"35%",IF(AND(W21="Correctivo",X21="Manual"),"25%","")))))) -> 40% | Z21: Sin Documentar | AA21: Continua | AB21: Con Registro | AC21: 0.36 | AD21: Baja | AE21: 0.36 | AF21: Mayor | AG21: 0.8 | AH21: Alto | AI21: Evitar | AJ21: Revisar la Resolución 90430 de 2014 expedida por el Ministerio, con el fin de verificar la necesidad de iniciar un proceso de actualización al Manual de Recaudo de Cartera del Ministerio de Minas y Energía, proceso que culmina con la presentación para aprobación y firma del Sr. Ministro, de un proyecto de Resolución | AK21: Abogado Profesional del grupo coactivos | AL21: 2025-06-30 | AM21: 2025-08-30 | AN21: Abogado Profesional del grupo coactivos | AO21: Grupo de Jurisdicción Coactiva de Secretaría General | AP21: Lelis Francisco Forero | AQ21: 2025-02-21 | AR21: 31/02/2025 | AS21: Durante el primer trimestre de 2025 el grupo de Jurisdicción Coactiva reunió la documentación jurídica pertinente para el estudio y actualización del Manual de Recaudo de Cartera del Ministerio de Minas y Energía | AT21: NO | AU21: Se requiere que para el próximo informe se evidencie si se realizó verificación de títulos ejecutivos; se espera contar con soporte de proceso de actualización del manual
A22: 15 | B22: GESTIÓN JURÍDICA | C22: Gestión | D22: Posibilidad de afectacion reputacional por emitir conceptos jurídicos erróneos, demandas, sanciones y multas debido a a la falta de claridad en la solicitud o que ésta abarque varios temas misionales | E22: reputacional | F22: emitir conceptos jurídicos erróneos, demandas, sanciones y multas | G22: a la falta de claridad en la solicitud o que ésta abarque varios temas misionales | H22: Usuarios, productos y practicas , organizacionales | I22: 36 | J22: Media | K22: =IF(J22="","",IF(J22="Muy Baja",0.2,IF(J22="Baja",0.4,IF(J22="Media",0.6,IF(J22="Alta",0.8,IF(J22="Muy Alta",1,)))))) -> 0.6 | L22: El riesgo afecta la imagen de de la entidad con efecto publicitario sostenido a nivel de sector administrativo, nivel departamental o municipal | M22: =IF(NOT(ISERROR(MATCH(L22,'[5]Tabla Impacto'!#REF!,0))),'[5]Tabla Impacto'!$F$229&"Por favor no seleccionar los criterios de impacto(Afectación Económica o presupuestal y Pérdida Reputacional)",L22) -> El riesgo afecta la imagen de de la entidad con efecto publicitario sostenido a nivel de sector administrativo, nivel departamental o municipal | N22: =IF(OR(M22='[5]Tabla Impacto'!$C$11,M22='[5]Tabla Impacto'!$D$11),"Leve",IF(OR(M22='[5]Tabla Impacto'!$C$12,M22='[5]Tabla Impacto'!$D$12),"Menor",IF(OR(M22='[5]Tabla Impacto'!$C$13,M22='[5]Tabla Impacto'!$D$13),"Moderado",IF(OR(M22='[5]Tabla Impacto'!$C$14,M22='[5]Tabla Impacto'!$D$14),"Mayor",IF(OR(M22='[5]Tabla Impacto'!$C$15,M22='[5]Tabla Impacto'!$D$15),"Catastrófico",""))))) -> Mayor | O22: =IF(N22="","",IF(N22="Leve",0.2,IF(N22="Menor",0.4,IF(N22="Moderado",0.6,IF(N22="Mayor",0.8,IF(N22="Catastrófico",1,)))))) -> 0.8 | P22: =IF(OR(AND(J22="Muy Baja",N22="Leve"),AND(J22="Muy Baja",N22="Menor"),AND(J22="Baja",N22="Leve")),"Bajo",IF(OR(AND(J22="Muy baja",N22="Moderado"),AND(J22="Baja",N22="Menor"),AND(J22="Baja",N22="Moderado"),AND(J22="Media",N22="Leve"),AND(J22="Media",N22="Menor"),AND(J22="Media",N22="Moderado"),AND(J22="Alta",N22="Leve"),AND(J22="Alta",N22="Menor")),"Moderado",IF(OR(AND(J22="Muy Baja",N22="Mayor"),AND(J22="Baja",N22="Mayor"),AND(J22="Media",N22="Mayor"),AND(J22="Alta",N22="Moderado"),AND(J22="Alta",N22="Mayor"),AND(J22="Muy Alta",N22="Leve"),AND(J22="Muy Alta",N22="Menor"),AND(J22="Muy Alta",N22="Moderado"),AND(J22="Muy Alta",N22="Mayor")),"Alto",IF(OR(AND(J22="Muy Baja",N22="Catastrófico"),AND(J22="Baja",N22="Catastrófico"),AND(J22="Media",N22="Catastrófico"),AND(J22="Alta",N22="Catastrófico"),AND(J22="Muy Alta",N22="Catastrófico")),"Extremo","")))) -> Alto | Q22: 1 | R22: El profesional o contratista de la Oficina Asesora Jurídica El coordinador del área, revisa las consultas para establecer que su contenido sea claro o que no abarque varios temas misionales. Si los contenidos no son claros, se solicita al usuario precisar su consulta a través de comunicación escrita, si es claro se da curso a la respuesta. En caso que la línea o temática donde este el concepto esta en construcción, el Coordinador del área dará lineamientos para respuesta al concepto. Una vez proyectado el concepto, el coordinador aprueba la proyección del concepto o devuelve a profesional | S22: El profesional o contratista de la Oficina Asesora Jurídica El coordinador del área | T22: Revisar las consultas para establecer que su contenido sea claro o que no abarque varios temas misionales. Si los contenidos no son claros, se solicita al usuario precisar su consulta a través de comunicación escrita, si es claro se da curso a la respuesta. Dar lineamientos para respuesta al concepto para líneas temáticas en construcción Revisar y aprobar la proyección del concepto | U22: Respuesta a las consultas Alcance de las consultas | V22: Probabilidad | W22: Preventivo | X22: Manual | Y22: =IF(AND(W22="Preventivo",X22="Automático"),"50%",IF(AND(W22="Preventivo",X22="Manual"),"40%",IF(AND(W22="Detectivo",X22="Automático"),"40%",IF(AND(W22="Detectivo",X22="Manual"),"30%",IF(AND(W22="Correctivo",X22="Automático"),"35%",IF(AND(W22="Correctivo",X22="Manual"),"25%","")))))) -> 40% | Z22: Documentado | AA22: Continua | AB22: Con Registro | AC22: 0.36 | AD22: Baja | AE22: 0.36 | AF22: Mayor | AG22: 0.8 | AH22: Alto | AI22: Evitar | AN22: Claudia Milena Valera Profesional Especializado | AO22: Oficina Asesora Jurídica | AP22: Jefe Oficina Asesora Jurídica | AQ22: 2025-02-21 | AR22: 31/02/2025 | AS22: Durante el primer trimestre la Oficina Asesora Jurídica, revisó las consultas para establecer que su contenido sea claro o que no abarque varios temas misionales para emitir el respectivo concepto jurídico. Para el primer trimestre se emitieron 29 conceptos jurídicos. | AT22: NO | AU22: Se evidencia matriz donde se informa que de 29 conceptos ninguno requirió consulta adicional al peticionario
A23: 16 | B23: GESTIÓN JURÍDICA | C23: Gestión | D23: =IF(C23="Fiscal",_xlfn.CONCAT("Posibilidad de efectos dañosos sobre bienes públicos "," por o para ",F23," debido a ",G23),IF(C23="Gestión",_xlfn.CONCAT("Posibilidad de afectacion ",E23," por ",F23," debido a ",G23),"")) -> Posibilidad de afectacion económico y reputacional por fallos en contra debido a actuaciones procesales presentadas fuera de los términos legales | E23: económico y reputacional | F23: fallos en contra | G23: actuaciones procesales presentadas fuera de los términos legales | H23: Ejecucion y Administracion de procesos | I23: 100 | J23: =IF(I23<=0,"",IF(I23<=2,"Muy Baja",IF(I23<=5,"Baja",IF(I23<=19,"Media",IF(I23<=50,"Alta","Muy Alta"))))) -> Muy Alta | K23: 1 | L23: El riesgo afecta la imagen de de la entidad con efecto publicitario sostenido a nivel de sector administrativo, nivel departamental o municipal | M23: =IF(NOT(ISERROR(MATCH(L23,'[6]Tabla Impacto'!$B$221:$B$223,0))),'[6]Tabla Impacto'!$F$223&"Por favor no seleccionar los criterios de impacto(Afectación Económica o presupuestal y Pérdida Reputacional)",L23) -> El riesgo afecta la imagen de de la entidad con efecto publicitario sostenido a nivel de sector administrativo, nivel departamental o municipal | N23: =IF(OR(M23='[6]Tabla Impacto'!$C$11,M23='[6]Tabla Impacto'!$D$11),"Leve",IF(OR(M23='[6]Tabla Impacto'!$C$12,M23='[6]Tabla Impacto'!$D$12),"Menor",IF(OR(M23='[6]Tabla Impacto'!$C$13,M23='[6]Tabla Impacto'!$D$13),"Moderado",IF(OR(M23='[6]Tabla Impacto'!$C$14,M23='[6]Tabla Impacto'!$D$14),"Mayor",IF(OR(M23='[6]Tabla Impacto'!$C$15,M23='[6]Tabla Impacto'!$D$15),"Catastrófico",""))))) -> Mayor | O23: 0.8 | P23: Alto | Q23: 1 | R23: El profesional o contratista de la Oficina Asesora Jurídica a cargo del proceso, realiza seguimiento y verificación del cumplimiento de términos legales, apoyándose en los informes del contratista de seguimiento de procesos y la herramienta de consulta de procesos de la rama judicial | S23: El profesional o contratista de la Oficina Asesora Jurídica a cargo del proceso | T23: Realizar seguimiento y verificación del cumplimiento de términos legales que eviten actuaciones fuera de los términos, teniendo en cuenta el aplicativo de la rama judicial que permita hacer la verificación respectiva | U23: Informes de seguimiento a procesos Verificación aplicativo rama judicial | V23: Probabilidad | W23: Preventivo | X23: Manual | Y23: =IF(AND(W23="Preventivo",X23="Automático"),"50%",IF(AND(W23="Preventivo",X23="Manual"),"40%",IF(AND(W23="Detectivo",X23="Automático"),"40%",IF(AND(W23="Detectivo",X23="Manual"),"30%",IF(AND(W23="Correctivo",X23="Automático"),"35%",IF(AND(W23="Correctivo",X23="Manual"),"25%","")))))) -> 40% | Z23: Documentado | AA23: Continua | AB23: Con Registro | AC23: 0.6 | AD23: Media | AE23: 0.6 | AF23: Mayor | AG23: 0.8 | AH23: Alto | AI23: Evitar | AN23: Claudia Milena Valera Profesional Especializado | AO23: Oficina Asesora Jurídica | AP23: Jefe Oficina Asesora Jurídica | AQ23: 2025-02-21 | AR23: 31/02/2025 | AS23: Durante el primer trimestre 2024, el profesional o contratista de la Oficina Asesora Jurídica a cargo del proceso, realizó seguimiento y verificación del cumplimiento de términos legales, apoyándose en los informes del contratista de seguimiento de procesos y la herramienta de consulta de procesos de la rama judicial, realizando 69 actuaciones procesales. | AT23: NO | AU23: Se evidencia seguimiento realizado a través de la matriz denominadas actuaciones procesales, se recomienda para el próximos seguimiento dejar evidencias de Verificación aplicativo rama judicial vs tiempos reportados en seguimiento de la matriz que se designa para seguimiento
A24: 17 | B24: GESTIÓN JURÍDICA | C24: Gestión | D24: Posibilidad de afectacion reputacional por expedición de actos administrativos ilegales debido a fallas en control de legalidad | E24: reputacional | F24: expedición de actos administrativos ilegales | G24: fallas en control de legalidad | H24: Ejecucion y Administracion de procesos | I24: 120 | J24: Muy Alta | K24: 1 | L24: El riesgo afecta la imagen de de la entidad con efecto publicitario sostenido a nivel de sector administrativo, nivel departamental o municipal | M24: =IF(NOT(ISERROR(MATCH(L24,'[6]Tabla Impacto'!$B$221:$B$223,0))),'[6]Tabla Impacto'!$F$223&"Por favor no seleccionar los criterios de impacto(Afectación Económica o presupuestal y Pérdida Reputacional)",L24) -> El riesgo afecta la imagen de de la entidad con efecto publicitario sostenido a nivel de sector administrativo, nivel departamental o municipal | N24: =IF(OR(M24='[6]Tabla Impacto'!$C$11,M24='[6]Tabla Impacto'!$D$11),"Leve",IF(OR(M24='[6]Tabla Impacto'!$C$12,M24='[6]Tabla Impacto'!$D$12),"Menor",IF(OR(M24='[6]Tabla Impacto'!$C$13,M24='[6]Tabla Impacto'!$D$13),"Moderado",IF(OR(M24='[6]Tabla Impacto'!$C$14,M24='[6]Tabla Impacto'!$D$14),"Mayor",IF(OR(M24='[6]Tabla Impacto'!$C$15,M24='[6]Tabla Impacto'!$D$15),"Catastrófico",""))))) -> Mayor | O24: 0.8 | P24: Alto | Q24: 1 | R24: El profesional o contratista de la Oficina Asesora Jurídica, revisa la legalidad de los actos administrativos dentro del proceso de actuación administrativa en concordancia con el procedimiento de revisión de actos administrativos que hace parte de la documentación del Sistema de Gestión de a Calidad del Minenergía | S24: El profesional o contratista de la Oficina Asesora Jurídica | T24: Revisar la legalidad de los actos administrativos dentro del proceso de actuación administrativa en concordancia con el procedimiento de revisión de actos administrativos que hace parte de la documentación del Sistema de Gestión de a Calidad del Minenergía o aquel que lo modifique o sustituya | U24: Carpeta de actos administrativos | V24: Probabilidad | W24: Preventivo | X24: Manual | Y24: 40% | Z24: Documentado | AA24: Continua | AB24: Con Registro | AC24: 0.6 | AD24: Media | AE24: 0.6 | AF24: Mayor | AG24: 0.8 | AH24: Alto | AI24: Evitar | AN24: Claudia Milena Valera Profesional Especializado | AO24: Oficina Asesora Jurídica | AP24: Jefe Oficina Asesora Jurídica | AQ24: 2025-02-21 | AR24: 31/02/2025 | AS24: Durante el primer trimestre 2024, se llevó a cabo la revisión y proyección de actos administrativos conforme al procedimiento de revisión de actos administrativos que hace parte de la documentación del Sistema de Gestión de a Calidad del Minenergía, para un total de 70 revisiones. | AT24: NO | AU24: Se verifica la existencia de seguimiento realizado a 70 actos administrativos mediante matriz de seguimiento
A25: 18 | B25: GESTIÓN DOCUMENTAL | C25: Gestión | D25: Posibilidad de afectacion reputacional por Incumplimiento a los lineamientos de manejo y organización documental debido a inaplicación del Manual de Organización Documental Archivos de Gestion y Transferencias Documentales Primarias por parte de los funcionarios encargados en las distintas áreas | E25: reputacional | F25: Incumplimiento a los lineamientos de manejo y organización documental | G25: inaplicación del Manual de Organización Documental Archivos de Gestion y Transferencias Documentales Primarias por parte de los funcionarios encargados en las distintas áreas | H25: Ejecucion y Administracion de procesos | I25: 12 | J25: Baja | K25: =IF(J25="","",IF(J25="Muy Baja",0.2,IF(J25="Baja",0.4,IF(J25="Media",0.6,IF(J25="Alta",0.8,IF(J25="Muy Alta",1,)))))) -> 0.4 | L25: El riesgo afecta la imagen de la entidad con algunos usuarios de relevancia frente al logro de los objetivos | M25: =IF(NOT(ISERROR(MATCH(L25,'[5]Tabla Impacto'!#REF!,0))),'[5]Tabla Impacto'!$F$229&"Por favor no seleccionar los criterios de impacto(Afectación Económica o presupuestal y Pérdida Reputacional)",L25) -> El riesgo afecta la imagen de la entidad con algunos usuarios de relevancia frente al logro de los objetivos | N25: =IF(OR(M25='[5]Tabla Impacto'!$C$11,M25='[5]Tabla Impacto'!$D$11),"Leve",IF(OR(M25='[5]Tabla Impacto'!$C$12,M25='[5]Tabla Impacto'!$D$12),"Menor",IF(OR(M25='[5]Tabla Impacto'!$C$13,M25='[5]Tabla Impacto'!$D$13),"Moderado",IF(OR(M25='[5]Tabla Impacto'!$C$14,M25='[5]Tabla Impacto'!$D$14),"Mayor",IF(OR(M25='[5]Tabla Impacto'!$C$15,M25='[5]Tabla Impacto'!$D$15),"Catastrófico",""))))) -> Moderado | O25: =IF(N25="","",IF(N25="Leve",0.2,IF(N25="Menor",0.4,IF(N25="Moderado",0.6,IF(N25="Mayor",0.8,IF(N25="Catastrófico",1,)))))) -> 0.6 | P25: =IF(OR(AND(J25="Muy Baja",N25="Leve"),AND(J25="Muy Baja",N25="Menor"),AND(J25="Baja",N25="Leve")),"Bajo",IF(OR(AND(J25="Muy baja",N25="Moderado"),AND(J25="Baja",N25="Menor"),AND(J25="Baja",N25="Moderado"),AND(J25="Media",N25="Leve"),AND(J25="Media",N25="Menor"),AND(J25="Media",N25="Moderado"),AND(J25="Alta",N25="Leve"),AND(J25="Alta",N25="Menor")),"Moderado",IF(OR(AND(J25="Muy Baja",N25="Mayor"),AND(J25="Baja",N25="Mayor"),AND(J25="Media",N25="Mayor"),AND(J25="Alta",N25="Moderado"),AND(J25="Alta",N25="Mayor"),AND(J25="Muy Alta",N25="Leve"),AND(J25="Muy Alta",N25="Menor"),AND(J25="Muy Alta",N25="Moderado"),AND(J25="Muy Alta",N25="Mayor")),"Alto",IF(OR(AND(J25="Muy Baja",N25="Catastrófico"),AND(J25="Baja",N25="Catastrófico"),AND(J25="Media",N25="Catastrófico"),AND(J25="Alta",N25="Catastrófico"),AND(J25="Muy Alta",N25="Catastrófico")),"Extremo","")))) -> Moderado | Q25: 1 | R25: El funcionario y/o contratistas signados del grupo de GRCGI , realizan acompañamientos a las áreas para la revisión de la organización de los archivos y la preparación de las transferencias, verificando que cumpla y documente de acuerdo con lo establecido en el Manual de Organización Documental Archivos de Gestion y Transferencias Documentales Primarias | S25: Auxiliar administrativo y/o Contratista | T25: Adelantar acompañamientos a las áreas para la revisión de laorganización de los archivos de gestión de aurdo con el Manual Realizar el diligenciamiento de la Matriz de chequeo de cumplimiento de los lineamientos del Manual | U25: Matriz trimestral de chequeo de cumplimeinto o no de linemientos del Manual; Correos; Actas; Planes de mejoramiento | V25: =IF(OR(W25="Preventivo",W25="Detectivo"),"Probabilidad",IF(W25="Correctivo","Impacto","")) -> Probabilidad | W25: Preventivo | X25: Manual | Y25: =IF(AND(W25="Preventivo",X25="Automático"),"50%",IF(AND(W25="Preventivo",X25="Manual"),"40%",IF(AND(W25="Detectivo",X25="Automático"),"40%",IF(AND(W25="Detectivo",X25="Manual"),"30%",IF(AND(W25="Correctivo",X25="Automático"),"35%",IF(AND(W25="Correctivo",X25="Manual"),"25%","")))))) -> 40% | Z25: Documentado | AA25: Continua | AB25: Con Registro | AC25: =IFERROR(IF(V25="Probabilidad",(K25-(+K25*Y25)),IF(V25="Impacto",K25,"")),"") -> 0.24 | AD25: =IFERROR(IF(AC25="","",IF(AC25<=0.2,"Muy Baja",IF(AC25<=0.4,"Baja",IF(AC25<=0.6,"Media",IF(AC25<=0.8,"Alta","Muy Alta"))))),"") -> Baja | AE25: =+AC25 -> 0.24 | AF25: =IFERROR(IF(AG25="","",IF(AG25<=0.2,"Leve",IF(AG25<=0.4,"Menor",IF(AG25<=0.6,"Moderado",IF(AG25<=0.8,"Mayor","Catastrófico"))))),"") -> Moderado | AG25: =IFERROR(IF(V25="Impacto",(O25-(+O25*Y25)),IF(V25="Probabilidad",O25,"")),"") -> 0.6 | AH25: =IFERROR(IF(OR(AND(AD25="Muy Baja",AF25="Leve"),AND(AD25="Muy Baja",AF25="Menor"),AND(AD25="Baja",AF25="Leve")),"Bajo",IF(OR(AND(AD25="Muy baja",AF25="Moderado"),AND(AD25="Baja",AF25="Menor"),AND(AD25="Baja",AF25="Moderado"),AND(AD25="Media",AF25="Leve"),AND(AD25="Media",AF25="Menor"),AND(AD25="Media",AF25="Moderado"),AND(AD25="Alta",AF25="Leve"),AND(AD25="Alta",AF25="Menor")),"Moderado",IF(OR(AND(AD25="Muy Baja",AF25="Mayor"),AND(AD25="Baja",AF25="Mayor"),AND(AD25="Media",AF25="Mayor"),AND(AD25="Alta",AF25="Moderado"),AND(AD25="Alta",AF25="Mayor"),AND(AD25="Muy Alta",AF25="Leve"),AND(AD25="Muy Alta",AF25="Menor"),AND(AD25="Muy Alta",AF25="Moderado"),AND(AD25="Muy Alta",AF25="Mayor")),"Alto",IF(OR(AND(AD25="Muy Baja",AF25="Catastrófico"),AND(AD25="Baja",AF25="Catastrófico"),AND(AD25="Media",AF25="Catastrófico"),AND(AD25="Alta",AF25="Catastrófico"),AND(AD25="Muy Alta",AF25="Catastrófico")),"Extremo","")))),"") -> Moderado | AI25: Reducir (compartir) | AJ25: Realizar mesas de trabajo con Secretaría General con el fin de fortalecer el seguimiento y cumplimiento para que los archivos de gestión cumplan con los lineamientos de organización de acuerdo con el Manual | AK25: Servidores publicos del GRCGI y de las Areas del Ministerio | AL25: 2025-03-30 | AM25: 2025-06-30 | AN25: Coordinador del grupo de GRCGI; Responsables de Areas | AO25: Grupo de Relacionamiento con la Ciudadanía y Gestión de la Información; y las Areas del Ministerio | AP25: Jenny Constanza Nova Martinez | AQ25: 2025-02-21 | AR25: 2025-12-31 | AS25: Durante el primer trimestre del 2025 ,el Grupo de Relacionamiento con el ciudadano y Gestión de la Información realizo una visita de acompañamiento Archivos de gestión a la Dirección de Formalización Minera : https://minenergiacol-my.sharepoint.com/shared?id=%2Fpersonal%2Fajpena%5Fminenergia%5Fgov%5Fco%2FDocuments%2FSGC%20MINENERG%C3%8DA%202023%2FGesti%C3%B3n%20de%20riesgos%20y%20oportunidades%2FRiesgos%202025%2FMatrices%5Fpor%5Fproceso%2FGesti%C3%B3n%5FDocumental%2FEvidencias%5FGesti%C3%B3n&listurl=%2Fpersonal%2Fajpena%5Fminenergia%5Fgov%5Fco%2FDocuments | AT25: No | AU25: Se evidencia la realización de acompañamiento, sin embargo se sugiere revisar el validar la aplicación del manual a través de otros controles dado que no hay evaluación del impacto de la capacitación, sensibilización o charla
A26: 19 | B26: GESTIÓN DOCUMENTAL | C26: Gestión | D26: Posibilidad de afectacion reputacional por Inadecuado seguimiento de aplicación de procedimientos de copias de seguridad debido a inaplicación de los controles establecidos y ausencia de seguimiento sobre las copias de seguridad de los documentos electrónicos de archivo y sus metadatos | E26: reputacional | F26: Inadecuado seguimiento de aplicación de procedimientos de copias de seguridad | G26: inaplicación de los controles establecidos y ausencia de seguimiento sobre las copias de seguridad de los documentos electrónicos de archivo y sus metadatos | H26: Ejecucion y Administracion de procesos | I26: 12 | J26: Baja | K26: 0.4 | L26: El riesgo afecta la imagen de la entidad internamente, de conocimiento general, nivel interno, de junta dircetiva y accionistas y/o de provedores | M26: =IF(NOT(ISERROR(MATCH(L26,'[5]Tabla Impacto'!#REF!,0))),'[5]Tabla Impacto'!$F$229&"Por favor no seleccionar los criterios de impacto(Afectación Económica o presupuestal y Pérdida Reputacional)",L26) -> El riesgo afecta la imagen de la entidad internamente, de conocimiento general, nivel interno, de junta dircetiva y accionistas y/o de provedores | N26: =IF(OR(M26='[5]Tabla Impacto'!$C$11,M26='[5]Tabla Impacto'!$D$11),"Leve",IF(OR(M26='[5]Tabla Impacto'!$C$12,M26='[5]Tabla Impacto'!$D$12),"Menor",IF(OR(M26='[5]Tabla Impacto'!$C$13,M26='[5]Tabla Impacto'!$D$13),"Moderado",IF(OR(M26='[5]Tabla Impacto'!$C$14,M26='[5]Tabla Impacto'!$D$14),"Mayor",IF(OR(M26='[5]Tabla Impacto'!$C$15,M26='[5]Tabla Impacto'!$D$15),"Catastrófico",""))))) -> Menor | O26: 0.4 | P26: Moderado | Q26: 1 | R26: El funcionario y/o contratista responsable, solicita reporte de la correcta ejecución de de copias de seguridad de los documentos electrónicos de archivo y metadatos del SGDEA, a la Oficina de Tecnologías de la información | S26: Profesional especializado 19 y/o Contratista | T26: Validar la correcta ejecución del reporte de copias de seguridad de los documentos electrónicos de archivo y metadatos del SGDEA que realiza la Oficina de Tecnologías de la información | U26: Correos electrónicos, reportes técnicos | V26: Probabilidad | W26: Preventivo | X26: Manual | Y26: 40% | Z26: Documentado | AA26: Continua | AB26: Con Registro | AC26: 0.24 | AD26: Baja | AE26: 0.24 | AF26: Menor | AG26: 0.4 | AH26: Moderado | AI26: Reducir (compartir) | AJ26: Realizar mesas de trabajo con TIC con el fin de validar las acciones ante posibles incidencias y necesidad de restauración de copias de seguridad | AK26: Servidores publicos del GRCGI y del Grupo TIC | AL26: 2025-06-30 | AM26: 2025-09-30 | AN26: Coordinadores lGRCGI y TIC | AO26: Grupo de Relacionamiento con la Ciudadanía y Gestión de la Información; y Grupo de Tecnologias de la Información | AP26: Jenny Constanza Nova Martinez | AQ26: 2025-02-21 | AR26: 2025-12-31 | AS26: Se realizó solicitud de información al Grupo de Tecnologías de la Información y las Comunicaciones - TICS, quienes indicaron: 1. Estado de salud actual de los Servidores virtualizados ARGO de producción. 2. Ultima fecha de ejecución de backup de los Servidores virtuales ARGO de producción. 3.Estado actual de backup de los Servidores ARGO de producción en el primer semestre de 2025. Adicionalmente se indico de parte de TICS que "desde el final del año 2024 se normalizó la ejecución de arcserve Backup UDP a disco, con lo cual garantizamos el respaldo de los servidores virtualesARGO y de los demás servidores que componen la infraestructura del Ministerio de Minas y Energía". Evidencia disponible: https://minenergiacol-my.sharepoint.com/:b:/r/personal/ajpena_minenergia_gov_co/Documents/SGC%20MINENERG%C3%8DA%202023/Gesti%C3%B3n%20de%20riesgos%20y%20oportunidades/Riesgos%202025/Matrices_por_proceso/Gesti%C3%B3n_Documental/Evidencias_Gesti%C3%B3n/17_Trimestre-1/Verificaci%C3%B3n%20de%20backup%20del%20Sistema%20SGDEA-ARGO%20I-2025.pdf?csf=1&web=1&e=UQnLA5 | AT26: No | AU26: Se evidencia correo de TICs soportando el estado de salud actual de los Servidores virtualizados ARGO de producción, última fecha de ejecución del backup de los servidores virtuales de Argo de producción y estado actual de backup de los Servidores ARGO de producción en el primer semestre de 2025, ahora bien, teniendo en cuenta las preguntas solicitadas se sugiere contestar en los mismos términos solicitados.
A27: 20 | B27: GESTIÓN DEL RELACIONAMIENTO CON LOS GRUPOS DE VALOR | C27: Gestión | D27: Posibilidad de afectacion reputacional por desconocimiento del grado de satisfacción de los grupos de valor, aumento de PQRSD y reprocesos debido a inaplicación de la encuesta de medición de la Satisfacción de forma oportuna a los ciudadanos que interactuaron con el MME a través de los diferentes canales de atención | E27: reputacional | F27: desconocimiento del grado de satisfacción de los grupos de valor, aumento de PQRSD y reprocesos | G27: inaplicación de la encuesta de medición de la Satisfacción de forma oportuna a los ciudadanos que interactuaron con el MME a través de los diferentes canales de atención | H27: Usuarios, productos y practicas , organizacionales | I27: 12 | J27: Baja | K27: 0.4 | L27: El riesgo afecta la imagen de la entidad con algunos usuarios de relevancia frente al logro de los objetivos | M27: =IF(NOT(ISERROR(MATCH(L27,'[5]Tabla Impacto'!#REF!,0))),'[5]Tabla Impacto'!$F$229&"Por favor no seleccionar los criterios de impacto(Afectación Económica o presupuestal y Pérdida Reputacional)",L27) -> El riesgo afecta la imagen de la entidad con algunos usuarios de relevancia frente al logro de los objetivos | N27: =IF(OR(M27='[5]Tabla Impacto'!$C$11,M27='[5]Tabla Impacto'!$D$11),"Leve",IF(OR(M27='[5]Tabla Impacto'!$C$12,M27='[5]Tabla Impacto'!$D$12),"Menor",IF(OR(M27='[5]Tabla Impacto'!$C$13,M27='[5]Tabla Impacto'!$D$13),"Moderado",IF(OR(M27='[5]Tabla Impacto'!$C$14,M27='[5]Tabla Impacto'!$D$14),"Mayor",IF(OR(M27='[5]Tabla Impacto'!$C$15,M27='[5]Tabla Impacto'!$D$15),"Catastrófico",""))))) -> Moderado | O27: 0.6 | P27: Moderado | Q27: 1 | R27: El Funcionario del Grupo de Relacionamiento con el Ciudadano y Gestión de la Información , recopila las bases de datos de ciudadanos atendidos en el mes, remite encuesta de medición de la satisfacción a ciudadanos atendidos en el mes y genera informe semestral de medición de la satisfacción que incluye conclusiones y recomendaciones. Este informe semestral de Medición de la Satisfacción se publica en la página web y se lleva a la alta dirección | S27: Profesional Especializado Grado 17 | T27: Recopilar las bases de datos de ciudadanos atendidos en el mes Remitir encuesta de medición de la satisfacción a ciudadanos atendidos en el me Generar informe semestral de medición de la satisfacción que incluye conclusiones y recomendaciones y publicar en portal web | U27: Informe Semestral de Medición de la Satisfacción | V27: Probabilidad | W27: Preventivo | X27: Manual | Y27: 40% | Z27: Documentado | AA27: Continua | AB27: Con Registro | AC27: 0.24 | AD27: Baja | AE27: 0.24 | AF27: Moderado | AG27: 0.6 | AH27: Moderado | AI27: Evitar | AN27: Coordinador del grupo de GRCGI | AO27: Grupo de Relacionamiento con la Ciudadanía y Gestión de la Información | AP27: Jenny Constanza Nova Martinez | AQ27: 2025-02-21 | AR27: 2025-12-31 | AS27: Se realiza la solicitud de las bases de datos de los usuarios atendidos con correo electrónico en los meses de enero (845 ciudadanos), febrero (1309 ciudadanos) y marzo (1024 ciudadanos) de 2025 y se efectúa el respectivo envío de la encuesta de satisfacción. https://minenergiacol-my.sharepoint.com/:f:/g/personal/lycuca_minenergia_gov_co/ElYSlSE3RCBPiBIpvAyemkABGSi2k1_Ywk4qXkWVbffoEQ?e=d8danI | AT27: No | AU27: Se evidencia existencia de bases de datos y soportes de remisión de encuestas de satisfacción a líder del proceso; se espera tener copia del informe de la satisfacción en el periodo establecido con análisis que evidencien la mejora en el proceso
A28: 21 | B28: GESTIÓN DEL RELACIONAMIENTO CON LOS GRUPOS DE VALOR | C28: Gestión | D28: Posibilidad de afectacion reputacional por sanciones, tutelas, aumento de PQRSD y reprocesos debido a incumplimiento en los términos de ley para dar respuesta a las PQRS | E28: reputacional | F28: sanciones, tutelas, aumento de PQRSD y reprocesos | G28: incumplimiento en los términos de ley para dar respuesta a las PQRS | H28: Usuarios, productos y practicas , organizacionales | I28: 52 | J28: Media | K28: =IF(J28="","",IF(J28="Muy Baja",0.2,IF(J28="Baja",0.4,IF(J28="Media",0.6,IF(J28="Alta",0.8,IF(J28="Muy Alta",1,)))))) -> 0.6 | L28: El riesgo afecta la imagen de la entidad con algunos usuarios de relevancia frente al logro de los objetivos | M28: =IF(NOT(ISERROR(MATCH(L28,'[5]Tabla Impacto'!#REF!,0))),'[5]Tabla Impacto'!$F$229&"Por favor no seleccionar los criterios de impacto(Afectación Económica o presupuestal y Pérdida Reputacional)",L28) -> El riesgo afecta la imagen de la entidad con algunos usuarios de relevancia frente al logro de los objetivos | N28: =IF(OR(M28='[5]Tabla Impacto'!$C$11,M28='[5]Tabla Impacto'!$D$11),"Leve",IF(OR(M28='[5]Tabla Impacto'!$C$12,M28='[5]Tabla Impacto'!$D$12),"Menor",IF(OR(M28='[5]Tabla Impacto'!$C$13,M28='[5]Tabla Impacto'!$D$13),"Moderado",IF(OR(M28='[5]Tabla Impacto'!$C$14,M28='[5]Tabla Impacto'!$D$14),"Mayor",IF(OR(M28='[5]Tabla Impacto'!$C$15,M28='[5]Tabla Impacto'!$D$15),"Catastrófico",""))))) -> Moderado | O28: =IF(N28="","",IF(N28="Leve",0.2,IF(N28="Menor",0.4,IF(N28="Moderado",0.6,IF(N28="Mayor",0.8,IF(N28="Catastrófico",1,)))))) -> 0.6 | P28: =IF(OR(AND(J28="Muy Baja",N28="Leve"),AND(J28="Muy Baja",N28="Menor"),AND(J28="Baja",N28="Leve")),"Bajo",IF(OR(AND(J28="Muy baja",N28="Moderado"),AND(J28="Baja",N28="Menor"),AND(J28="Baja",N28="Moderado"),AND(J28="Media",N28="Leve"),AND(J28="Media",N28="Menor"),AND(J28="Media",N28="Moderado"),AND(J28="Alta",N28="Leve"),AND(J28="Alta",N28="Menor")),"Moderado",IF(OR(AND(J28="Muy Baja",N28="Mayor"),AND(J28="Baja",N28="Mayor"),AND(J28="Media",N28="Mayor"),AND(J28="Alta",N28="Moderado"),AND(J28="Alta",N28="Mayor"),AND(J28="Muy Alta",N28="Leve"),AND(J28="Muy Alta",N28="Menor"),AND(J28="Muy Alta",N28="Moderado"),AND(J28="Muy Alta",N28="Mayor")),"Alto",IF(OR(AND(J28="Muy Baja",N28="Catastrófico"),AND(J28="Baja",N28="Catastrófico"),AND(J28="Media",N28="Catastrófico"),AND(J28="Alta",N28="Catastrófico"),AND(J28="Muy Alta",N28="Catastrófico")),"Extremo","")))) -> Moderado | Q28: 1 | R28: El Funcionario del Grupo de Relacionamiento con el Ciudadano y Gestión de la Información realiza el diligenciamiento de la base de datos de PQRS y valida cuáles PQRSD se encuentran con vencimiento semanal para proceder a enviar alertas semanales de vencimiento de peticiones. | S28: Secretario Ejecutivo Contratista | T28: Diligenciar la base de datos de PQRS realizando seguimiento y control a la oportunidad de las PQRSD Documentar el envío de alertas semanales de vencimiento de peticiones al área técnica que tiene asignada la respuesta a la solicitud inicial. | U28: Base de datos Relación de alertas Correos electrónicos Memorandos | V28: =IF(OR(W28="Preventivo",W28="Detectivo"),"Probabilidad",IF(W28="Correctivo","Impacto","")) -> Probabilidad | W28: Preventivo | X28: Manual | Y28: =IF(AND(W28="Preventivo",X28="Automático"),"50%",IF(AND(W28="Preventivo",X28="Manual"),"40%",IF(AND(W28="Detectivo",X28="Automático"),"40%",IF(AND(W28="Detectivo",X28="Manual"),"30%",IF(AND(W28="Correctivo",X28="Automático"),"35%",IF(AND(W28="Correctivo",X28="Manual"),"25%","")))))) -> 40% | Z28: Documentado | AA28: Continua | AB28: Con Registro | AC28: =IFERROR(IF(V28="Probabilidad",(K28-(+K28*Y28)),IF(V28="Impacto",K28,"")),"") -> 0.36 | AD28: =IFERROR(IF(AC28="","",IF(AC28<=0.2,"Muy Baja",IF(AC28<=0.4,"Baja",IF(AC28<=0.6,"Media",IF(AC28<=0.8,"Alta","Muy Alta"))))),"") -> Baja | AE28: =+AC28 -> 0.36 | AF28: =IFERROR(IF(AG28="","",IF(AG28<=0.2,"Leve",IF(AG28<=0.4,"Menor",IF(AG28<=0.6,"Moderado",IF(AG28<=0.8,"Mayor","Catastrófico"))))),"") -> Moderado | AG28: =IFERROR(IF(V28="Impacto",(O28-(+O28*Y28)),IF(V28="Probabilidad",O28,"")),"") -> 0.6 | AH28: =IFERROR(IF(OR(AND(AD28="Muy Baja",AF28="Leve"),AND(AD28="Muy Baja",AF28="Menor"),AND(AD28="Baja",AF28="Leve")),"Bajo",IF(OR(AND(AD28="Muy baja",AF28="Moderado"),AND(AD28="Baja",AF28="Menor"),AND(AD28="Baja",AF28="Moderado"),AND(AD28="Media",AF28="Leve"),AND(AD28="Media",AF28="Menor"),AND(AD28="Media",AF28="Moderado"),AND(AD28="Alta",AF28="Leve"),AND(AD28="Alta",AF28="Menor")),"Moderado",IF(OR(AND(AD28="Muy Baja",AF28="Mayor"),AND(AD28="Baja",AF28="Mayor"),AND(AD28="Media",AF28="Mayor"),AND(AD28="Alta",AF28="Moderado"),AND(AD28="Alta",AF28="Mayor"),AND(AD28="Muy Alta",AF28="Leve"),AND(AD28="Muy Alta",AF28="Menor"),AND(AD28="Muy Alta",AF28="Moderado"),AND(AD28="Muy Alta",AF28="Mayor")),"Alto",IF(OR(AND(AD28="Muy Baja",AF28="Catastrófico"),AND(AD28="Baja",AF28="Catastrófico"),AND(AD28="Media",AF28="Catastrófico"),AND(AD28="Alta",AF28="Catastrófico"),AND(AD28="Muy Alta",AF28="Catastrófico")),"Extremo","")))),"") -> Moderado | AI28: Evitar | AJ28: Actualizar procedimiento de PQRSD | AK28: Secretario Ejecutivo y Contratista | AL28: 2do semestre de 2025 | AM28: 2do semestre de 2025 | AN28: Coordinador del grupo de GRCGI | AO28: Grupo de Relacionamiento con la Ciudadanía y Gestión de la Información | AP28: Jenny Constanza Nova Martinez | AQ28: 2025-02-21 | AR28: 2025-12-31 | AS28: Se remitieron 13 alertas durante el primer trimestre, equivalente a una alerta semanal, a las áreas técnicas responsables de gestionar las respuestas, esto se realiza a través del envío de correos, con las PQRS por vencer, correspondientes a la semana siguiente https://minenergiacol-my.sharepoint.com/:f:/r/personal/ajpena_minenergia_gov_co/Documents/SGC%20MINENERG%C3%8DA%202023/Gesti%C3%B3n%20de%20riesgos%20y%20oportunidades/Riesgos%202025/Matrices_por_proceso/Gesti%C3%B3n_Relacionamiento/Gesti%C3%B3n_Relacionamiento/Evidencias_Gesti%C3%B3n/RIESGO%2022?csf=1&web=1&e=b7Z5hH | AT28: No | AU28: Se evidencia el envío de las alertas para evitar incumplimiento a los tiempos de respuesta de los derechos de petición, sin embargo se sugiere al líder de la política de servicio al ciudadano se tomen mayores medidas para evitar este incumplimiento en conjunto con las áreas ejecutoras
A29: 22 | B29: CONTROL DISCIPLINARIO | C29: Gestión | D29: Posibilidad de afectacion reputacional por instruir o evaluar tardíamente investigaciones disciplinarias hasta prescribir, debido a expedientes con fechas próxímas a prescribir | E29: reputacional | F29: instruir o evaluar tardíamente investigaciones disciplinarias hasta prescribir, | G29: expedientes con fechas próxímas a prescribir | H29: Ejecucion y Administracion de procesos | I29: 22 | J29: Baja | K29: 0.4 | L29: El riesgo afecta la imagen de de la entidad con efecto publicitario sostenido a nivel de sector administrativo, nivel departamental o municipal | M29: =IF(NOT(ISERROR(MATCH(L29,'[5]Tabla Impacto'!#REF!,0))),'[5]Tabla Impacto'!$F$229&"Por favor no seleccionar los criterios de impacto(Afectación Económica o presupuestal y Pérdida Reputacional)",L29) -> El riesgo afecta la imagen de de la entidad con efecto publicitario sostenido a nivel de sector administrativo, nivel departamental o municipal | N29: =IF(OR(M29='[5]Tabla Impacto'!$C$11,M29='[5]Tabla Impacto'!$D$11),"Leve",IF(OR(M29='[5]Tabla Impacto'!$C$12,M29='[5]Tabla Impacto'!$D$12),"Menor",IF(OR(M29='[5]Tabla Impacto'!$C$13,M29='[5]Tabla Impacto'!$D$13),"Moderado",IF(OR(M29='[5]Tabla Impacto'!$C$14,M29='[5]Tabla Impacto'!$D$14),"Mayor",IF(OR(M29='[5]Tabla Impacto'!$C$15,M29='[5]Tabla Impacto'!$D$15),"Catastrófico",""))))) -> Mayor | O29: 0.8 | P29: Alto | Q29: 1 | R29: El Jefe de la Oficina, monitorea con los abogados instructores el avance de los expedientes priorizando en el impulso, revisión y firma los asuntos próximos a vencer a través de, un informe mensual , previamente, en coordinación la Secretaría General se contratará un abogado para impulsar las actuaciones. | S29: Jefe de la Oficina | T29: Monitorear el avance de los expedientes priorizando en el impulso, revisión y firma los asuntos con riesgo de prescripción | U29: Informe mensual | V29: =IF(OR(W29="Preventivo",W29="Detectivo"),"Probabilidad",IF(W29="Correctivo","Impacto","")) -> Probabilidad | W29: Preventivo | X29: Manual | Y29: =IF(AND(W29="Preventivo",X29="Automático"),"50%",IF(AND(W29="Preventivo",X29="Manual"),"40%",IF(AND(W29="Detectivo",X29="Automático"),"40%",IF(AND(W29="Detectivo",X29="Manual"),"30%",IF(AND(W29="Correctivo",X29="Automático"),"35%",IF(AND(W29="Correctivo",X29="Manual"),"25%","")))))) -> 40% | Z29: Sin Documentar | AA29: Continua | AB29: Con Registro | AC29: 0.24 | AD29: Baja | AE29: 0.24 | AF29: Mayor | AG29: 0.8 | AH29: Alto | AI29: Evitar | AN29: Jefe de la Oficina y abogados del grupo | AO29: Oficina de Control Disciplinario Interno | AP29: Jefe de Oficina | AQ29: 2025-02-21 | AR29: 2025-12-31 | AS29: Se elaboraron informes o constancias para los meses de febrero y marzo de 2025, con el listado de los procesos activos debidamente monitoreados. | AT29: No | AU29: Se evidencia las constancias de los meses de febrero y marzo, sin embargo en el mes de febrero la constancia aparece firmada del mes de diciembre y no cuenta con informe detallado de lo sucedido en esa evacuación. Se requiere al área ajustar en caso de ser necesario
A30: 23 | B30: CONTROL DISCIPLINARIO | C30: Gestión | D30: Posibilidad de afectacion reputacional por pérdida de información o imposibilidad de tomar decisiones ajustadas al derecho disciplinario debido a contar con un archivo que a la fecha se ajusta en baja medida a las condiciones normativas exigidas en materia documental. | E30: reputacional | F30: pérdida de información o imposibilidad de tomar decisiones ajustadas al derecho disciplinario | G30: contar con un archivo que a la fecha se ajusta en baja medida a las condiciones normativas exigidas en materia documental. | H30: Ejecucion y Administracion de procesos | I30: 66 | J30: Media | K30: =IF(J30="","",IF(J30="Muy Baja",0.2,IF(J30="Baja",0.4,IF(J30="Media",0.6,IF(J30="Alta",0.8,IF(J30="Muy Alta",1,)))))) -> 0.6 | L30: El riesgo afecta la imagen de de la entidad con efecto publicitario sostenido a nivel de sector administrativo, nivel departamental o municipal | M30: =IF(NOT(ISERROR(MATCH(L30,'[5]Tabla Impacto'!#REF!,0))),'[5]Tabla Impacto'!$F$229&"Por favor no seleccionar los criterios de impacto(Afectación Económica o presupuestal y Pérdida Reputacional)",L30) -> El riesgo afecta la imagen de de la entidad con efecto publicitario sostenido a nivel de sector administrativo, nivel departamental o municipal | N30: =IF(OR(M30='[5]Tabla Impacto'!$C$11,M30='[5]Tabla Impacto'!$D$11),"Leve",IF(OR(M30='[5]Tabla Impacto'!$C$12,M30='[5]Tabla Impacto'!$D$12),"Menor",IF(OR(M30='[5]Tabla Impacto'!$C$13,M30='[5]Tabla Impacto'!$D$13),"Moderado",IF(OR(M30='[5]Tabla Impacto'!$C$14,M30='[5]Tabla Impacto'!$D$14),"Mayor",IF(OR(M30='[5]Tabla Impacto'!$C$15,M30='[5]Tabla Impacto'!$D$15),"Catastrófico",""))))) -> Mayor | O30: =IF(N30="","",IF(N30="Leve",0.2,IF(N30="Menor",0.4,IF(N30="Moderado",0.6,IF(N30="Mayor",0.8,IF(N30="Catastrófico",1,)))))) -> 0.8 | P30: =IF(OR(AND(J30="Muy Baja",N30="Leve"),AND(J30="Muy Baja",N30="Menor"),AND(J30="Baja",N30="Leve")),"Bajo",IF(OR(AND(J30="Muy baja",N30="Moderado"),AND(J30="Baja",N30="Menor"),AND(J30="Baja",N30="Moderado"),AND(J30="Media",N30="Leve"),AND(J30="Media",N30="Menor"),AND(J30="Media",N30="Moderado"),AND(J30="Alta",N30="Leve"),AND(J30="Alta",N30="Menor")),"Moderado",IF(OR(AND(J30="Muy Baja",N30="Mayor"),AND(J30="Baja",N30="Mayor"),AND(J30="Media",N30="Mayor"),AND(J30="Alta",N30="Moderado"),AND(J30="Alta",N30="Mayor"),AND(J30="Muy Alta",N30="Leve"),AND(J30="Muy Alta",N30="Menor"),AND(J30="Muy Alta",N30="Moderado"),AND(J30="Muy Alta",N30="Mayor")),"Alto",IF(OR(AND(J30="Muy Baja",N30="Catastrófico"),AND(J30="Baja",N30="Catastrófico"),AND(J30="Media",N30="Catastrófico"),AND(J30="Alta",N30="Catastrófico"),AND(J30="Muy Alta",N30="Catastrófico")),"Extremo","")))) -> Alto | Q30: 1 | R30: El Secretario ejecutivo organizará los archivos físicos y así vez en digital en (ONE DRIVE y ARGO) de acuerdo con los lineamientos establecidos por el grupo de Relacionamiento con la Ciudadanía y Gestión de la Información y en concordancias con las tablas de retención documental. El abogado instructor una vez realice la revisión documental, reportará al jefe de oficina y personal asistencial las novedades relacionadas con la falta de inserción de documentos y/o pruebas producidos durante el mes y se realizarán los ajustes a lugar | S30: Secretario ejecutivo Abogado instructor | T30: Organizar los archivos físico y digital en ARGO de acuerdo con las tablas de retención documental, en caso de detectar expedientes incompletos se reportará al personal asistencial las novedades relacionadas con la falta de inserción de documentos y/o pruebas producidos, para las gestiones respectivas. | U30: Plantilla para migración de información de Sharepoint a ARGO | V30: Probabilidad | W30: Preventivo | X30: Manual | Y30: 40% | Z30: Sin Documentar | AA30: Continua | AB30: Con Registro | AC30: =IFERROR(IF(V30="Probabilidad",(K30-(+K30*Y30)),IF(V30="Impacto",K30,"")),"") -> 0.36 | AD30: =IFERROR(IF(AC30="","",IF(AC30<=0.2,"Muy Baja",IF(AC30<=0.4,"Baja",IF(AC30<=0.6,"Media",IF(AC30<=0.8,"Alta","Muy Alta"))))),"") -> Baja | AE30: =+AC30 -> 0.36 | AF30: =IFERROR(IF(AG30="","",IF(AG30<=0.2,"Leve",IF(AG30<=0.4,"Menor",IF(AG30<=0.6,"Moderado",IF(AG30<=0.8,"Mayor","Catastrófico"))))),"") -> Mayor | AG30: =IFERROR(IF(V30="Impacto",(O30-(+O30*Y30)),IF(V30="Probabilidad",O30,"")),"") -> 0.8 | AH30: =IFERROR(IF(OR(AND(AD30="Muy Baja",AF30="Leve"),AND(AD30="Muy Baja",AF30="Menor"),AND(AD30="Baja",AF30="Leve")),"Bajo",IF(OR(AND(AD30="Muy baja",AF30="Moderado"),AND(AD30="Baja",AF30="Menor"),AND(AD30="Baja",AF30="Moderado"),AND(AD30="Media",AF30="Leve"),AND(AD30="Media",AF30="Menor"),AND(AD30="Media",AF30="Moderado"),AND(AD30="Alta",AF30="Leve"),AND(AD30="Alta",AF30="Menor")),"Moderado",IF(OR(AND(AD30="Muy Baja",AF30="Mayor"),AND(AD30="Baja",AF30="Mayor"),AND(AD30="Media",AF30="Mayor"),AND(AD30="Alta",AF30="Moderado"),AND(AD30="Alta",AF30="Mayor"),AND(AD30="Muy Alta",AF30="Leve"),AND(AD30="Muy Alta",AF30="Menor"),AND(AD30="Muy Alta",AF30="Moderado"),AND(AD30="Muy Alta",AF30="Mayor")),"Alto",IF(OR(AND(AD30="Muy Baja",AF30="Catastrófico"),AND(AD30="Baja",AF30="Catastrófico"),AND(AD30="Media",AF30="Catastrófico"),AND(AD30="Alta",AF30="Catastrófico"),AND(AD30="Muy Alta",AF30="Catastrófico")),"Extremo","")))),"") -> Alto | AI30: Evitar | AN30: Secretarios ejecutivos | AO30: Oficina de Control Disciplinario interno | AP30: Jefe de Oficina | AQ30: 2025-02-21 | AR30: 2025-12-31 | AS30: Se obtuvo una copia de información de la oficina en One Drive y se migró a Sharepoint una copia, mientras se trabaja con los grupos RCGI y TIC para el ajuste ARGO -componente de expedientes disciplinarios. | AT30: No | AU30: Se evidencia que se solicitó y se obtuvo copia de la documentación migrada, se espera en próximos reportes evidenciar el avance con la migración a Argo
A31: 24 | B31: SOCIAMBIENTAL | C31: Gestión | D31: Posibilidad de afectacion económico y reputacional por Reducción de presupuesto a los proyectos de inversión y sanciones debido a Incumplimiento en planes, programas y proyectos de inversión y en las metas a nivel socio-ambiental de definidas en el plan de acción de la Oficina de Asuntos Ambientales y Sociales | E31: económico y reputacional | F31: Reducción de presupuesto a los proyectos de inversión y sanciones | G31: Incumplimiento en planes, programas y proyectos de inversión y en las metas a nivel socio-ambiental de definidas en el plan de acción de la Oficina de Asuntos Ambientales y Sociales | H31: Ejecucion y Administracion de procesos | I31: 12 | J31: =IF(I31<=0,"",IF(I31<=2,"Muy Baja",IF(I31<=5,"Baja",IF(I31<=19,"Media",IF(I31<=50,"Alta","Muy Alta"))))) -> Media | K31: 0.6 | L31: El riesgo afecta la imagen de la entidad con algunos usuarios de relevancia frente al logro de los objetivos | M31: =IF(NOT(ISERROR(MATCH(L31,'[7]Tabla Impacto'!$B$221:$B$223,0))),'[7]Tabla Impacto'!$F$223&"Por favor no seleccionar los criterios de impacto(Afectación Económica o presupuestal y Pérdida Reputacional)",L31) -> El riesgo afecta la imagen de la entidad con algunos usuarios de relevancia frente al logro de los objetivos | N31: =IF(OR(M31='[7]Tabla Impacto'!$C$11,M31='[7]Tabla Impacto'!$D$11),"Leve",IF(OR(M31='[7]Tabla Impacto'!$C$12,M31='[7]Tabla Impacto'!$D$12),"Menor",IF(OR(M31='[7]Tabla Impacto'!$C$13,M31='[7]Tabla Impacto'!$D$13),"Moderado",IF(OR(M31='[7]Tabla Impacto'!$C$14,M31='[7]Tabla Impacto'!$D$14),"Mayor",IF(OR(M31='[7]Tabla Impacto'!$C$15,M31='[7]Tabla Impacto'!$D$15),"Catastrófico",""))))) -> Moderado | O31: 0.6 | P31: Moderado | Q31: 1 | R31: El Contratista delegado por la jefe de la Oficina de Asuntos Ambientales y Sociales, realizar una planeación y seguimiento frente a las metas a cumplir por parte de la oficina de Asuntos Ambientales y Sociales, revisa y verifica los avances reportados por los equipos técnicos de la OAAS en cumplimiento con las metas establecidas en el Plan de Acción para la vigencia 2024, en caso de tener desviaciones en la ejecución de la metas realiza las alertas respectivas. A la par, realiza seguimiento a los avances programados para cumplimiento de acuerdos contractuales y metas de proyectos de inversión establecidas para la Oficina de Asuntos Ambientales y sociales en la vigencia 2024 que permita ver cumplimientos de manera global y por indicador establecidos dentro del plan | S31: Contratista delegado por la jefe de la Oficina de Asuntos Ambientales y Sociales | T31: Realizar seguimiento a los indicadores que integran el plan de acción a cargo de la oficina, verificando el cumplimiento que estén acorde a la programación establecida y justificando su nivel de avance. Realizar seguimiento a los entregables contractuales y productos de los proyectos de inversión a cargo de la oficina, verificando que el cumplimiento este acorde a la programación establecida y justificando su nivel de avance por medio del registro de información en las plataformas SECOP II y Neón según aplique. | U31: Instrumento de seguimiento que permita ver cumplimientos de manera global y por indicador establecidos dentro del plan | V31: Probabilidad | W31: Preventivo | X31: Manual | Y31: 40% | Z31: Sin Documentar | AA31: Continua | AB31: Con Registro | AC31: 0.36 | AD31: Baja | AE31: 0.36 | AF31: Moderado | AG31: 0.6 | AH31: Moderado | AI31: Evitar | AN31: Contratista delegado por la oficina para seguimiento | AO31: Oficina de Asuntos Ambientales y Sociales | AP31: Jefe de la Oficina | AQ31: 2025-02-21 | AR31: 2025-12-31 | AU31: No se realizó seguimiento por parte de la primera línea
A32: 25 | B32: SOCIAMBIENTAL | C32: Gestión | D32: Posibilidad de afectacion económico y reputacional por Multas, sanciones, duplicidad en PQRs, debido a incumplimiento en los tiempos de respuesta de los PQRS a cargo de la OAAS | E32: económico y reputacional | F32: Multas, sanciones, duplicidad en PQRs, | G32: incumplimiento en los tiempos de respuesta de los PQRS a cargo de la OAAS | H32: Ejecucion y Administracion de procesos | I32: 50 | J32: Alta | K32: 0.8 | L32: El riesgo afecta la imagen de la entidad con algunos usuarios de relevancia frente al logro de los objetivos | M32: =IF(NOT(ISERROR(MATCH(L32,'[7]Tabla Impacto'!$B$221:$B$223,0))),'[7]Tabla Impacto'!$F$223&"Por favor no seleccionar los criterios de impacto(Afectación Económica o presupuestal y Pérdida Reputacional)",L32) -> El riesgo afecta la imagen de la entidad con algunos usuarios de relevancia frente al logro de los objetivos | N32: =IF(OR(M32='[7]Tabla Impacto'!$C$11,M32='[7]Tabla Impacto'!$D$11),"Leve",IF(OR(M32='[7]Tabla Impacto'!$C$12,M32='[7]Tabla Impacto'!$D$12),"Menor",IF(OR(M32='[7]Tabla Impacto'!$C$13,M32='[7]Tabla Impacto'!$D$13),"Moderado",IF(OR(M32='[7]Tabla Impacto'!$C$14,M32='[7]Tabla Impacto'!$D$14),"Mayor",IF(OR(M32='[7]Tabla Impacto'!$C$15,M32='[7]Tabla Impacto'!$D$15),"Catastrófico",""))))) -> Moderado | O32: 0.6 | P32: Alto | Q32: 1 | R32: El jefe de Oficina de Asuntos Ambientales y Sociales en conjunto con su equipo de trabajo, establece un plan de acción que permita el seguimiento y cumplimiento a las respuesta de los PQRS asignados a la OAAS, igualmente verifica los tiempos de respuesta para evitar incumplimientos, en caso de encontrar desviaciones realiza aleratas al equipo de trabajo indicando cuáles solicitudes a la fechano tienen respuesta . | S32: El jefe de Oficina de Asuntos Ambientales y Sociales en conjunto con su equipo de trabajo | T32: Establecer un plan de acción que permita el seguimiento y cumplimiento a las respuestas de los PQRS asignados a la OAAS Generar de manera mensual un análisis de gestión que de evidencia de los avances frente a los PQRS | U32: Reportes de seguimiento a la gestión de PQRS a manera de alertas. | V32: =IF(OR(W32="Preventivo",W32="Detectivo"),"Probabilidad",IF(W32="Correctivo","Impacto","")) -> Probabilidad | W32: Preventivo | X32: Manual | Y32: =IF(AND(W32="Preventivo",X32="Automático"),"50%",IF(AND(W32="Preventivo",X32="Manual"),"40%",IF(AND(W32="Detectivo",X32="Automático"),"40%",IF(AND(W32="Detectivo",X32="Manual"),"30%",IF(AND(W32="Correctivo",X32="Automático"),"35%",IF(AND(W32="Correctivo",X32="Manual"),"25%","")))))) -> 40% | Z32: Documentado | AA32: Continua | AB32: Con Registro | AC32: 0.48 | AD32: Media | AE32: 0.48 | AF32: Moderado | AG32: 0.6 | AH32: Moderado | AI32: Evitar | AN32: Contratista delegado por la oficina para seguimiento | AO32: Oficina de Asuntos Ambientales y Sociales | AP32: Jefe de la Oficina | AQ32: 2025-02-21 | AR32: 2025-12-31 | AU32: No se realizó seguimiento por parte de la primera línea
A33: 26 | B33: MINERIA | C33: Gestión | D33: Posibilidad de afectacion reputacional por Sanciones de entes de control por retrasos en la gestión y respuesta de derechos de petición. debido a Ausencia de procedimientos claros y sistemas de seguimiento eficaces para garantizar el cumplimiento de los plazos legales. | E33: reputacional | F33: Sanciones de entes de control por retrasos en la gestión y respuesta de derechos de petición. | G33: Ausencia de procedimientos claros y sistemas de seguimiento eficaces para garantizar el cumplimiento de los plazos legales. | H33: Ejecucion y Administracion de procesos | I33: 12 | J33: Baja | K33: =IF(J33="","",IF(J33="Muy Baja",0.2,IF(J33="Baja",0.4,IF(J33="Media",0.6,IF(J33="Alta",0.8,IF(J33="Muy Alta",1,)))))) -> 0.4 | L33: El riesgo afecta la imagen de alguna área de la organización | M33: =IF(NOT(ISERROR(MATCH(L33,'[5]Tabla Impacto'!#REF!,0))),'[5]Tabla Impacto'!$F$229&"Por favor no seleccionar los criterios de impacto(Afectación Económica o presupuestal y Pérdida Reputacional)",L33) -> El riesgo afecta la imagen de alguna área de la organización | N33: =IF(OR(M33='[5]Tabla Impacto'!$C$11,M33='[5]Tabla Impacto'!$D$11),"Leve",IF(OR(M33='[5]Tabla Impacto'!$C$12,M33='[5]Tabla Impacto'!$D$12),"Menor",IF(OR(M33='[5]Tabla Impacto'!$C$13,M33='[5]Tabla Impacto'!$D$13),"Moderado",IF(OR(M33='[5]Tabla Impacto'!$C$14,M33='[5]Tabla Impacto'!$D$14),"Mayor",IF(OR(M33='[5]Tabla Impacto'!$C$15,M33='[5]Tabla Impacto'!$D$15),"Catastrófico",""))))) -> Leve | O33: =IF(N33="","",IF(N33="Leve",0.2,IF(N33="Menor",0.4,IF(N33="Moderado",0.6,IF(N33="Mayor",0.8,IF(N33="Catastrófico",1,)))))) -> 0.2 | P33: =IF(OR(AND(J33="Muy Baja",N33="Leve"),AND(J33="Muy Baja",N33="Menor"),AND(J33="Baja",N33="Leve")),"Bajo",IF(OR(AND(J33="Muy baja",N33="Moderado"),AND(J33="Baja",N33="Menor"),AND(J33="Baja",N33="Moderado"),AND(J33="Media",N33="Leve"),AND(J33="Media",N33="Menor"),AND(J33="Media",N33="Moderado"),AND(J33="Alta",N33="Leve"),AND(J33="Alta",N33="Menor")),"Moderado",IF(OR(AND(J33="Muy Baja",N33="Mayor"),AND(J33="Baja",N33="Mayor"),AND(J33="Media",N33="Mayor"),AND(J33="Alta",N33="Moderado"),AND(J33="Alta",N33="Mayor"),AND(J33="Muy Alta",N33="Leve"),AND(J33="Muy Alta",N33="Menor"),AND(J33="Muy Alta",N33="Moderado"),AND(J33="Muy Alta",N33="Mayor")),"Alto",IF(OR(AND(J33="Muy Baja",N33="Catastrófico"),AND(J33="Baja",N33="Catastrófico"),AND(J33="Media",N33="Catastrófico"),AND(J33="Alta",N33="Catastrófico"),AND(J33="Muy Alta",N33="Catastrófico")),"Extremo","")))) -> Bajo | Q33: 1 | R33: Los coordinadores de la Dirección de Minería Empresarial, realizan un seguimiento permanente a los derechos de petición con alertas de vencimiento, validando los tiempos de respuesta frente a las solicitudes; en caso de encontrar desviaciones solicitan a los encargados contestar en la brevedad posible los derecho de petición. | S33: Director de minería empresarial Coordinadores | T33: Monitoreo continuo y periódicas sobre la gestión de derechos de petición | U33: Reportes de cumplimiento de tiempos de respuesta. Validaciones internas en cumpliminetos de respuesta | V33: =IF(OR(W33="Preventivo",W33="Detectivo"),"Probabilidad",IF(W33="Correctivo","Impacto","")) -> Probabilidad | W33: Preventivo | X33: Manual | Y33: =IF(AND(W33="Preventivo",X33="Automático"),"50%",IF(AND(W33="Preventivo",X33="Manual"),"40%",IF(AND(W33="Detectivo",X33="Automático"),"40%",IF(AND(W33="Detectivo",X33="Manual"),"30%",IF(AND(W33="Correctivo",X33="Automático"),"35%",IF(AND(W33="Correctivo",X33="Manual"),"25%","")))))) -> 40% | Z33: Sin Documentar | AA33: Continua | AB33: Con Registro | AC33: =IFERROR(IF(V33="Probabilidad",(K33-(+K33*Y33)),IF(V33="Impacto",K33,"")),"") -> 0.24 | AD33: =IFERROR(IF(AC33="","",IF(AC33<=0.2,"Muy Baja",IF(AC33<=0.4,"Baja",IF(AC33<=0.6,"Media",IF(AC33<=0.8,"Alta","Muy Alta"))))),"") -> Baja | AE33: =+AC33 -> 0.24 | AF33: =IFERROR(IF(AG33="","",IF(AG33<=0.2,"Leve",IF(AG33<=0.4,"Menor",IF(AG33<=0.6,"Moderado",IF(AG33<=0.8,"Mayor","Catastrófico"))))),"") -> Leve | AG33: =IFERROR(IF(V33="Impacto",(O33-(+O33*Y33)),IF(V33="Probabilidad",O33,"")),"") -> 0.2 | AH33: =IFERROR(IF(OR(AND(AD33="Muy Baja",AF33="Leve"),AND(AD33="Muy Baja",AF33="Menor"),AND(AD33="Baja",AF33="Leve")),"Bajo",IF(OR(AND(AD33="Muy baja",AF33="Moderado"),AND(AD33="Baja",AF33="Menor"),AND(AD33="Baja",AF33="Moderado"),AND(AD33="Media",AF33="Leve"),AND(AD33="Media",AF33="Menor"),AND(AD33="Media",AF33="Moderado"),AND(AD33="Alta",AF33="Leve"),AND(AD33="Alta",AF33="Menor")),"Moderado",IF(OR(AND(AD33="Muy Baja",AF33="Mayor"),AND(AD33="Baja",AF33="Mayor"),AND(AD33="Media",AF33="Mayor"),AND(AD33="Alta",AF33="Moderado"),AND(AD33="Alta",AF33="Mayor"),AND(AD33="Muy Alta",AF33="Leve"),AND(AD33="Muy Alta",AF33="Menor"),AND(AD33="Muy Alta",AF33="Moderado"),AND(AD33="Muy Alta",AF33="Mayor")),"Alto",IF(OR(AND(AD33="Muy Baja",AF33="Catastrófico"),AND(AD33="Baja",AF33="Catastrófico"),AND(AD33="Media",AF33="Catastrófico"),AND(AD33="Alta",AF33="Catastrófico"),AND(AD33="Muy Alta",AF33="Catastrófico")),"Extremo","")))),"") -> Bajo | AI33: Evitar | AJ33: Documentar el control | AK33: Contratista responsable del Sistema de Gestión de Calidad en la DME | AL33: 2025-04-01 | AM33: 2025-07-01 | AN33: Contratista responsable del Sistema de Gestión de Calidad en la DME | AO33: Dirección de minería Empresarial | AP33: Profesional especializado Dirección de Minería Empresarial | AQ33: 2025-02-01 | AR33: 2025-12-31 | AS33: La DME, a través de los coordinadores realizo el seguimiento permanente a los derechos de petición con alertas de vencimiento, validando los tiempos de respuesta frente a las solicitudes, se entrega reporte de enero a marzo del 2025. | AT33: No | AU33: Se evidencia seguimiento realizado a partir de alertas de Argo, se sugiere revisar si se materializó el riesgo dado que hay 23 DP que tienen fecha de respuesta posterior a la que esta en vencimiento, por favor validar; en caso de evidenciarse vencimiento iniciar verificación del control nuevamente
A34: 27 | B34: MINERIA | C34: Gestión | D34: Posibilidad de afectacion económico y reputacional por Multas y sanciones de entes de control debido a inaplicación metodológica de la valoración de reservas mineras del país | E34: económico y reputacional | F34: Multas y sanciones de entes de control | G34: inaplicación metodológica de la valoración de reservas mineras del país | H34: Ejecucion y Administracion de procesos | I34: 2 | J34: Muy Baja | K34: 0.2 | L34: El riesgo afecta la imagen de la entidad internamente, de conocimiento general, nivel interno, de junta dircetiva y accionistas y/o de provedores | M34: =IF(NOT(ISERROR(MATCH(L34,'[5]Tabla Impacto'!#REF!,0))),'[5]Tabla Impacto'!$F$229&"Por favor no seleccionar los criterios de impacto(Afectación Económica o presupuestal y Pérdida Reputacional)",L34) -> El riesgo afecta la imagen de la entidad internamente, de conocimiento general, nivel interno, de junta dircetiva y accionistas y/o de provedores | N34: =IF(OR(M34='[5]Tabla Impacto'!$C$11,M34='[5]Tabla Impacto'!$D$11),"Leve",IF(OR(M34='[5]Tabla Impacto'!$C$12,M34='[5]Tabla Impacto'!$D$12),"Menor",IF(OR(M34='[5]Tabla Impacto'!$C$13,M34='[5]Tabla Impacto'!$D$13),"Moderado",IF(OR(M34='[5]Tabla Impacto'!$C$14,M34='[5]Tabla Impacto'!$D$14),"Mayor",IF(OR(M34='[5]Tabla Impacto'!$C$15,M34='[5]Tabla Impacto'!$D$15),"Catastrófico",""))))) -> Menor | O34: 0.4 | P34: Bajo | Q34: 1 | R34: El Director de Minería Empresarial y los coordinadores realizan una validación de la información suministrada por parte de la Agencia Nacional de Minería aplicando la metodología para la valoración de reservas mineras del país, soportada en la Resolución 90079 del 13 de febrero del 2013 y emite un informe de validación; en caso de encontrar inconsistencias en el reporte solicitará ajustes | S34: Director de minería empresarial Coordinadores | T34: Validar la información suministrada por parte de la ANM Aplicar la metodología para la valoración de reservas mineras del país, soportada en la Resolución 90079 del 13 de febrero del 2013 Cumplimiento al procedimiento de valoración de reservas | U34: Informe de valoración de reservas. | V34: =IF(OR(W34="Preventivo",W34="Detectivo"),"Probabilidad",IF(W34="Correctivo","Impacto","")) -> Probabilidad | W34: Preventivo | X34: Manual | Y34: =IF(AND(W34="Preventivo",X34="Automático"),"50%",IF(AND(W34="Preventivo",X34="Manual"),"40%",IF(AND(W34="Detectivo",X34="Automático"),"40%",IF(AND(W34="Detectivo",X34="Manual"),"30%",IF(AND(W34="Correctivo",X34="Automático"),"35%",IF(AND(W34="Correctivo",X34="Manual"),"25%","")))))) -> 40% | Z34: Documentado | AA34: Continua | AB34: Con Registro | AC34: 0.12 | AD34: Muy Baja | AE34: 0.12 | AF34: Menor | AG34: 0.4 | AH34: Bajo | AI34: Evitar | AN34: Contratista responsable del Sistema de Gestión de Calidad en la DME | AO34: Dirección de minería Empresarial | AP34: Profesional especializado Dirección de Minería Empresarial | AQ34: 2025-02-01 | AR34: 2025-12-31 | AS34: La DME con relación a la solicitud realizada en memorando No. 3-2024-047968 del 18 de diciembre de 2024 por parte del Grupo de Gestión Financiera y Contable y en cumplimiento de la Resolución 90079 de 2013, del concepto emitido por la Contaduría General de la Nación, con radicado 20201100071831 de fecha diciembre 29 de 2020, y acorde con la observación realizada por la Contraloría General de la Nación en la auditoría financiera para la vigencia 2020, sobre la Tasa Representativa del Mercado - TRM a emplear en la medición de los recursos naturales no renovables, nos permitimos remitir la valoración de las reservas de minerales para el período comprendido entre el 1° de octubre de 2023 y 30 de septiembre de 2024, en adelante Primer Reporte del 2024 de valoración de reservas, el cual fue radicado el 31 de enero del 2025. | AT34: No | AU34: Se evidencia en Argo radicado 3-2025-005753 que utiliza la valoración de las reservas según la resolución establecida, el cual es remitido al grupo financiero y contable
A35: 28 | B35: MINERIA | C35: Gestión | D35: =IF(C35="Fiscal",_xlfn.CONCAT("Posibilidad de efectos dañosos sobre bienes públicos "," por o para ",F35," debido a ",G35),IF(C35="Gestión",_xlfn.CONCAT("Posibilidad de afectacion ",E35," por ",F35," debido a ",G35),"")) -> Posibilidad de afectacion reputacional por Baja ejecución de las metas asociadas a la Dirección de Minería Empresarial debido a Deficiencias en la gestión estratégica y ausencia de herramientas efectivas para la supervisión del cumplimiento del Plan de Acción. | E35: reputacional | F35: Baja ejecución de las metas asociadas a la Dirección de Minería Empresarial | G35: Deficiencias en la gestión estratégica y ausencia de herramientas efectivas para la supervisión del cumplimiento del Plan de Acción. | H35: Ejecucion y Administracion de procesos | I35: 4 | J35: =IF(I35<=0,"",IF(I35<=2,"Muy Baja",IF(I35<=24,"Baja",IF(I35<=500,"Media",IF(I35<=5000,"Alta","Muy Alta"))))) -> Baja | K35: 0.4 | L35: El riesgo afecta la imagen de la entidad internamente, de conocimiento general, nivel interno, de junta dircetiva y accionistas y/o de provedores | M35: =IF(NOT(ISERROR(MATCH(L35,'[5]Tabla Impacto'!#REF!,0))),'[5]Tabla Impacto'!$F$229&"Por favor no seleccionar los criterios de impacto(Afectación Económica o presupuestal y Pérdida Reputacional)",L35) -> El riesgo afecta la imagen de la entidad internamente, de conocimiento general, nivel interno, de junta dircetiva y accionistas y/o de provedores | N35: =IF(OR(M35='[5]Tabla Impacto'!$C$11,M35='[5]Tabla Impacto'!$D$11),"Leve",IF(OR(M35='[5]Tabla Impacto'!$C$12,M35='[5]Tabla Impacto'!$D$12),"Menor",IF(OR(M35='[5]Tabla Impacto'!$C$13,M35='[5]Tabla Impacto'!$D$13),"Moderado",IF(OR(M35='[5]Tabla Impacto'!$C$14,M35='[5]Tabla Impacto'!$D$14),"Mayor",IF(OR(M35='[5]Tabla Impacto'!$C$15,M35='[5]Tabla Impacto'!$D$15),"Catastrófico",""))))) -> Menor | O35: 0.4 | P35: Moderado | Q35: 1 | R35: Realizar el seguimiento periódico a la ejecución del plan de acción, emitiendo las alertas necesarias para dar cumplimiento del mismo, analizando y verificando los avances de los indicadores; en caso de encontrar incumplimientos realiza ajustes respectivos para cumplir las metas planeadas en el plan de acción | S35: Director de minería empresarial Coordinadores | T35: Revisión mensual del avance del Plan de Acción y ajuste de estrategias según los resultados obtenidos. | U35: Reportes de avance del Plan de Acción. Indicadores de cumplimiento de metas. Actas de reuniones de seguimiento. Correos alertas | V35: =IF(OR(W35="Preventivo",W35="Detectivo"),"Probabilidad",IF(W35="Correctivo","Impacto","")) -> Probabilidad | W35: Preventivo | X35: Manual | Y35: =IF(AND(W35="Preventivo",X35="Automático"),"50%",IF(AND(W35="Preventivo",X35="Manual"),"40%",IF(AND(W35="Detectivo",X35="Automático"),"40%",IF(AND(W35="Detectivo",X35="Manual"),"30%",IF(AND(W35="Correctivo",X35="Automático"),"35%",IF(AND(W35="Correctivo",X35="Manual"),"25%","")))))) -> 40% | Z35: Sin Documentar | AA35: Continua | AB35: Con Registro | AC35: 0.24 | AD35: Baja | AE35: 0.24 | AF35: Menor | AG35: 0.4 | AH35: Moderado | AI35: Evitar | AJ35: Documentar el control | AK35: Contratista responsable del Sistema de Gestión de Calidad en la DME | AL35: 2025-04-15 | AM35: 2025-07-15 | AN35: Contratista responsable del Sistema de Gestión de Calidad en la DME | AO35: Dirección de minería Empresarial | AP35: Profesional especializado Dirección de Minería Empresarial | AQ35: 2025-02-01 | AR35: 2025-12-31 | AS35: La DME, estableció su plan de acción 2025 el cual se encuentra en proceso de realizar ajustes acorde a las indicaciones dadas. | AT35: No | AU35: Se requiere para próximo seguimiento el reporte de lo ejecutado Vs programado en la meta por trimestre, para este trimestre son 5 Número de actas de Asistencias técnica para el aprovechamiento de residuos y economía circular en operaciones mineras y $50.000.000.000 y Cantidad de dinero movilizado en inversiones, se espera se cuente el avance del indicador o eso es del 2024 porque en meta dice Meta 2024
A36: 29 | B36: MINERIA | C36: Gestión | D36: Posibilidad de afectacion económico y reputacional por sanciones y demandas por incumplimientos en la ejecución de los convenios y/o contratos de la Dirección de Formalización Minera debido a un bajo seguimiento en su etapa contractual y postcontractual | E36: económico y reputacional | F36: sanciones y demandas por incumplimientos en la ejecución de los convenios y/o contratos de la Dirección de Formalización Minera | G36: un bajo seguimiento en su etapa contractual y postcontractual | H36: Ejecucion y Administracion de procesos | I36: 4 | J36: Baja | K36: 0.4 | L36: El riesgo afecta la imagen de la entidad internamente, de conocimiento general, nivel interno, de junta dircetiva y accionistas y/o de provedores | M36: =IF(NOT(ISERROR(MATCH(L36,'[5]Tabla Impacto'!#REF!,0))),'[5]Tabla Impacto'!$F$229&"Por favor no seleccionar los criterios de impacto(Afectación Económica o presupuestal y Pérdida Reputacional)",L36) -> El riesgo afecta la imagen de la entidad internamente, de conocimiento general, nivel interno, de junta dircetiva y accionistas y/o de provedores | N36: =IF(OR(M36='[5]Tabla Impacto'!$C$11,M36='[5]Tabla Impacto'!$D$11),"Leve",IF(OR(M36='[5]Tabla Impacto'!$C$12,M36='[5]Tabla Impacto'!$D$12),"Menor",IF(OR(M36='[5]Tabla Impacto'!$C$13,M36='[5]Tabla Impacto'!$D$13),"Moderado",IF(OR(M36='[5]Tabla Impacto'!$C$14,M36='[5]Tabla Impacto'!$D$14),"Mayor",IF(OR(M36='[5]Tabla Impacto'!$C$15,M36='[5]Tabla Impacto'!$D$15),"Catastrófico",""))))) -> Menor | O36: 0.4 | P36: Moderado | Q36: 1 | R36: El Supervisor delegado para el convenio o contrato, realizará el seguimiento a las obligaciones y términos contractuales de acuerdo con el manual de contratación de la entidad y con los términos establecidos en el convenio o contrato, en aras de validar la gestión en la entrega y pago de los productos o servicios prestados y /o solicitar los ajustes o complementos necesarios a través de, comunicaciones oficiales, informes de actividades, informes de supervisión, entre otros, según aplique, lo cual será ubicado en una carpeta definida por cada coordinación. | S36: Director de minería empresarial Coordinadores | T36: Revisión mensual del avance del Plan de Acción y ajuste de estrategias según los resultados obtenidos. | U36: Reportes de avance del Plan de Acción. Indicadores de cumplimiento de metas. Actas de reuniones de seguimiento. Correos alertas | V36: Probabilidad | W36: Preventivo | X36: Manual | Y36: 40% | Z36: Sin Documentar | AA36: Continua | AB36: Con Registro | AC36: 0.24 | AD36: Baja | AE36: 0.24 | AF36: Menor | AG36: 0.4 | AH36: Moderado | AI36: Evitar | AJ36: Documentar el control | AK36: Contratista responsable del Sistema de Gestión de Calidad en la DME | AL36: 2025-04-15 | AM36: 2025-07-15 | AN36: Contratista responsable del Sistema de Gestión de Calidad en la DME | AO36: Dirección de Formalización (cada grupo de Coordinación) | AP36: Profesional especializado Dirección de Minería Empresarial | AQ36: 2025-02-01 | AR36: 2025-12-31 | AS36: Para hacer seguimiento a la ejecución contractual se tiene definido el siguiente mecanismo: Se cuenta con seguimiento a cada contrato desde la supervisión, conforme con las indicaciones contenidas en el Manual de Contratación del Minenergía. La información reposa en carpeta alojada en canal de Teams, en donde por cada grupo de trabajo debe incluir en carpetas los soportes documentales de cada proceso. Es importante indicar que cuando se trata de OPS se hacen validaciones mensuales de cumplimiento a través de los informes de supervisión, verificando actividades desarrolladas y entregables cuando es del caso. Respecto a convenios y contratos, se llevan a cabo mesas de trabajo por parte de los equipos de profesionales que apoyan las supervisiones, quienes dan insumos a la supervisión para las validaciones y respectivas aprobaciones. Frente a los procesos post-contractuales, en la DFM se cuenta con un profesional del área legal que valida los tiempos y soportes requeridos, para garantizar que los procesos se lleven a cabo dentro de los términos definidos en el marco legal aplicable, según la modalidad de contratación. | AT36: No | AU36: Se evidencia seguimiento a la ejecución de los contratos y a la fase postcontractual, sin embargo, surge una inquietud frente a las liquidaciones que perdieron competencia en la vigencia anterior para realizar la liquidación, cómo se procedió en ese caso en el seguimiento
A37: 30 | B37: MINERIA | C37: Gestión | D37: Posibilidad de afectacion reputacional por multas y sanciones por atrasos en la respuesta a los derechos de petición de la Dirección de Formalización Minera debido a la falta de seguimiento y control en la atención oportuna y completa de los derechos de petición | E37: reputacional | F37: multas y sanciones por atrasos en la respuesta a los derechos de petición de la Dirección de Formalización Minera | G37: la falta de seguimiento y control en la atención oportuna y completa de los derechos de petición | H37: Ejecucion y Administracion de procesos | I37: 60 | J37: Media | K37: =IF(J37="","",IF(J37="Muy Baja",0.2,IF(J37="Baja",0.4,IF(J37="Media",0.6,IF(J37="Alta",0.8,IF(J37="Muy Alta",1,)))))) -> 0.6 | L37: El riesgo afecta la imagen de de la entidad con efecto publicitario sostenido a nivel de sector administrativo, nivel departamental o municipal | M37: =IF(NOT(ISERROR(MATCH(L37,'[5]Tabla Impacto'!#REF!,0))),'[5]Tabla Impacto'!$F$229&"Por favor no seleccionar los criterios de impacto(Afectación Económica o presupuestal y Pérdida Reputacional)",L37) -> El riesgo afecta la imagen de de la entidad con efecto publicitario sostenido a nivel de sector administrativo, nivel departamental o municipal | N37: =IF(OR(M37='[5]Tabla Impacto'!$C$11,M37='[5]Tabla Impacto'!$D$11),"Leve",IF(OR(M37='[5]Tabla Impacto'!$C$12,M37='[5]Tabla Impacto'!$D$12),"Menor",IF(OR(M37='[5]Tabla Impacto'!$C$13,M37='[5]Tabla Impacto'!$D$13),"Moderado",IF(OR(M37='[5]Tabla Impacto'!$C$14,M37='[5]Tabla Impacto'!$D$14),"Mayor",IF(OR(M37='[5]Tabla Impacto'!$C$15,M37='[5]Tabla Impacto'!$D$15),"Catastrófico",""))))) -> Mayor | O37: =IF(N37="","",IF(N37="Leve",0.2,IF(N37="Menor",0.4,IF(N37="Moderado",0.6,IF(N37="Mayor",0.8,IF(N37="Catastrófico",1,)))))) -> 0.8 | P37: =IF(OR(AND(J37="Muy Baja",N37="Leve"),AND(J37="Muy Baja",N37="Menor"),AND(J37="Baja",N37="Leve")),"Bajo",IF(OR(AND(J37="Muy baja",N37="Moderado"),AND(J37="Baja",N37="Menor"),AND(J37="Baja",N37="Moderado"),AND(J37="Media",N37="Leve"),AND(J37="Media",N37="Menor"),AND(J37="Media",N37="Moderado"),AND(J37="Alta",N37="Leve"),AND(J37="Alta",N37="Menor")),"Moderado",IF(OR(AND(J37="Muy Baja",N37="Mayor"),AND(J37="Baja",N37="Mayor"),AND(J37="Media",N37="Mayor"),AND(J37="Alta",N37="Moderado"),AND(J37="Alta",N37="Mayor"),AND(J37="Muy Alta",N37="Leve"),AND(J37="Muy Alta",N37="Menor"),AND(J37="Muy Alta",N37="Moderado"),AND(J37="Muy Alta",N37="Mayor")),"Alto",IF(OR(AND(J37="Muy Baja",N37="Catastrófico"),AND(J37="Baja",N37="Catastrófico"),AND(J37="Media",N37="Catastrófico"),AND(J37="Alta",N37="Catastrófico"),AND(J37="Muy Alta",N37="Catastrófico")),"Extremo","")))) -> Alto | Q37: 1 | R37: El /los profesionales de apoyo designados en la Dirección, enviarán alertas relacionadas con los derechos de petición próximos a vencer, de acuerdo con el correo que remite la oficina de relacionamiento con el ciudadano, adicionalmente, el Coordinador de cada grupo de la Dirección de Formalización Minera, realiza la revisión del aplicativo Argo para el reparto y posterior verificación de la respuesta completa y oportuna por parte del funcionario o contratista asignado | S37: Supervisor delegado para el convenio o contrato | T37: Realizar el seguimiento a las obligaciones y términos contractuales de acuerdo con el manual de contratación de la entidad y con los términos establecidos en el convenio o contrato, en aras de validar la gestión en la entrega y pago de los productos o servicios prestados y /o solicitar los ajustes o complementos necesarios | U37: * Comunicaciones oficiales * Informes de supervisión * Acta de designación de apoyo a la supervisión, entre otros, según aplique, lo cual será ubicado en una carpeta definida por cada coordinación. | V37: Probabilidad | W37: Preventivo | X37: Manual | Y37: 40% | Z37: Sin Documentar | AA37: Continua | AB37: Con Registro | AC37: =IFERROR(IF(V37="Probabilidad",(K37-(+K37*Y37)),IF(V37="Impacto",K37,"")),"") -> 0.36 | AD37: =IFERROR(IF(AC37="","",IF(AC37<=0.2,"Muy Baja",IF(AC37<=0.4,"Baja",IF(AC37<=0.6,"Media",IF(AC37<=0.8,"Alta","Muy Alta"))))),"") -> Baja | AE37: =+AC37 -> 0.36 | AF37: =IFERROR(IF(AG37="","",IF(AG37<=0.2,"Leve",IF(AG37<=0.4,"Menor",IF(AG37<=0.6,"Moderado",IF(AG37<=0.8,"Mayor","Catastrófico"))))),"") -> Mayor | AG37: =IFERROR(IF(V37="Impacto",(O37-(+O37*Y37)),IF(V37="Probabilidad",O37,"")),"") -> 0.8 | AH37: =IFERROR(IF(OR(AND(AD37="Muy Baja",AF37="Leve"),AND(AD37="Muy Baja",AF37="Menor"),AND(AD37="Baja",AF37="Leve")),"Bajo",IF(OR(AND(AD37="Muy baja",AF37="Moderado"),AND(AD37="Baja",AF37="Menor"),AND(AD37="Baja",AF37="Moderado"),AND(AD37="Media",AF37="Leve"),AND(AD37="Media",AF37="Menor"),AND(AD37="Media",AF37="Moderado"),AND(AD37="Alta",AF37="Leve"),AND(AD37="Alta",AF37="Menor")),"Moderado",IF(OR(AND(AD37="Muy Baja",AF37="Mayor"),AND(AD37="Baja",AF37="Mayor"),AND(AD37="Media",AF37="Mayor"),AND(AD37="Alta",AF37="Moderado"),AND(AD37="Alta",AF37="Mayor"),AND(AD37="Muy Alta",AF37="Leve"),AND(AD37="Muy Alta",AF37="Menor"),AND(AD37="Muy Alta",AF37="Moderado"),AND(AD37="Muy Alta",AF37="Mayor")),"Alto",IF(OR(AND(AD37="Muy Baja",AF37="Catastrófico"),AND(AD37="Baja",AF37="Catastrófico"),AND(AD37="Media",AF37="Catastrófico"),AND(AD37="Alta",AF37="Catastrófico"),AND(AD37="Muy Alta",AF37="Catastrófico")),"Extremo","")))),"") -> Alto | AI37: Evitar | AN37: Coordinadores de grupo | AO37: Dirección de Formalización (cada grupo de Coordinación) | AP37: Director/a de Formalización Minera | AQ37: 2025-02-01 | AR37: 2025-12-31 | AS37: Durante le primer trimestre no se ha generado incumplimiento en atención a derechos de petición, se anexan soportes de correos y acciones adelantadas. | AT37: No | AU37: No se registra evidencia para verificación
A38: 31 | B38: HIDROCARBUROS | C38: Gestión | D38: Posibilidad de afectacion económico y reputacional por pérdida de memoria institucional debido a inadecuado manejo de la información | E38: económico y reputacional | F38: pérdida de memoria institucional | G38: inadecuado manejo de la información | H38: Ejecucion y Administracion de procesos | I38: 365 | J38: =IF(I38<=0,"",IF(I38<=2,"Muy Baja",IF(I38<=5,"Baja",IF(I38<=19,"Media",IF(I38<=50,"Alta","Muy Alta"))))) -> Muy Alta | K38: 1 | L38: El riesgo afecta la imagen de la entidad con algunos usuarios de relevancia frente al logro de los objetivos | M38: =IF(NOT(ISERROR(MATCH(L38,'[7]Tabla Impacto'!$B$221:$B$223,0))),'[7]Tabla Impacto'!$F$223&"Por favor no seleccionar los criterios de impacto(Afectación Económica o presupuestal y Pérdida Reputacional)",L38) -> El riesgo afecta la imagen de la entidad con algunos usuarios de relevancia frente al logro de los objetivos | N38: =IF(OR(M38='[7]Tabla Impacto'!$C$11,M38='[7]Tabla Impacto'!$D$11),"Leve",IF(OR(M38='[7]Tabla Impacto'!$C$12,M38='[7]Tabla Impacto'!$D$12),"Menor",IF(OR(M38='[7]Tabla Impacto'!$C$13,M38='[7]Tabla Impacto'!$D$13),"Moderado",IF(OR(M38='[7]Tabla Impacto'!$C$14,M38='[7]Tabla Impacto'!$D$14),"Mayor",IF(OR(M38='[7]Tabla Impacto'!$C$15,M38='[7]Tabla Impacto'!$D$15),"Catastrófico",""))))) -> Moderado | O38: 0.6 | P38: Alto | Q38: 1 | R38: El colaboradores de la DH, clasifican y organizan la información de acuerdo con las TRD vigentes y los lineamientos del proceso de Gestión Documental, igualmente, en caso que llos responsables de emitir lineamientos respecto de la gestión documental asociada al proceso luego de verificar la información, soliciren al proceso ajustes se procederá con los mismos | S38: colaboradores de la DH | T38: Clasificar y organizar la información de acuerdo con las TRD vigentes y los lineamientos del proceso de Gestión Documental | U38: Formulario Único de Inventario Documental - FUID diligenciado | V38: =IF(OR(W38="Preventivo",W38="Detectivo"),"Probabilidad",IF(W38="Correctivo","Impacto","")) -> Probabilidad | W38: Preventivo | X38: Manual | Y38: =IF(AND(W38="Preventivo",X38="Automático"),"50%",IF(AND(W38="Preventivo",X38="Manual"),"40%",IF(AND(W38="Detectivo",X38="Automático"),"40%",IF(AND(W38="Detectivo",X38="Manual"),"30%",IF(AND(W38="Correctivo",X38="Automático"),"35%",IF(AND(W38="Correctivo",X38="Manual"),"25%","")))))) -> 40% | Z38: Documentado | AA38: Continua | AB38: Con Registro | AC38: =IFERROR(IF(V38="Probabilidad",(K38-(+K38*Y38)),IF(V38="Impacto",K38,"")),"") -> 0.6 | AD38: =IFERROR(IF(AC38="","",IF(AC38<=0.2,"Muy Baja",IF(AC38<=0.4,"Baja",IF(AC38<=0.6,"Media",IF(AC38<=0.8,"Alta","Muy Alta"))))),"") -> Media | AE38: =+AC38 -> 0.6 | AF38: =IFERROR(IF(AG38="","",IF(AG38<=0.2,"Leve",IF(AG38<=0.4,"Menor",IF(AG38<=0.6,"Moderado",IF(AG38<=0.8,"Mayor","Catastrófico"))))),"") -> Moderado | AG38: =IFERROR(IF(V38="Impacto",(O38-(+O38*Y38)),IF(V38="Probabilidad",O38,"")),"") -> 0.6 | AH38: =IFERROR(IF(OR(AND(AD38="Muy Baja",AF38="Leve"),AND(AD38="Muy Baja",AF38="Menor"),AND(AD38="Baja",AF38="Leve")),"Bajo",IF(OR(AND(AD38="Muy baja",AF38="Moderado"),AND(AD38="Baja",AF38="Menor"),AND(AD38="Baja",AF38="Moderado"),AND(AD38="Media",AF38="Leve"),AND(AD38="Media",AF38="Menor"),AND(AD38="Media",AF38="Moderado"),AND(AD38="Alta",AF38="Leve"),AND(AD38="Alta",AF38="Menor")),"Moderado",IF(OR(AND(AD38="Muy Baja",AF38="Mayor"),AND(AD38="Baja",AF38="Mayor"),AND(AD38="Media",AF38="Mayor"),AND(AD38="Alta",AF38="Moderado"),AND(AD38="Alta",AF38="Mayor"),AND(AD38="Muy Alta",AF38="Leve"),AND(AD38="Muy Alta",AF38="Menor"),AND(AD38="Muy Alta",AF38="Moderado"),AND(AD38="Muy Alta",AF38="Mayor")),"Alto",IF(OR(AND(AD38="Muy Baja",AF38="Catastrófico"),AND(AD38="Baja",AF38="Catastrófico"),AND(AD38="Media",AF38="Catastrófico"),AND(AD38="Alta",AF38="Catastrófico"),AND(AD38="Muy Alta",AF38="Catastrófico")),"Extremo","")))),"") -> Moderado | AI38: Evitar | AN38: Profesionales | AO38: Dirección de Hidrocarburos | AP38: Director Técnico - Coordinador de Grupo | AQ38: 2025-02-01 | AR38: 2025-12-31 | AU38: No se realizó reporte por parte de la primera línea
A39: 32 | B39: HIDROCARBUROS | C39: Gestión | D39: Posibilidad de afectacion económico y reputacional por toma de decisiones erroneas por parte del alta gerencia debido a información poco confiable de otras entidades parael reconocimiento de derechos según normativa vigente aplicable al MME | E39: económico y reputacional | F39: toma de decisiones erroneas por parte del alta gerencia | G39: información poco confiable de otras entidades parael reconocimiento de derechos según normativa vigente aplicable al MME | H39: Ejecucion y Administracion de procesos | I39: 12 | J39: Media | K39: 0.6 | L39: El riesgo afecta la imagen de la entidad a nivel nacional, con efecto publicitarios sostenible a nivel país | M39: =IF(NOT(ISERROR(MATCH(L39,'[7]Tabla Impacto'!$B$221:$B$223,0))),'[7]Tabla Impacto'!$F$223&"Por favor no seleccionar los criterios de impacto(Afectación Económica o presupuestal y Pérdida Reputacional)",L39) -> El riesgo afecta la imagen de la entidad a nivel nacional, con efecto publicitarios sostenible a nivel país | N39: =IF(OR(M39='[7]Tabla Impacto'!$C$11,M39='[7]Tabla Impacto'!$D$11),"Leve",IF(OR(M39='[7]Tabla Impacto'!$C$12,M39='[7]Tabla Impacto'!$D$12),"Menor",IF(OR(M39='[7]Tabla Impacto'!$C$13,M39='[7]Tabla Impacto'!$D$13),"Moderado",IF(OR(M39='[7]Tabla Impacto'!$C$14,M39='[7]Tabla Impacto'!$D$14),"Mayor",IF(OR(M39='[7]Tabla Impacto'!$C$15,M39='[7]Tabla Impacto'!$D$15),"Catastrófico",""))))) -> Catastrófico | O39: 1 | P39: Extremo | Q39: 1 | R39: Los profesionales equipo de geoestadística , solicitan la información que no se encuentra en aplicativos y verifican con la información existente Los profesionales, relizan mesas de trabajo con las entidades involucradas y efectuan visita periódicas de segumiento al cumplimiento de los lineamientos a las empresas identificadas aleatoriamente de acuerdo con los resultados del análisis de las mesas de trabajo | S39: Profesionales equipo de geoestadística | T39: Solicitar la información que no se encuentra en aplicativos y verifica con la información existente Realizar mesas de trabajo con las entidades involucradas y efectuar visita periódicas de segumiento al cumplimiento de los lineamientos a las empresas identificadas aleatoriamente de acuerdo con los resultados del análisis de las mesas de trabajo | U39: Base de datos con la información solicitada y verificada Informe con los resultados de la visita de verificación de acuerdo con la plantilla establecida para tal fin. | V39: =IF(OR(W39="Preventivo",W39="Detectivo"),"Probabilidad",IF(W39="Correctivo","Impacto","")) -> Probabilidad | W39: Preventivo | X39: Manual | Y39: =IF(AND(W39="Preventivo",X39="Automático"),"50%",IF(AND(W39="Preventivo",X39="Manual"),"40%",IF(AND(W39="Detectivo",X39="Automático"),"40%",IF(AND(W39="Detectivo",X39="Manual"),"30%",IF(AND(W39="Correctivo",X39="Automático"),"35%",IF(AND(W39="Correctivo",X39="Manual"),"25%","")))))) -> 40% | Z39: Documentado | AA39: Continua | AB39: Con Registro | AC39: 0.36 | AD39: Baja | AE39: 0.36 | AF39: Catastrófico | AG39: 1 | AH39: Extremo | AI39: Evitar | AN39: Coordinador Grupo de Gas Combustible Coordinador Grupo Upstream | AO39: Grupo de Gas Combustible Grupo Upstream | AP39: Director de Hidrocarburos | AQ39: 2025-02-01 | AR39: 2025-12-31 | AU39: No se realizó reporte por parte de la primera línea
A40: 33 | B40: HIDROCARBUROS | C40: Gestión | D40: Posibilidad de afectacion económico y reputacional por retrasos en el abastecimiento de combustibles líquidos y/o gas natural debido a problemas de órden público u operacionales | E40: económico y reputacional | F40: retrasos en el abastecimiento de combustibles líquidos y/o gas natural | G40: problemas de órden público u operacionales | H40: Ejecucion y Administracion de procesos | I40: 12 | J40: Media | K40: 0.6 | L40: El riesgo afecta la imagen de la entidad a nivel nacional, con efecto publicitarios sostenible a nivel país | M40: =IF(NOT(ISERROR(MATCH(L40,'[7]Tabla Impacto'!$B$221:$B$223,0))),'[7]Tabla Impacto'!$F$223&"Por favor no seleccionar los criterios de impacto(Afectación Económica o presupuestal y Pérdida Reputacional)",L40) -> El riesgo afecta la imagen de la entidad a nivel nacional, con efecto publicitarios sostenible a nivel país | N40: =IF(OR(M40='[7]Tabla Impacto'!$C$11,M40='[7]Tabla Impacto'!$D$11),"Leve",IF(OR(M40='[7]Tabla Impacto'!$C$12,M40='[7]Tabla Impacto'!$D$12),"Menor",IF(OR(M40='[7]Tabla Impacto'!$C$13,M40='[7]Tabla Impacto'!$D$13),"Moderado",IF(OR(M40='[7]Tabla Impacto'!$C$14,M40='[7]Tabla Impacto'!$D$14),"Mayor",IF(OR(M40='[7]Tabla Impacto'!$C$15,M40='[7]Tabla Impacto'!$D$15),"Catastrófico",""))))) -> Catastrófico | O40: 1 | P40: Extremo | Q40: 1 | R40: Los profesionales evaluan el nivel de abastecimiento requerido en tiempo de contingencia y emiten informe con la determinación del almacenamiento estratégico a requerir, adicionalmente los profesionales grupo gas identifican los puntos neuralgicos para abastecimiento por región y lo consolida en una matriz con los puntos a Abastecer | S40: Profesionales | T40: Evaluar el nivel de abastecimiento requerido en tiempo de contingencia Emitir informe de determinación del almacenamiento estratégico a requerir Identificar los puntos neuralgicos para abastecimiento por región Consolidar matriz con los puntos a Abaster | U40: Informe con la determinación del almacenamiento estratégico a requerir | V40: Probabilidad | W40: Preventivo | X40: Manual | Y40: 40% | Z40: Documentado | AA40: Continua | AB40: Con Registro | AC40: 0.36 | AD40: Baja | AE40: 0.36 | AF40: Catastrófico | AG40: 1 | AH40: Extremo | AI40: Evitar | AN40: Grupo de Gas Combustible | AO40: Grupo de Gas Combustible | AP40: Director Técnico - Coordinador de Grupo | AQ40: 2025-02-01 | AR40: 2025-12-31 | AU40: No se realizó reporte por parte de la primera línea
A41: 34 | B41: HIDROCARBUROS | C41: Gestión | D41: Posibilidad de afectacion económico y reputacional por procesos sancionatorios debido a debilidades en el cumplimiento del manual de supervisión de contratos y/o convenios | E41: económico y reputacional | F41: procesos sancionatorios | G41: debilidades en el cumplimiento del manual de supervisión de contratos y/o convenios | H41: Ejecucion y Administracion de procesos | I41: 156 | J41: Muy Alta | K41: 1 | L41: El riesgo afecta la imagen de la entidad con algunos usuarios de relevancia frente al logro de los objetivos | M41: =IF(NOT(ISERROR(MATCH(L41,'[7]Tabla Impacto'!$B$221:$B$223,0))),'[7]Tabla Impacto'!$F$223&"Por favor no seleccionar los criterios de impacto(Afectación Económica o presupuestal y Pérdida Reputacional)",L41) -> El riesgo afecta la imagen de la entidad con algunos usuarios de relevancia frente al logro de los objetivos | N41: =IF(OR(M41='[7]Tabla Impacto'!$C$11,M41='[7]Tabla Impacto'!$D$11),"Leve",IF(OR(M41='[7]Tabla Impacto'!$C$12,M41='[7]Tabla Impacto'!$D$12),"Menor",IF(OR(M41='[7]Tabla Impacto'!$C$13,M41='[7]Tabla Impacto'!$D$13),"Moderado",IF(OR(M41='[7]Tabla Impacto'!$C$14,M41='[7]Tabla Impacto'!$D$14),"Mayor",IF(OR(M41='[7]Tabla Impacto'!$C$15,M41='[7]Tabla Impacto'!$D$15),"Catastrófico",""))))) -> Moderado | O41: 0.6 | P41: Alto | Q41: 1 | R41: El profesional designado verifica el progreso del cumplimiento y ejecución contractual de forma mensual y en caso de encontrar desviaciones al control, solicita los ajustes respectivos, esta información encontrada es informada al coordinador y director para la toma de decisiones | S41: Profesional, coordinador y director | T41: Verificar el progreso del cumplimiento y ejecución contractual de forma mensual y en caso de encontrar desviaciones al control, solicitar los ajustes respectivos | U41: Matriz de Control (Tablero) y seguimiento e informe según el tablero | V41: Probabilidad | W41: Preventivo | X41: Manual | Y41: 40% | Z41: Documentado | AA41: Continua | AB41: Con Registro | AC41: 0.6 | AD41: Media | AE41: 0.6 | AF41: Moderado | AG41: 0.6 | AH41: Moderado | AI41: Evitar | AN41: Grupo de Gas Combustible | AO41: Grupo de Gas Combustible | AP41: Director Técnico - Coordinador de Grupo | AQ41: 2025-02-01 | AR41: 2025-12-31 | AU41: No se realizó reporte por parte de la primera línea
A42: 35 | B42: HIDROCARBUROS | C42: Gestión | D42: Posibilidad de afectacion económico y reputacional por inadecuada liquidación de los recursos señalados en el artículo 19 de la Ley 10 de 1961 debido a información poco confiable reportada por otras entidades | E42: económico y reputacional | F42: inadecuada liquidación de los recursos señalados en el artículo 19 de la Ley 10 de 1961 | G42: información poco confiable reportada por otras entidades | H42: Ejecucion y Administracion de procesos | I42: 4 | J42: Baja | K42: 0.4 | L42: El riesgo afecta la imagen de la entidad con algunos usuarios de relevancia frente al logro de los objetivos | M42: =IF(NOT(ISERROR(MATCH(L42,'[7]Tabla Impacto'!$B$221:$B$223,0))),'[7]Tabla Impacto'!$F$223&"Por favor no seleccionar los criterios de impacto(Afectación Económica o presupuestal y Pérdida Reputacional)",L42) -> El riesgo afecta la imagen de la entidad con algunos usuarios de relevancia frente al logro de los objetivos | N42: =IF(OR(M42='[7]Tabla Impacto'!$C$11,M42='[7]Tabla Impacto'!$D$11),"Leve",IF(OR(M42='[7]Tabla Impacto'!$C$12,M42='[7]Tabla Impacto'!$D$12),"Menor",IF(OR(M42='[7]Tabla Impacto'!$C$13,M42='[7]Tabla Impacto'!$D$13),"Moderado",IF(OR(M42='[7]Tabla Impacto'!$C$14,M42='[7]Tabla Impacto'!$D$14),"Mayor",IF(OR(M42='[7]Tabla Impacto'!$C$15,M42='[7]Tabla Impacto'!$D$15),"Catastrófico",""))))) -> Moderado | O42: 0.6 | P42: Moderado | Q42: 1 | R42: El profesionales validan la información en el sistema de la ANH y genera la liquidación según el procedimiento vigente (EP-P-61), en caso de encontrar desviación al control solicita a la ANH la actualización de la información en el sistema, es información es validada por el coordinador y el director. | S42: Profesionales, coordinador y director | T42: Validar la información en el sistema de la ANH y generar la liquidación según el procedimiento vigente (EP-P-61), en caso de encontrar desviación al control solicitar a la ANH la actualización de la información en el sistema | U42: Oficios con la liquidación de los valores o confirmación de valores liquidados | V42: Probabilidad | W42: Preventivo | X42: Manual | Y42: 40% | Z42: Documentado | AA42: Continua | AB42: Con Registro | AC42: 0.24 | AD42: Baja | AE42: 0.24 | AF42: Moderado | AG42: 0.6 | AH42: Moderado | AI42: Evitar | AN42: Coordinador Grupo Upstream | AO42: Grupo Upstream | AP42: Director de Hidrocarburos | AQ42: 2025-02-01 | AR42: 2025-12-31 | AU42: No se realizó reporte por parte de la primera línea
A43: 36 | B43: HIDROCARBUROS | C43: Gestión | D43: Posibilidad de afectacion reputacional por el sistema capture variables que no correspondan con la información definida dentro de la metodología, para la difusion de los boletines estadisticos debido a ausencia de parametrización de las reglas establecidas en el sistema (SQL) | E43: reputacional | F43: el sistema capture variables que no correspondan con la información definida dentro de la metodología, para la difusion de los boletines estadisticos | G43: ausencia de parametrización de las reglas establecidas en el sistema (SQL) | H43: Ejecucion y Administracion de procesos | I43: 4 | J43: Baja | K43: 0.4 | L43: El riesgo afecta la imagen de la entidad con algunos usuarios de relevancia frente al logro de los objetivos | M43: =IF(NOT(ISERROR(MATCH(L43,'[7]Tabla Impacto'!$B$221:$B$223,0))),'[7]Tabla Impacto'!$F$223&"Por favor no seleccionar los criterios de impacto(Afectación Económica o presupuestal y Pérdida Reputacional)",L43) -> El riesgo afecta la imagen de la entidad con algunos usuarios de relevancia frente al logro de los objetivos | N43: =IF(OR(M43='[7]Tabla Impacto'!$C$11,M43='[7]Tabla Impacto'!$D$11),"Leve",IF(OR(M43='[7]Tabla Impacto'!$C$12,M43='[7]Tabla Impacto'!$D$12),"Menor",IF(OR(M43='[7]Tabla Impacto'!$C$13,M43='[7]Tabla Impacto'!$D$13),"Moderado",IF(OR(M43='[7]Tabla Impacto'!$C$14,M43='[7]Tabla Impacto'!$D$14),"Mayor",IF(OR(M43='[7]Tabla Impacto'!$C$15,M43='[7]Tabla Impacto'!$D$15),"Catastrófico",""))))) -> Moderado | O43: 0.6 | P43: Moderado | Q43: 1 | R43: El Profesional liquidos/Profesional Downstream/Profesional BI - SICOM, valida el registro de errores y realiza los ajustes y pruebas a las reglas de validacion establecidas en la base de datos durante la etapa de analisisa mediante un reporte de los casos en el sistema aranda de manera mensual donde se adjunte el Log de errors de la Base de Datos SQL, cuando existe una desviación en las variables realizan ajustes de variables según la metodología establecida. Adicionalmente, verifica el periodo de publicación dentro de los tiempos de calendario de difusión establecidos, antes de su publicacion.a mediante el EP-F-11 Calendario de difusión del proceso estadístico de las transacciones de volúmenes líquidos derivados del petróleo, en caso de presentar novedades en relación con accesibilidad, remite Correo electronico notificando novedades para ajustes; si no hay novedades en la verificación del periodo a publicar realiza la aprobación del boletin | S43: El Profesional liquidos/Profesional Downstream/Profesional BI - SICOM, | T43: Validar el registro de errores y realizar los ajustes y pruebas a las reglas de validacion establecidas en la base de datos durante la etapa de analisisa , cuando existe una desviación en las variables realizan ajustes de variables según la metodología establecida. Verificar el periodo de publicación dentro de los tiempos de calendario de difusión establecidos, antes de su publicacion, en caso de presentar novedades en relación con accesibilidad, remite correo electronico notificando novedades para ajustes; si no hay novedades en la verificación del periodo a publicar realiza la aprobación del boletin | U43: Reporte de los casos en el sistema aranda de manera mensual donde se adjunte el Log de errors de la Base de Datos SQL EP-F-11 Calendario de difusión del proceso estadístico de las transacciones de volúmenes líquidos derivados del petróleo Boletín | V43: Probabilidad | W43: Preventivo | X43: Manual | Y43: 40% | Z43: Documentado | AA43: Continua | AB43: Con Registro | AC43: 0.24 | AD43: Baja | AE43: 0.24 | AF43: Moderado | AG43: 0.6 | AH43: Moderado | AI43: Evitar | AN43: Dayer Gozalez / Rafael Tabarez Profesional Downstream - SICOM / Profesional Grupo liquidos - SICOM | AO43: Direccion de hidrocarburos | AP43: Director de Hidrocarburos | AQ43: 2025-02-01 | AR43: 2025-12-31 | AU43: No se realizó reporte por parte de la primera línea
A44: 37 | B44: HIDROCARBUROS | C44: Gestión | D44: Posibilidad de afectacion reputacional por la información producida no contribuye al desarrollo de políticas públicas que respondan a las necesidades institucionales, de los clientes y partes interesadas debido a ausencia de identificación y priorización de necesidades de información estadística relevante | E44: reputacional | F44: la información producida no contribuye al desarrollo de políticas públicas que respondan a las necesidades institucionales, de los clientes y partes interesadas | G44: ausencia de identificación y priorización de necesidades de información estadística relevante | H44: Ejecucion y Administracion de procesos | I44: 12 | J44: Media | K44: 0.6 | L44: El riesgo afecta la imagen de la entidad con algunos usuarios de relevancia frente al logro de los objetivos | M44: =IF(NOT(ISERROR(MATCH(L44,'[7]Tabla Impacto'!$B$221:$B$223,0))),'[7]Tabla Impacto'!$F$223&"Por favor no seleccionar los criterios de impacto(Afectación Económica o presupuestal y Pérdida Reputacional)",L44) -> El riesgo afecta la imagen de la entidad con algunos usuarios de relevancia frente al logro de los objetivos | N44: =IF(OR(M44='[7]Tabla Impacto'!$C$11,M44='[7]Tabla Impacto'!$D$11),"Leve",IF(OR(M44='[7]Tabla Impacto'!$C$12,M44='[7]Tabla Impacto'!$D$12),"Menor",IF(OR(M44='[7]Tabla Impacto'!$C$13,M44='[7]Tabla Impacto'!$D$13),"Moderado",IF(OR(M44='[7]Tabla Impacto'!$C$14,M44='[7]Tabla Impacto'!$D$14),"Mayor",IF(OR(M44='[7]Tabla Impacto'!$C$15,M44='[7]Tabla Impacto'!$D$15),"Catastrófico",""))))) -> Moderado | O44: 0.6 | P44: Moderado | Q44: 1 | R44: El Lider Downstream/ Servicio al Ciudadano/Equipo SICOM, identifica mensualmente las necesidades de informacion asociadas a la operación estadistica a través de los diferentes canales; prioriza y gestiona para su analisis y respuesta (registros de trazabilidad) | S44: El Lider Downstream/ Servicio al Ciudadano/Equipo SICOM | T44: Identifica mensualmente las necesidades de informacion asociadas a la operación estadistica a través de los diferentes canales; prioriza y gestiona para su analisis y respuesta (registros de trazabilidad) | U44: Registro de gestión de PQR´S (MME) Registro casos (portal autogestión aranda- SICOM) | V44: =IF(OR(W44="Preventivo",W44="Detectivo"),"Probabilidad",IF(W44="Correctivo","Impacto","")) -> Probabilidad | W44: Preventivo | X44: Manual | Y44: =IF(AND(W44="Preventivo",X44="Automático"),"50%",IF(AND(W44="Preventivo",X44="Manual"),"40%",IF(AND(W44="Detectivo",X44="Automático"),"40%",IF(AND(W44="Detectivo",X44="Manual"),"30%",IF(AND(W44="Correctivo",X44="Automático"),"35%",IF(AND(W44="Correctivo",X44="Manual"),"25%","")))))) -> 40% | Z44: Sin Documentar | AA44: Continua | AB44: Con Registro | AC44: 0.36 | AD44: Baja | AE44: 0.36 | AF44: Moderado | AG44: 0.6 | AH44: Moderado | AI44: Evitar | AN44: Dayer Gozalez / Rafael Tabarez Profesional Downstream - SICOM / Profesional Grupo liquidos - SICOM | AO44: Direccion de hidrocarburos | AP44: Director de Hidrocarburos | AQ44: 2025-02-01 | AR44: 2025-12-31 | AU44: No se realizó reporte por parte de la primera línea
A45: 38 | B45: HIDROCARBUROS | C45: Gestión | D45: Posibilidad de afectacion reputacional por la información producida no contribuye al desarrollo de políticas públicas que respondan a las necesidades institucionales, de los clientes y partes interesadas debido a la Construcción de procedimientos, instrumentos, mecanismos y herramientas que no corresponden a los objetivos de la operación estadística | E45: reputacional | F45: la información producida no contribuye al desarrollo de políticas públicas que respondan a las necesidades institucionales, de los clientes y partes interesadas | G45: la Construcción de procedimientos, instrumentos, mecanismos y herramientas que no corresponden a los objetivos de la operación estadística | H45: Ejecucion y Administracion de procesos | I45: 12 | J45: Media | K45: 0.6 | L45: El riesgo afecta la imagen de la entidad con algunos usuarios de relevancia frente al logro de los objetivos | M45: =IF(NOT(ISERROR(MATCH(L45,'[7]Tabla Impacto'!$B$221:$B$223,0))),'[7]Tabla Impacto'!$F$223&"Por favor no seleccionar los criterios de impacto(Afectación Económica o presupuestal y Pérdida Reputacional)",L45) -> El riesgo afecta la imagen de la entidad con algunos usuarios de relevancia frente al logro de los objetivos | N45: =IF(OR(M45='[7]Tabla Impacto'!$C$11,M45='[7]Tabla Impacto'!$D$11),"Leve",IF(OR(M45='[7]Tabla Impacto'!$C$12,M45='[7]Tabla Impacto'!$D$12),"Menor",IF(OR(M45='[7]Tabla Impacto'!$C$13,M45='[7]Tabla Impacto'!$D$13),"Moderado",IF(OR(M45='[7]Tabla Impacto'!$C$14,M45='[7]Tabla Impacto'!$D$14),"Mayor",IF(OR(M45='[7]Tabla Impacto'!$C$15,M45='[7]Tabla Impacto'!$D$15),"Catastrófico",""))))) -> Moderado | O45: 0.6 | P45: Moderado | Q45: 1 | R45: El Lider Downstream, realiza un monitoreo a los instrumentos, mecanismos y herramientas del proceso estadistico que permita identificar el incumplimiento frente a las metodologias definidas en la NTC PE 1000:2020 y en caso de existir desviaciones, corregir y actualizar los hallazgos | S45: Lider Downstream, | T45: Realizar monitoreo a los instrumentos, mecanismos y herramientas del proceso estadistico que permita identificar el incumplimiento frente a las metodologias definidas en la NTC PE 1000:2020 y en caso de existir desviaciones, corregir y actualizar los hallazgos mediante un plan de mejoramiento | U45: Evaluación de la operación estadistica anual Auditorias internas anuales plan de mejoramiento | V45: =IF(OR(W45="Preventivo",W45="Detectivo"),"Probabilidad",IF(W45="Correctivo","Impacto","")) -> Probabilidad | W45: Preventivo | X45: Manual | Y45: =IF(AND(W45="Preventivo",X45="Automático"),"50%",IF(AND(W45="Preventivo",X45="Manual"),"40%",IF(AND(W45="Detectivo",X45="Automático"),"40%",IF(AND(W45="Detectivo",X45="Manual"),"30%",IF(AND(W45="Correctivo",X45="Automático"),"35%",IF(AND(W45="Correctivo",X45="Manual"),"25%","")))))) -> 40% | Z45: Documentado | AA45: Continua | AB45: Con Registro | AC45: 0.36 | AD45: Baja | AE45: 0.36 | AF45: Moderado | AG45: 0.6 | AH45: Moderado | AI45: Evitar | AN45: Dayer Gozalez / Rafael Tabarez Profesional Downstream - SICOM / Profesional Grupo liquidos - SICOM | AO45: Direccion de hidrocarburos | AP45: Director de Hidrocarburos | AQ45: 2025-02-01 | AR45: 2025-12-31 | AU45: No se realizó reporte por parte de la primera línea
A46: 39 | B46: HIDROCARBUROS | C46: Gestión | D46: Posibilidad de afectacion reputacional por Publicación de información errónea o limitada para los grupos de interés del ministerio debido a no identificar los grupos de interes, sus necesidades de informacion y herramientas de publicacion de información | E46: reputacional | F46: Publicación de información errónea o limitada para los grupos de interés del ministerio | G46: no identificar los grupos de interes, sus necesidades de informacion y herramientas de publicacion de información | H46: Ejecucion y Administracion de procesos | I46: 12 | J46: Media | K46: 0.6 | L46: El riesgo afecta la imagen de la entidad con algunos usuarios de relevancia frente al logro de los objetivos | M46: =IF(NOT(ISERROR(MATCH(L46,'[7]Tabla Impacto'!$B$221:$B$223,0))),'[7]Tabla Impacto'!$F$223&"Por favor no seleccionar los criterios de impacto(Afectación Económica o presupuestal y Pérdida Reputacional)",L46) -> El riesgo afecta la imagen de la entidad con algunos usuarios de relevancia frente al logro de los objetivos | N46: =IF(OR(M46='[7]Tabla Impacto'!$C$11,M46='[7]Tabla Impacto'!$D$11),"Leve",IF(OR(M46='[7]Tabla Impacto'!$C$12,M46='[7]Tabla Impacto'!$D$12),"Menor",IF(OR(M46='[7]Tabla Impacto'!$C$13,M46='[7]Tabla Impacto'!$D$13),"Moderado",IF(OR(M46='[7]Tabla Impacto'!$C$14,M46='[7]Tabla Impacto'!$D$14),"Mayor",IF(OR(M46='[7]Tabla Impacto'!$C$15,M46='[7]Tabla Impacto'!$D$15),"Catastrófico",""))))) -> Moderado | O46: 0.6 | P46: Moderado | Q46: 1 | R46: El Líder Grupo Gas Operador SICOM identifica las necesidades de informacion, para su análisis y respuesta; revisa que los productos estadísticos sean accesibles comprensibles para los grupos de interés en los canales de comunicación establecidos; en caso de encontrar desviaciones realizar mejoras en la informacion publicada o mantenimiento de los servicios | S46: Líder Grupo Gas / Operador SICOM | T46: Identificar las necesidades de informacion, para su análisis y respuesta (registros de trazabilidad) y revisa que los productos estadísticos sean accesibles y de comprensión para los grupos de interés, en los canales de comunicación establecidos | U46: Documentos de analisis de necesidades de registro de PQRS de la informacion estadistica a traves de ARGO. Correo de aprobacion sobre la accesibilidad para la publicación de la información | V46: =IF(OR(W46="Preventivo",W46="Detectivo"),"Probabilidad",IF(W46="Correctivo","Impacto","")) -> Probabilidad | W46: Preventivo | X46: Manual | Y46: =IF(AND(W46="Preventivo",X46="Automático"),"50%",IF(AND(W46="Preventivo",X46="Manual"),"40%",IF(AND(W46="Detectivo",X46="Automático"),"40%",IF(AND(W46="Detectivo",X46="Manual"),"30%",IF(AND(W46="Correctivo",X46="Automático"),"35%",IF(AND(W46="Correctivo",X46="Manual"),"25%","")))))) -> 40% | Z46: Documentado | AA46: Continua | AB46: Con Registro | AC46: 0.36 | AD46: Baja | AE46: 0.36 | AF46: Moderado | AG46: 0.6 | AH46: Moderado | AI46: Evitar | AN46: Dayer Gozalez / Rafael Tabarez Profesional Downstream - SICOM / Profesional Grupo GAS - SICOM | AO46: Direccion de hidrocarburos | AP46: Director de Hidrocarburos | AQ46: 2025-02-01 | AR46: 2025-12-31 | AU46: No se realizó reporte por parte de la primera línea
A47: 40 | B47: HIDROCARBUROS | C47: Gestión | D47: Posibilidad de afectacion reputacional por Incumplimiento en una o varias fases del proceso estadistico seguno la NTC PE 1000 - 2020 que pueden afectar la producción estadística debido a no comunicar los cambios que se puedan presentar a nivel institucional (estratégicos, lineamientos operativos, personal) y/o falta de claridad de los roles, definicion de responsabilidades y falta de conocimiento para el desarrollo de las actividades de la operación estadistica | E47: reputacional | F47: Incumplimiento en una o varias fases del proceso estadistico seguno la NTC PE 1000 - 2020 que pueden afectar la producción estadística | G47: no comunicar los cambios que se puedan presentar a nivel institucional (estratégicos, lineamientos operativos, personal) y/o falta de claridad de los roles, definicion de responsabilidades y falta de conocimiento para el desarrollo de las actividades de la operación estadistica | H47: Ejecucion y Administracion de procesos | I47: 2 | J47: Muy Baja | K47: 0.2 | L47: El riesgo afecta la imagen de la entidad con algunos usuarios de relevancia frente al logro de los objetivos | M47: =IF(NOT(ISERROR(MATCH(L47,'[7]Tabla Impacto'!$B$221:$B$223,0))),'[7]Tabla Impacto'!$F$223&"Por favor no seleccionar los criterios de impacto(Afectación Económica o presupuestal y Pérdida Reputacional)",L47) -> El riesgo afecta la imagen de la entidad con algunos usuarios de relevancia frente al logro de los objetivos | N47: =IF(OR(M47='[7]Tabla Impacto'!$C$11,M47='[7]Tabla Impacto'!$D$11),"Leve",IF(OR(M47='[7]Tabla Impacto'!$C$12,M47='[7]Tabla Impacto'!$D$12),"Menor",IF(OR(M47='[7]Tabla Impacto'!$C$13,M47='[7]Tabla Impacto'!$D$13),"Moderado",IF(OR(M47='[7]Tabla Impacto'!$C$14,M47='[7]Tabla Impacto'!$D$14),"Mayor",IF(OR(M47='[7]Tabla Impacto'!$C$15,M47='[7]Tabla Impacto'!$D$15),"Catastrófico",""))))) -> Moderado | O47: 0.6 | P47: Moderado | Q47: 1 | R47: El Lider Grupo Gas/ Lider / operador SICOM, Realizará periodicamente la evaluacion del proceso estadistico en cada una de las fases, cuando exista una desviacion del control se realiza el cambio correspondiente describiendo en la observacion el tipo de cambio realizado. Igualmente, Informará y participará (en los casos que aplique) al operador y enlace del MME, de las actividades que se realizan al interior de la entidad y que impactan de manera directa la implementación y seguimiento de la OE. Adicionalmente, Definirá los roles y responsabilidades de las personas que desarrollen las actividades dentro del proceso estadistico segun la metodologia definida. y Finalmente, Contará con el personal involucrado en la implementacion (MME) para dar continidad a la actividades planificadas y fortalecer los conocimientos del personal (operador - MME) en temas relacionados con el proceso estadístico. | S47: Lider Grupo Gas/ Lider / operador SICOM | T47: Realizar periodicamente la evaluacion del proceso estadistico en cada una de las fases. cuando exista una desviacion del control se realiza el cambio correspondiente describiendo en la observacion el tipo de cambio realizado. Informar y participar (en los casos que aplique) al operador y enlace del MME, de las actividades que se realizan al interior de la entidad y que impactan de manera directa la implementación y seguimiento de la OE. Definir los roles y responsabilidades de las personas que desarrollen las actividades dentro del proceso estadistico segun la metodologia definida. Contar con el personal involucrado en la implementacion (MME) para dar continidad a la actividades planificadas y fortalecer los conocimientos del personal (operador - MME) en temas relacionados con el proceso estadístico. | U47: Registro evaluación del proceso estadístico Actas de reuniones (cuando aplique) Formación y entrenamiento ( cuando aplique). Matriz de control de personal | V47: Probabilidad | W47: Preventivo | X47: Manual | Y47: 40% | Z47: Documentado | AA47: Continua | AB47: Con Registro | AC47: 0.12 | AD47: Muy Baja | AE47: 0.12 | AF47: Moderado | AG47: 0.6 | AH47: Moderado | AI47: Evitar | AN47: Dayer Gozalez / Rafael Tabarez Profesional Downstream - SICOM / Profesional Grupo GAS - SICOM | AO47: Direccion de hidrocarburos | AP47: Director de Hidrocarburos | AQ47: 2025-02-01 | AR47: 2025-12-31 | AU47: No se realizó reporte por parte de la primera línea
A48: 41 | B48: HIDROCARBUROS | C48: Gestión | D48: Posibilidad de afectacion reputacional por incertidumbre en los resultados del proceso estadistico en relacion la consistencia de los resultados debido a no aplicar la metodología de analisis que permita validar la información publicada, que reflejen la realidad del fenómeno de estudio | E48: reputacional | F48: incertidumbre en los resultados del proceso estadistico en relacion la consistencia de los resultados | G48: no aplicar la metodología de analisis que permita validar la información publicada, que reflejen la realidad del fenómeno de estudio | H48: Ejecucion y Administracion de procesos | I48: 3 | J48: Baja | K48: 0.4 | L48: El riesgo afecta la imagen de la entidad con algunos usuarios de relevancia frente al logro de los objetivos | M48: =IF(NOT(ISERROR(MATCH(L48,'[7]Tabla Impacto'!$B$221:$B$223,0))),'[7]Tabla Impacto'!$F$223&"Por favor no seleccionar los criterios de impacto(Afectación Económica o presupuestal y Pérdida Reputacional)",L48) -> El riesgo afecta la imagen de la entidad con algunos usuarios de relevancia frente al logro de los objetivos | N48: =IF(OR(M48='[7]Tabla Impacto'!$C$11,M48='[7]Tabla Impacto'!$D$11),"Leve",IF(OR(M48='[7]Tabla Impacto'!$C$12,M48='[7]Tabla Impacto'!$D$12),"Menor",IF(OR(M48='[7]Tabla Impacto'!$C$13,M48='[7]Tabla Impacto'!$D$13),"Moderado",IF(OR(M48='[7]Tabla Impacto'!$C$14,M48='[7]Tabla Impacto'!$D$14),"Mayor",IF(OR(M48='[7]Tabla Impacto'!$C$15,M48='[7]Tabla Impacto'!$D$15),"Catastrófico",""))))) -> Moderado | O48: 0.6 | P48: Moderado | Q48: 1 | R48: El Lider Grupo Gas operador SICOM validará mediante socializaciones los resultados del analisis de la produccion estadistica, analizando que la informacion sea comprensiva, tenga credibilidad de resultados y confianza para toma de decisiones. En caso que se encuentre desviaciones del control se reajustará la metodologia aplicada | S48: Lider Grupo Gas operador SICOM | T48: socializar los resultados del analisis de la produccion estadistica, analizando que la informacion sea comprensiva, tenga credibilidad de resultados y confianza para toma de decisiones. | U48: Reportes de las novedades presentadas (caso aranda) Registos de socializacion de los resultados (garabaciones, reuniones, etc) | V48: Probabilidad | W48: Preventivo | X48: Manual | Y48: 40% | Z48: Documentado | AA48: Continua | AB48: Con Registro | AC48: 0.24 | AD48: Baja | AE48: 0.24 | AF48: Moderado | AG48: 0.6 | AH48: Moderado | AI48: Evitar | AN48: Dayer Gozalez / Rafael Tabarez Profesional Downstream - SICOM / Profesional Grupo GAS - SICOM | AO48: Direccion de hidrocarburos | AP48: Director de Hidrocarburos | AQ48: 2025-02-01 | AR48: 2025-12-31 | AU48: No se realizó reporte por parte de la primera línea
A49: 42 | B49: HIDROCARBUROS | C49: Gestión | D49: Posibilidad de afectacion reputacional por Ausencia de informacion estadistica de gas combustible vehicular relevante para la toma de decisiones debido a no publicar oportunamente los productos de informacion estadística, según el cronograma de difusión | E49: reputacional | F49: Ausencia de informacion estadistica de gas combustible vehicular relevante para la toma de decisiones | G49: no publicar oportunamente los productos de informacion estadística, según el cronograma de difusión | H49: Ejecucion y Administracion de procesos | I49: 6 | J49: Media | K49: 0.6 | L49: El riesgo afecta la imagen de alguna área de la organización | M49: =IF(NOT(ISERROR(MATCH(L49,'[7]Tabla Impacto'!$B$221:$B$223,0))),'[7]Tabla Impacto'!$F$223&"Por favor no seleccionar los criterios de impacto(Afectación Económica o presupuestal y Pérdida Reputacional)",L49) -> El riesgo afecta la imagen de alguna área de la organización | N49: =IF(OR(M49='[7]Tabla Impacto'!$C$11,M49='[7]Tabla Impacto'!$D$11),"Leve",IF(OR(M49='[7]Tabla Impacto'!$C$12,M49='[7]Tabla Impacto'!$D$12),"Menor",IF(OR(M49='[7]Tabla Impacto'!$C$13,M49='[7]Tabla Impacto'!$D$13),"Moderado",IF(OR(M49='[7]Tabla Impacto'!$C$14,M49='[7]Tabla Impacto'!$D$14),"Mayor",IF(OR(M49='[7]Tabla Impacto'!$C$15,M49='[7]Tabla Impacto'!$D$15),"Catastrófico",""))))) -> Leve | O49: 0.2 | P49: Moderado | Q49: 1 | R49: El Lider Grupo Gas, Realizará seguimiento periodico al calendario establecido para la publicación de los productos estadísticos y a su vez, realizará monitoreo y actualizaciones en la infraestructura tecnologica y otros instrumentos de comunicación para el acceso a la información. | S49: Lider Grupo Gas | T49: Realizar seguimiento periodico al calendario establecido para la publicación de los productos estadísticos; realizar monitoreo y actualizaciones en la infraestructura tecnologica y otros instrumentos de comunicación para el acceso a la información. | U49: Correos de aprobación de la publicación de la información estadística. Reporte de monitoreo y actualizacion en la infraestructura del boletin estadistico | V49: Probabilidad | W49: Preventivo | X49: Manual | Y49: 40% | Z49: Documentado | AA49: Continua | AB49: Con Registro | AC49: 0.36 | AD49: Baja | AE49: 0.36 | AF49: Leve | AG49: 0.2 | AH49: Bajo | AI49: Evitar | AN49: Dayer Gozalez / Rafael Tabarez Profesional Downstream - SICOM / Profesional Grupo GAS - SICOM | AO49: Direccion de hidrocarburos | AP49: Director de Hidrocarburos | AQ49: 2025-02-01 | AR49: 2025-12-31 | AU49: No se realizó reporte por parte de la primera línea
A50: 43 | B50: HIDROCARBUROS | C50: Gestión | D50: Posibilidad de afectacion reputacional por pago de subsidios u otros beneficios a una empresa prestadora de servicios públicos (Gas Cilindros y RED) que no tienen derecho a los mismos a la luz de requisitos de ley debido a omisión en la aplicación del procedimiento y normatividad para la asignación de recursos | E50: reputacional | F50: pago de subsidios u otros beneficios a una empresa prestadora de servicios públicos (Gas Cilindros y RED) que no tienen derecho a los mismos a la luz de requisitos de ley | G50: omisión en la aplicación del procedimiento y normatividad para la asignación de recursos | H50: Ejecucion y Administracion de procesos | I50: 12 | J50: Media | K50: 0.6 | L50: El riesgo afecta la imagen de la entidad a nivel nacional, con efecto publicitarios sostenible a nivel país | M50: =IF(NOT(ISERROR(MATCH(L50,'[7]Tabla Impacto'!$B$221:$B$223,0))),'[7]Tabla Impacto'!$F$223&"Por favor no seleccionar los criterios de impacto(Afectación Económica o presupuestal y Pérdida Reputacional)",L50) -> El riesgo afecta la imagen de la entidad a nivel nacional, con efecto publicitarios sostenible a nivel país | N50: =IF(OR(M50='[7]Tabla Impacto'!$C$11,M50='[7]Tabla Impacto'!$D$11),"Leve",IF(OR(M50='[7]Tabla Impacto'!$C$12,M50='[7]Tabla Impacto'!$D$12),"Menor",IF(OR(M50='[7]Tabla Impacto'!$C$13,M50='[7]Tabla Impacto'!$D$13),"Moderado",IF(OR(M50='[7]Tabla Impacto'!$C$14,M50='[7]Tabla Impacto'!$D$14),"Mayor",IF(OR(M50='[7]Tabla Impacto'!$C$15,M50='[7]Tabla Impacto'!$D$15),"Catastrófico",""))))) -> Catastrófico | O50: =IF(N50="","",IF(N50="Leve",0.2,IF(N50="Menor",0.4,IF(N50="Moderado",0.6,IF(N50="Mayor",0.8,IF(N50="Catastrófico",1,)))))) -> 1 | P50: =IF(OR(AND(J50="Muy Baja",N50="Leve"),AND(J50="Muy Baja",N50="Menor"),AND(J50="Baja",N50="Leve")),"Bajo",IF(OR(AND(J50="Muy baja",N50="Moderado"),AND(J50="Baja",N50="Menor"),AND(J50="Baja",N50="Moderado"),AND(J50="Media",N50="Leve"),AND(J50="Media",N50="Menor"),AND(J50="Media",N50="Moderado"),AND(J50="Alta",N50="Leve"),AND(J50="Alta",N50="Menor")),"Moderado",IF(OR(AND(J50="Muy Baja",N50="Mayor"),AND(J50="Baja",N50="Mayor"),AND(J50="Media",N50="Mayor"),AND(J50="Alta",N50="Moderado"),AND(J50="Alta",N50="Mayor"),AND(J50="Muy Alta",N50="Leve"),AND(J50="Muy Alta",N50="Menor"),AND(J50="Muy Alta",N50="Moderado"),AND(J50="Muy Alta",N50="Mayor")),"Alto",IF(OR(AND(J50="Muy Baja",N50="Catastrófico"),AND(J50="Baja",N50="Catastrófico"),AND(J50="Media",N50="Catastrófico"),AND(J50="Alta",N50="Catastrófico"),AND(J50="Muy Alta",N50="Catastrófico")),"Extremo","")))) -> Extremo | Q50: 1 | R50: El profesional especializado del grupo gas combustible verifica que la Superintendencia de Servicios Público Domiciliarios (SSPD) envíe el estado de cargue de informaicón en el SUI por parte de las empresas del sector de gas combustible, con el fin de realizar la distribución y asignación de los subsidios, para luego remitir a la Subdirección Administrativa y Financiera para que proceda con el pago respectivo, en caso que no haya validación de cargue de información por parte de la SSPD no se procederá con el pago y se informará a la empresa prestadora. El profesional especializado del grupo gas combustible realiza la debida verificación de datos en cada uno de los aplicativos (SUI-SSPD y aplicativo de subsidios del MME ) para validar que el valor real a pagar sea el mismo en los dos aplicativos, en caso que los valores no sean iguales en ambos aplicativos no se procede al pago. | S50: Profesional especializado grupo gas combustible | T50: Verificar que la Superintendencia de Servicios Público Domiciliarios (SSPD) envíe el estado de cargue de informaicón en el SUI por parte de las empresas del sector de gas combustible, con el fin de realizar la distribución y asignación de los subsidios, para luego remitir a la Subdirección Administrativa y Financiera para que proceda con el pago respectivo, en caso que no haya validación de cargue de información por parte de la SSPD no se procederá con el pago y se informará a la empresa prestadora. verificación de datos en cada uno de los aplicativos (SUI-SSPD y aplicativo de subsidios del MME ) para validar que el valor real a pagar sea el mismo en los dos aplicativos, en caso que los valores no sean iguales en ambos aplicativos no se procede al pago | U50: Comunicación de la SSPD, resolución de pago y comunicación a la empresa prestadora Resolución de pago generada correspondiente a los valores pagados durante el mes. Excel verificación de SUI mes validado | V50: Probabilidad | W50: Preventivo | X50: Manual | Y50: 40% | Z50: Documentado | AA50: Continua | AB50: Con Registro | AC50: =IFERROR(IF(V50="Probabilidad",(K50-(+K50*Y50)),IF(V50="Impacto",K50,"")),"") -> 0.36 | AD50: =IFERROR(IF(AC50="","",IF(AC50<=0.2,"Muy Baja",IF(AC50<=0.4,"Baja",IF(AC50<=0.6,"Media",IF(AC50<=0.8,"Alta","Muy Alta"))))),"") -> Baja | AE50: =+AC50 -> 0.36 | AF50: =IFERROR(IF(AG50="","",IF(AG50<=0.2,"Leve",IF(AG50<=0.4,"Menor",IF(AG50<=0.6,"Moderado",IF(AG50<=0.8,"Mayor","Catastrófico"))))),"") -> Catastrófico | AG50: =IFERROR(IF(V50="Impacto",(O50-(+O50*Y50)),IF(V50="Probabilidad",O50,"")),"") -> 1 | AH50: =IFERROR(IF(OR(AND(AD50="Muy Baja",AF50="Leve"),AND(AD50="Muy Baja",AF50="Menor"),AND(AD50="Baja",AF50="Leve")),"Bajo",IF(OR(AND(AD50="Muy baja",AF50="Moderado"),AND(AD50="Baja",AF50="Menor"),AND(AD50="Baja",AF50="Moderado"),AND(AD50="Media",AF50="Leve"),AND(AD50="Media",AF50="Menor"),AND(AD50="Media",AF50="Moderado"),AND(AD50="Alta",AF50="Leve"),AND(AD50="Alta",AF50="Menor")),"Moderado",IF(OR(AND(AD50="Muy Baja",AF50="Mayor"),AND(AD50="Baja",AF50="Mayor"),AND(AD50="Media",AF50="Mayor"),AND(AD50="Alta",AF50="Moderado"),AND(AD50="Alta",AF50="Mayor"),AND(AD50="Muy Alta",AF50="Leve"),AND(AD50="Muy Alta",AF50="Menor"),AND(AD50="Muy Alta",AF50="Moderado"),AND(AD50="Muy Alta",AF50="Mayor")),"Alto",IF(OR(AND(AD50="Muy Baja",AF50="Catastrófico"),AND(AD50="Baja",AF50="Catastrófico"),AND(AD50="Media",AF50="Catastrófico"),AND(AD50="Alta",AF50="Catastrófico"),AND(AD50="Muy Alta",AF50="Catastrófico")),"Extremo","")))),"") -> Extremo | AI50: Evitar | AO50: Direccion de hidrocarburos | AP50: Director de Hidrocarburos | AQ50: 2025-02-01 | AR50: 2025-12-31 | AU50: No se realizó reporte por parte de la primera línea
A51: 44 | B51: HIDROCARBUROS | C51: Gestión | D51: =IF(C51="Fiscal",_xlfn.CONCAT("Posibilidad de efectos dañosos sobre bienes públicos "," por o para ",F51," debido a ",G51),IF(C51="Gestión",_xlfn.CONCAT("Posibilidad de afectacion ",E51," por ",F51," debido a ",G51),"")) -> Posibilidad de afectacion reputacional por no generar oportunamente las alertas sobre el avance del recaudo del SGR y el comportamiento de las variables utilizadas para las proyecciones del presupuesto bienal del SGR por no realizar el seguimiento al recaudo del SGR y a la determinación mensual de Asignaciones Directas debido a que no se realiza la consolidación mensual de la información reportada por la Agencia Nacional de Minería y la Agencia Nacional de Hidrocarburos mensualmente relacionada con el recaudo por sector de explotación y con la determinación las Asignaciones Directas por beneficiario. | E51: reputacional | F51: no generar oportunamente las alertas sobre el avance del recaudo del SGR y el comportamiento de las variables utilizadas para las proyecciones del presupuesto bienal del SGR por no realizar el seguimiento al recaudo del SGR y a la determinación mensual de Asignaciones Directas | G51: que no se realiza la consolidación mensual de la información reportada por la Agencia Nacional de Minería y la Agencia Nacional de Hidrocarburos mensualmente relacionada con el recaudo por sector de explotación y con la determinación las Asignaciones Directas por beneficiario. | H51: Ejecucion y Administracion de procesos | I51: 12 | J51: =IF(I51<=0,"",IF(I51<=2,"Muy Baja",IF(I51<=24,"Baja",IF(I51<=500,"Media",IF(I51<=5000,"Alta","Muy Alta"))))) -> Baja | K51: 0.4 | L51: El riesgo afecta la imagen de la entidad a nivel nacional, con efecto publicitarios sostenible a nivel país | M51: =IF(NOT(ISERROR(MATCH(L51,'[5]Tabla Impacto'!#REF!,0))),'[5]Tabla Impacto'!$F$229&"Por favor no seleccionar los criterios de impacto(Afectación Económica o presupuestal y Pérdida Reputacional)",L51) -> El riesgo afecta la imagen de la entidad a nivel nacional, con efecto publicitarios sostenible a nivel país | N51: =IF(OR(M51='[5]Tabla Impacto'!$C$11,M51='[5]Tabla Impacto'!$D$11),"Leve",IF(OR(M51='[5]Tabla Impacto'!$C$12,M51='[5]Tabla Impacto'!$D$12),"Menor",IF(OR(M51='[5]Tabla Impacto'!$C$13,M51='[5]Tabla Impacto'!$D$13),"Moderado",IF(OR(M51='[5]Tabla Impacto'!$C$14,M51='[5]Tabla Impacto'!$D$14),"Mayor",IF(OR(M51='[5]Tabla Impacto'!$C$15,M51='[5]Tabla Impacto'!$D$15),"Catastrófico",""))))) -> Catastrófico | O51: 1 | P51: Extremo | Q51: 1 | R51: El Grupo de Regalías, hará seguimiento mensual al recaudo de regalías mediante, el registro en una matriz de seguimiento al recaudo de regalías que informen la Agencia Nacional de Minería y la Agencia Nacional de Hidrocarburos y en caso de ser necesario, alertará cambios en el recaudo frente a la apropiación de Asignaciones Directas de conformidad con lo dispuesto en el artículo 153 de la Ley 2056 de 2020. | S51: Grupo de Regalías | T51: hará seguimiento al recaudo de regalías | U51: el registro en una matriz de seguimiento al recaudo de regalías que informen la Agencia Nacional de Minería y la Agencia Nacional de Hidrocarburos y en caso de ser necesario, alertará cambios en el recaudo frente a la apropiación de Asignaciones Directas de conformidad con lo dispuesto en el artículo 153 de la Ley 2056 de 2020. | V51: =IF(OR(W51="Preventivo",W51="Detectivo"),"Probabilidad",IF(W51="Correctivo","Impacto","")) -> Probabilidad | W51: Preventivo | X51: Manual | Y51: =IF(AND(W51="Preventivo",X51="Automático"),"50%",IF(AND(W51="Preventivo",X51="Manual"),"40%",IF(AND(W51="Detectivo",X51="Automático"),"40%",IF(AND(W51="Detectivo",X51="Manual"),"30%",IF(AND(W51="Correctivo",X51="Automático"),"35%",IF(AND(W51="Correctivo",X51="Manual"),"25%","")))))) -> 40% | Z51: Sin Documentar | AA51: Continua | AB51: Con Registro | AC51: 0.24 | AD51: Baja | AE51: 0.24 | AF51: Catastrófico | AG51: 1 | AH51: Extremo | AI51: Evitar | AJ51: Documentar el control | AK51: Asesora | AL51: 2025-01-01 | AM51: Trimestral | AN51: Coordinador | AO51: Gupo de Regalías | AP51: Jefe de Grupo | AQ51: 2025-01-01 | AR51: 2025-12-31 | AS51: Durante el primer trimestre de 2025 no se materializó el riesgo, se aplicaron los controles establecidos, esto se evidencia teniendo en cuenta que durante este período se realizó el seguimiento al comportamiento del recaudo de regalías informado por las Agencias de Minería e Hidrocarburos, se puede evidenciar que el comportamiento avanza positivamente respecto al recaudo por lo cual no se generan alertas: El recaudo de regalías del bienio 2025-2026 al cierre de este período, alcanzó $3,04 billones, un cumplimiento del 100% para el período y un avance del 11,94% frente a los $25,5 billones estimados para el bienio. En el acumulado el 65% proviene de hidrocarburos ($1,98 billones), el 35% de minería ($1,06 billones). | AT51: No | AU51: Se evidencia seguimiento realizado al recaudo y proyección de regalías
A52: 45 | B52: ASUNTOS NUCLEARES | C52: Gestión | D52: Posibilidad de afectacion económico y reputacional por incidentes o accidentes radiologicos o nucleares que afecten a los usuarios debido a realización de actividades no autorizadas y desactualización de la regulación para el uso seguro de materiales nucleares y radiactivos | E52: económico y reputacional | F52: incidentes o accidentes radiologicos o nucleares que afecten a los usuarios | G52: realización de actividades no autorizadas y desactualización de la regulación para el uso seguro de materiales nucleares y radiactivos | H52: Usuarios, productos y practicas , organizacionales | I52: 7 | J52: =IF(I52<=0,"",IF(I52<=2,"Muy Baja",IF(I52<=24,"Baja",IF(I52<=500,"Media",IF(I52<=5000,"Alta","Muy Alta"))))) -> Baja | K52: =IF(J52="","",IF(J52="Muy Baja",0.2,IF(J52="Baja",0.4,IF(J52="Media",0.6,IF(J52="Alta",0.8,IF(J52="Muy Alta",1,)))))) -> 0.4 | L52: El riesgo afecta la imagen de la entidad a nivel nacional, con efecto publicitarios sostenible a nivel país | M52: =IF(NOT(ISERROR(MATCH(L52,'[5]Tabla Impacto'!#REF!,0))),'[5]Tabla Impacto'!$F$229&"Por favor no seleccionar los criterios de impacto(Afectación Económica o presupuestal y Pérdida Reputacional)",L52) -> El riesgo afecta la imagen de la entidad a nivel nacional, con efecto publicitarios sostenible a nivel país | N52: =IF(OR(M52='[5]Tabla Impacto'!$C$11,M52='[5]Tabla Impacto'!$D$11),"Leve",IF(OR(M52='[5]Tabla Impacto'!$C$12,M52='[5]Tabla Impacto'!$D$12),"Menor",IF(OR(M52='[5]Tabla Impacto'!$C$13,M52='[5]Tabla Impacto'!$D$13),"Moderado",IF(OR(M52='[5]Tabla Impacto'!$C$14,M52='[5]Tabla Impacto'!$D$14),"Mayor",IF(OR(M52='[5]Tabla Impacto'!$C$15,M52='[5]Tabla Impacto'!$D$15),"Catastrófico",""))))) -> Catastrófico | O52: =IF(N52="","",IF(N52="Leve",0.2,IF(N52="Menor",0.4,IF(N52="Moderado",0.6,IF(N52="Mayor",0.8,IF(N52="Catastrófico",1,)))))) -> 1 | P52: =IF(OR(AND(J52="Muy Baja",N52="Leve"),AND(J52="Muy Baja",N52="Menor"),AND(J52="Baja",N52="Leve")),"Bajo",IF(OR(AND(J52="Muy baja",N52="Moderado"),AND(J52="Baja",N52="Menor"),AND(J52="Baja",N52="Moderado"),AND(J52="Media",N52="Leve"),AND(J52="Media",N52="Menor"),AND(J52="Media",N52="Moderado"),AND(J52="Alta",N52="Leve"),AND(J52="Alta",N52="Menor")),"Moderado",IF(OR(AND(J52="Muy Baja",N52="Mayor"),AND(J52="Baja",N52="Mayor"),AND(J52="Media",N52="Mayor"),AND(J52="Alta",N52="Moderado"),AND(J52="Alta",N52="Mayor"),AND(J52="Muy Alta",N52="Leve"),AND(J52="Muy Alta",N52="Menor"),AND(J52="Muy Alta",N52="Moderado"),AND(J52="Muy Alta",N52="Mayor")),"Alto",IF(OR(AND(J52="Muy Baja",N52="Catastrófico"),AND(J52="Baja",N52="Catastrófico"),AND(J52="Media",N52="Catastrófico"),AND(J52="Alta",N52="Catastrófico"),AND(J52="Muy Alta",N52="Catastrófico")),"Extremo","")))) -> Extremo | Q52: 1 | R52: El Coordinador del Grupo de Asuntos Nucleares supervisará y apoyará el cumplimiento de las actividades y requisitos para la elaboración de proyectos normativos relacionados con el uso seguro de materiales nucleares y radiactivos. Asimismo, evaluará las solicitudes de autorización, verificando que cumplan con la normativa vigente, y coordinará la programación de inspecciones para prevenir posibles incumplimientos. | S52: Coordinador del Grupo de Asuntos Nucleares | T52: Planificar y supervisar las actividades necesarias para la elaboración de proyectos normativos que garanticen el uso seguro de materiales nucleares y radiactivos Evaluar las solicitudes de autorización, verificando el cumplimiento de los requisitos normativos para garantizar el uso seguro de materiales nucleares o radiactivos. Supervisar la programación de inspecciones para prevenir posibles incumplimientos normativos. | U52: Matriz de seguimiento proyectos normativos Borrador del proyecto normativo. Documento técnico del dictamen sobre la aprobación o rechazo de la solicitud. Cronograma anual y seguimiento de las inspecciones técnicas de vigilancia y control de instalaciones nucleares y radiactivas a cargo del Ministerio de Minas y Energía. | V52: =IF(OR(W52="Preventivo",W52="Detectivo"),"Probabilidad",IF(W52="Correctivo","Impacto","")) -> Probabilidad | W52: Preventivo | X52: Manual | Y52: =IF(AND(W52="Preventivo",X52="Automático"),"50%",IF(AND(W52="Preventivo",X52="Manual"),"40%",IF(AND(W52="Detectivo",X52="Automático"),"40%",IF(AND(W52="Detectivo",X52="Manual"),"30%",IF(AND(W52="Correctivo",X52="Automático"),"35%",IF(AND(W52="Correctivo",X52="Manual"),"25%","")))))) -> 40% | Z52: Sin Documentar | AA52: Continua | AB52: Con Registro | AC52: =IFERROR(IF(V52="Probabilidad",(K52-(+K52*Y52)),IF(V52="Impacto",K52,"")),"") -> 0.24 | AD52: =IFERROR(IF(AC52="","",IF(AC52<=0.2,"Muy Baja",IF(AC52<=0.4,"Baja",IF(AC52<=0.6,"Media",IF(AC52<=0.8,"Alta","Muy Alta"))))),"") -> Baja | AE52: =+AC52 -> 0.24 | AF52: =IFERROR(IF(AG52="","",IF(AG52<=0.2,"Leve",IF(AG52<=0.4,"Menor",IF(AG52<=0.6,"Moderado",IF(AG52<=0.8,"Mayor","Catastrófico"))))),"") -> Catastrófico | AG52: =IFERROR(IF(V52="Impacto",(O52-(+O52*Y52)),IF(V52="Probabilidad",O52,"")),"") -> 1 | AH52: =IFERROR(IF(OR(AND(AD52="Muy Baja",AF52="Leve"),AND(AD52="Muy Baja",AF52="Menor"),AND(AD52="Baja",AF52="Leve")),"Bajo",IF(OR(AND(AD52="Muy baja",AF52="Moderado"),AND(AD52="Baja",AF52="Menor"),AND(AD52="Baja",AF52="Moderado"),AND(AD52="Media",AF52="Leve"),AND(AD52="Media",AF52="Menor"),AND(AD52="Media",AF52="Moderado"),AND(AD52="Alta",AF52="Leve"),AND(AD52="Alta",AF52="Menor")),"Moderado",IF(OR(AND(AD52="Muy Baja",AF52="Mayor"),AND(AD52="Baja",AF52="Mayor"),AND(AD52="Media",AF52="Mayor"),AND(AD52="Alta",AF52="Moderado"),AND(AD52="Alta",AF52="Mayor"),AND(AD52="Muy Alta",AF52="Leve"),AND(AD52="Muy Alta",AF52="Menor"),AND(AD52="Muy Alta",AF52="Moderado"),AND(AD52="Muy Alta",AF52="Mayor")),"Alto",IF(OR(AND(AD52="Muy Baja",AF52="Catastrófico"),AND(AD52="Baja",AF52="Catastrófico"),AND(AD52="Media",AF52="Catastrófico"),AND(AD52="Alta",AF52="Catastrófico"),AND(AD52="Muy Alta",AF52="Catastrófico")),"Extremo","")))),"") -> Extremo | AI52: Evitar | AJ52: Realizar la docuemntación de los controles | AK52: Juan Pablo Parra | AL52: 2025-03-14 | AM52: 2025-06-30 | AN52: Profesional Especializado del Grupo de Asuntos Nucleares | AO52: Oficina de Asuntos Regulatorios y Empresariales- Grupo de Asuntos Nucleares | AP52: Jefe Oficina de Asuntos Regulatorios y Empresariales | AQ52: 2025-02-03 | AR52: 2025-12-31 | AS52: Desde el grupo de asuntos nucleares se realizaron las siguientes acciones Proyectos normativos: - El 18 de febrero se envía mediante correo electrónico el proyecto normativo “Por el cual se adoptan las normas básicas internacionales de protección radiológica y seguridad” al Ministerio de Salud con el fin de contar su revisión y visto. - El 28 de febrero se envió el proyecto normativo “Por la cual se establecen los requisitos y procedimientos para la expedición de autorizaciones para la importación y exportación de materiales radiactivos en el territorio colombiano” a la oficina de planeación con el fin ajustar el trámite ante función pública y continuar con el proceso del proyecto normativo. - En relación al proyecto normativo “Por medio de la cual se establecen los requisitos y se reglamenta el procedimiento para la expedición de autorizaciones para el transporte seguro de materiales radiactivos en el territorio colombiano” se estructuraron os soportes de la norma como el MIR, cuestionario de la abogacía de la competencia, entre otros y se envió el 31 de marzo a la oficina de planeación con el fin de registrar el trámite ante función publica y continuar con el proceso del proyecto normativo. - Mediante el radicado 2-2025-005381 se envió al DAFP las respuestas a los requerimientos realizados al MIR, correspondiente a la modificación estructural del trámite “Autorización para la prestación del servicio de dosimetría personal” y de esta manera continuar con el proceso del proyecto normativo. Inspecciones - El 19 de febrero se realizó la inspección al Almacén de Fuentes en Desuso - Almacén 1, AFD-1. - El 26 de febrero se realizó la inspección a la empresa Sievert SAS | AT52: No | AU52: Se evidencia seguimiento a la matriz de proyectos normativos que garanticen el uso seguro de materiales nucleares y radiactivos, en el cual se espera se tenga la normatividad en el tercer y cuarto trimestre Igualmente, se evidencia el cumplimiento de seguimiento en lo planeado en el cronograma anual y seguimiento de las inspecciones técnicas de vigilancia y control de instalaciones nucleares y radiactivas a cargo del Ministerio de Minas y Energía.
A53: 46 | B53: ENERGÍA | C53: Gestión | D53: =IF(C53="Fiscal",_xlfn.CONCAT("Posibilidad de efectos dañosos sobre bienes públicos "," por o para ",F53," debido a ",G53),IF(C53="Gestión",_xlfn.CONCAT("Posibilidad de afectacion ",E53," por ",F53," debido a ",G53),"")) -> Posibilidad de afectacion económico y reputacional por sanciones de entes de control por otorgamiento indebido de subsidios debido a incumplimiento de los requisitos minimos exigidos en la normatividad legal vigente. | E53: económico y reputacional | F53: sanciones de entes de control por otorgamiento indebido de subsidios | G53: incumplimiento de los requisitos minimos exigidos en la normatividad legal vigente. | H53: Ejecucion y Administracion de procesos | I53: 11 | J53: Baja | K53: 0.4 | L53: El riesgo afecta la imagen de alguna área de la organización | M53: =IF(NOT(ISERROR(MATCH(L53,'[5]Tabla Impacto'!#REF!,0))),'[5]Tabla Impacto'!$F$229&"Por favor no seleccionar los criterios de impacto(Afectación Económica o presupuestal y Pérdida Reputacional)",L53) -> El riesgo afecta la imagen de alguna área de la organización | N53: =IF(OR(M53='[5]Tabla Impacto'!$C$11,M53='[5]Tabla Impacto'!$D$11),"Leve",IF(OR(M53='[5]Tabla Impacto'!$C$12,M53='[5]Tabla Impacto'!$D$12),"Menor",IF(OR(M53='[5]Tabla Impacto'!$C$13,M53='[5]Tabla Impacto'!$D$13),"Moderado",IF(OR(M53='[5]Tabla Impacto'!$C$14,M53='[5]Tabla Impacto'!$D$14),"Mayor",IF(OR(M53='[5]Tabla Impacto'!$C$15,M53='[5]Tabla Impacto'!$D$15),"Catastrófico",""))))) -> Leve | O53: 0.2 | P53: Bajo | Q53: 1 | R53: El profesional del Grupo de Subsidios, realizará seguimiento a la recepción de la información de consumos de energía de usuarios de áreas especiales la cual se recepciona por medio de correo electrónico en las fechas establecidas en el cronograma, la evidencia es los correos electrónicos | S53: Coordinador Grupo de Subsidios o su delegado | T53: Realizar seguimiento y monitoreo mensual a la información detallada requerida para la distribución de los recursos FOES | U53: Memorandos internos con la validación de la información y asignación de subsidios | V53: =IF(OR(W53="Preventivo",W53="Detectivo"),"Probabilidad",IF(W53="Correctivo","Impacto","")) -> Probabilidad | W53: Detectivo | X53: Manual | Y53: =IF(AND(W53="Preventivo",X53="Automático"),"50%",IF(AND(W53="Preventivo",X53="Manual"),"40%",IF(AND(W53="Detectivo",X53="Automático"),"40%",IF(AND(W53="Detectivo",X53="Manual"),"30%",IF(AND(W53="Correctivo",X53="Automático"),"35%",IF(AND(W53="Correctivo",X53="Manual"),"25%","")))))) -> 30% | Z53: Documentado | AA53: Continua | AB53: Con Registro | AC53: 0.28 | AD53: Baja | AE53: 0.28 | AF53: Leve | AG53: 0.2 | AH53: Bajo | AI53: Evitar | AQ53: 2025-02-03 | AR53: 2025-12-31 | AS53: Durante el primer trimestre se expidió la Resolución FOES No. 237 del 7 de marzo de 2025. Para la expedición de la Resolución se verificaron las certificaciones expedidas por las alcaldías municipales y los AEGR auditores externos de gestión y resultado de acuerdo con lo establecido en el DUR decreto único reglamentario 1073 de 2015. Se presentó el memorando interno No. 3-2025-008432 del 27 de febrero de 2025 con las memorias de cálculo respectivas de la distribución del beneficio FOES y memorando a Secretaría General No. 3-2025-009321 del 5 de marzo de 2025. | AT53: No | AU53: Se evidencia documento que certifica que ha realizado todo el procedimiento necesario, para poder reconocer el beneficio a los comercializadores de energía eléctrica, conforme a la normatividad vigente y al “Procedimiento para la administración del Fondo para la Energía Social - FOES”, establecido en el Sistema Integrado de Información del Ministerio de Minas y Energía (SIGME)
A54: 47 | B54: ENERGÍA | C54: Fiscal | D54: =IF(C54="Fiscal",_xlfn.CONCAT("Posibilidad de efectos dañosos sobre bienes públicos "," por o para ",F54," debido a ",G54),IF(C54="Gestión",_xlfn.CONCAT("Posibilidad de afectacion ",E54," por ",F54," debido a ",G54),"")) -> Posibilidad de efectos dañosos sobre bienes públicos por o para conceptos de superávit no girados al Ministerio por parte de las ESP debido a demoras en los procesos de validación y suministro de información para el inicio de la gestión de cobro de los excedentes de las contribuciones a las empresas prestadoras del servicio público domiciliario de energía eléctrica deudoras del FSRRI | E54: económico y reputacional | F54: conceptos de superávit no girados al Ministerio por parte de las ESP | G54: demoras en los procesos de validación y suministro de información para el inicio de la gestión de cobro de los excedentes de las contribuciones a las empresas prestadoras del servicio público domiciliario de energía eléctrica deudoras del FSRRI | H54: Ejecucion y Administracion de procesos | I54: 12 | J54: =IF(I54<=0,"",IF(I54<=2,"Muy Baja",IF(I54<=24,"Baja",IF(I54<=500,"Media",IF(I54<=5000,"Alta","Muy Alta"))))) -> Baja | K54: 0.4 | L54: Mayor a 500 SMLMV | M54: =IF(NOT(ISERROR(MATCH(L54,'[5]Tabla Impacto'!#REF!,0))),'[5]Tabla Impacto'!$F$229&"Por favor no seleccionar los criterios de impacto(Afectación Económica o presupuestal y Pérdida Reputacional)",L54) -> Mayor a 500 SMLMV | N54: =IF(OR(M54='[5]Tabla Impacto'!$C$11,M54='[5]Tabla Impacto'!$D$11),"Leve",IF(OR(M54='[5]Tabla Impacto'!$C$12,M54='[5]Tabla Impacto'!$D$12),"Menor",IF(OR(M54='[5]Tabla Impacto'!$C$13,M54='[5]Tabla Impacto'!$D$13),"Moderado",IF(OR(M54='[5]Tabla Impacto'!$C$14,M54='[5]Tabla Impacto'!$D$14),"Mayor",IF(OR(M54='[5]Tabla Impacto'!$C$15,M54='[5]Tabla Impacto'!$D$15),"Catastrófico",""))))) -> Catastrófico | O54: 1 | P54: Extremo | Q54: 1 | R54: Validación de las cuentas de subsidios y contribuciones del FSSRI en el SIN, con el fin de establecer el estado de cuenta de las EPS, en caso de encontrar superavit solicitar a la empresa la devolución de los recursos o inicio de proceso de cobro coactivo a la SAF, a demás de Realizar visitas de seguimiento y monitoreo a las EPS - en concordancia con el MANUAL DE VISITAS DE SEGUIMIENTO Y MONITOREO PRESTADORES DEL SERVICIO PÚBLICO DOMICILIARIO DE ENERGÍA ELÉCTRICA EN SIN Y ZNI QUE RECIBEN SUBSIDIOS DEL FSSRI Y FOE, con el objetivo de contrastar, comparar y/o verificar que la información reportada al Ministerio de Minas y Energía y al Sistema Único de Información- SUI, relacionada con subsidios y contribuciones del FSSRI y del FOES esté acorde con la información registrada en el sistema comercial, de facturación, y/o contable del Prestador de Servicio Público Domiciliario de energía eléctrica, para determinar la correcta aplicación de los subsidios del respectivo fondo, en caso de encontrar variaciones en el control se informará a la superintendencia de servicios públicos las observaciones encontradas | S54: Coordinador Grupo de Subsidios o su delegado | T54: Validación de las cuentas de subsidios y contribuciones del FSSRI en el SIN, con el fin de establecer el estado de cuenta de las EPS, en caso de encontrar superavit solicitar a la empresa la devolución de los recursos o inicio de proceso de cobro coactivo a la SAF, a demás de Realizar visitas de seguimiento y monitoreo a las EPS con el objetivo de contrastar, comparar y/o verificar que la información reportada al Ministerio de Minas y Energía y al Sistema Único de Información- SUI, relacionada con subsidios y contribuciones del FSSRI y del FOES esté acorde con la información registrada en el sistema comercial, de facturación, y/o contable del Prestador de Servicio Público Domiciliario de energía eléctrica | U54: Oficio de validación trimestral Informe final de visita | V54: Impacto | W54: Correctivo | X54: Manual | Y54: 25% | Z54: Documentado | AA54: Continua | AB54: Con Registro | AC54: 0.4 | AD54: Baja | AE54: 0.4 | AF54: Mayor | AG54: 0.75 | AH54: Alto | AI54: Evitar | AN54: Contratista designado para reporte de riesgos | AO54: Dirección de Energía | AP54: Jefe de Oficina | AQ54: 2025-02-03 | AR54: 2025-12-31 | AS54: Durante el primer trimestre de 2025 no se realizaron visitas de seguimiento a las empresas prestadoras del servicio público domiciliario de energía eléctrica. Frente a las validaciones de las cuentas de subsidios y contribuciones del FSSRI con corte al primer trimestre del 2025 se expidieron 47 validaciones finales a las empresas comercializadoras, distribuidas así: 34 del FSSRI y 13 del FOES | AT54: No | AU54: Se evidencia la validación realizada de las vigencias 2021,2022,2023 y 2024, se sugiere informar en próximos seguimientos el avance de lo solicitado
A55: 48 | B55: ENERGÍA | C55: Gestión | D55: Posibilidad de afectacion económico y reputacional por requerimento, multa o sanción de organismos de control debido a incumplimiento de los términos de entrega de los requerimentos generados | E55: económico y reputacional | F55: requerimento, multa o sanción de organismos de control | G55: incumplimiento de los términos de entrega de los requerimentos generados | H55: Ejecucion y Administracion de procesos | I55: 100 | J55: =IF(I55<=0,"",IF(I55<=2,"Muy Baja",IF(I55<=24,"Baja",IF(I55<=500,"Media",IF(I55<=5000,"Alta","Muy Alta"))))) -> Media | K55: =IF(J55="","",IF(J55="Muy Baja",0.2,IF(J55="Baja",0.4,IF(J55="Media",0.6,IF(J55="Alta",0.8,IF(J55="Muy Alta",1,)))))) -> 0.6 | L55: El riesgo afecta la imagen de la entidad con algunos usuarios de relevancia frente al logro de los objetivos | M55: =IF(NOT(ISERROR(MATCH(L55,'[5]Tabla Impacto'!#REF!,0))),'[5]Tabla Impacto'!$F$229&"Por favor no seleccionar los criterios de impacto(Afectación Económica o presupuestal y Pérdida Reputacional)",L55) -> El riesgo afecta la imagen de la entidad con algunos usuarios de relevancia frente al logro de los objetivos | N55: =IF(OR(M55='[5]Tabla Impacto'!$C$11,M55='[5]Tabla Impacto'!$D$11),"Leve",IF(OR(M55='[5]Tabla Impacto'!$C$12,M55='[5]Tabla Impacto'!$D$12),"Menor",IF(OR(M55='[5]Tabla Impacto'!$C$13,M55='[5]Tabla Impacto'!$D$13),"Moderado",IF(OR(M55='[5]Tabla Impacto'!$C$14,M55='[5]Tabla Impacto'!$D$14),"Mayor",IF(OR(M55='[5]Tabla Impacto'!$C$15,M55='[5]Tabla Impacto'!$D$15),"Catastrófico",""))))) -> Moderado | O55: =IF(N55="","",IF(N55="Leve",0.2,IF(N55="Menor",0.4,IF(N55="Moderado",0.6,IF(N55="Mayor",0.8,IF(N55="Catastrófico",1,)))))) -> 0.6 | P55: =IF(OR(AND(J55="Muy Baja",N55="Leve"),AND(J55="Muy Baja",N55="Menor"),AND(J55="Baja",N55="Leve")),"Bajo",IF(OR(AND(J55="Muy baja",N55="Moderado"),AND(J55="Baja",N55="Menor"),AND(J55="Baja",N55="Moderado"),AND(J55="Media",N55="Leve"),AND(J55="Media",N55="Menor"),AND(J55="Media",N55="Moderado"),AND(J55="Alta",N55="Leve"),AND(J55="Alta",N55="Menor")),"Moderado",IF(OR(AND(J55="Muy Baja",N55="Mayor"),AND(J55="Baja",N55="Mayor"),AND(J55="Media",N55="Mayor"),AND(J55="Alta",N55="Moderado"),AND(J55="Alta",N55="Mayor"),AND(J55="Muy Alta",N55="Leve"),AND(J55="Muy Alta",N55="Menor"),AND(J55="Muy Alta",N55="Moderado"),AND(J55="Muy Alta",N55="Mayor")),"Alto",IF(OR(AND(J55="Muy Baja",N55="Catastrófico"),AND(J55="Baja",N55="Catastrófico"),AND(J55="Media",N55="Catastrófico"),AND(J55="Alta",N55="Catastrófico"),AND(J55="Muy Alta",N55="Catastrófico")),"Extremo","")))) -> Moderado | Q55: 1 | R55: Registro de las solicitudes o requerimientos de entes de control en matriz de seguimiento para posterior notificación y remisión al grupo responsable de dar respuesta a través de correo electrónico y seguimiento periódico al estado de la solicitud o requerimiento. | S55: Profesional Asignado de la DEE Coordinadores Director (a) | T55: Actualizar la matriz de seguimiento y notificar a los responsables de contestar la solicitudes allegadas por los entes de control. Realizar seguimiento a los tiempos de vencimiento de los requerimientos. Reportar el estado de la atención de los requerimentos | U55: Matriz de seguimiento y alertas sobre el vencimiento de las solicitudes o requerimentos | V55: =IF(OR(W55="Preventivo",W55="Detectivo"),"Probabilidad",IF(W55="Correctivo","Impacto","")) -> Probabilidad | W55: Detectivo | X55: Manual | Y55: =IF(AND(W55="Preventivo",X55="Automático"),"50%",IF(AND(W55="Preventivo",X55="Manual"),"40%",IF(AND(W55="Detectivo",X55="Automático"),"40%",IF(AND(W55="Detectivo",X55="Manual"),"30%",IF(AND(W55="Correctivo",X55="Automático"),"35%",IF(AND(W55="Correctivo",X55="Manual"),"25%","")))))) -> 30% | Z55: Documentado | AA55: Continua | AB55: Con Registro | AC55: =IFERROR(IF(V55="Probabilidad",(K55-(+K55*Y55)),IF(V55="Impacto",K55,"")),"") -> 0.42 | AD55: =IFERROR(IF(AC55="","",IF(AC55<=0.2,"Muy Baja",IF(AC55<=0.4,"Baja",IF(AC55<=0.6,"Media",IF(AC55<=0.8,"Alta","Muy Alta"))))),"") -> Media | AE55: =+AC55 -> 0.42 | AF55: =IFERROR(IF(AG55="","",IF(AG55<=0.2,"Leve",IF(AG55<=0.4,"Menor",IF(AG55<=0.6,"Moderado",IF(AG55<=0.8,"Mayor","Catastrófico"))))),"") -> Moderado | AG55: =IFERROR(IF(V55="Impacto",(O55-(+O55*Y55)),IF(V55="Probabilidad",O55,"")),"") -> 0.6 | AH55: =IFERROR(IF(OR(AND(AD55="Muy Baja",AF55="Leve"),AND(AD55="Muy Baja",AF55="Menor"),AND(AD55="Baja",AF55="Leve")),"Bajo",IF(OR(AND(AD55="Muy baja",AF55="Moderado"),AND(AD55="Baja",AF55="Menor"),AND(AD55="Baja",AF55="Moderado"),AND(AD55="Media",AF55="Leve"),AND(AD55="Media",AF55="Menor"),AND(AD55="Media",AF55="Moderado"),AND(AD55="Alta",AF55="Leve"),AND(AD55="Alta",AF55="Menor")),"Moderado",IF(OR(AND(AD55="Muy Baja",AF55="Mayor"),AND(AD55="Baja",AF55="Mayor"),AND(AD55="Media",AF55="Mayor"),AND(AD55="Alta",AF55="Moderado"),AND(AD55="Alta",AF55="Mayor"),AND(AD55="Muy Alta",AF55="Leve"),AND(AD55="Muy Alta",AF55="Menor"),AND(AD55="Muy Alta",AF55="Moderado"),AND(AD55="Muy Alta",AF55="Mayor")),"Alto",IF(OR(AND(AD55="Muy Baja",AF55="Catastrófico"),AND(AD55="Baja",AF55="Catastrófico"),AND(AD55="Media",AF55="Catastrófico"),AND(AD55="Alta",AF55="Catastrófico"),AND(AD55="Muy Alta",AF55="Catastrófico")),"Extremo","")))),"") -> Moderado | AI55: Evitar | AJ55: Socializar al interior de la DEE las responsabilidades y lineamientos para dar respuesta oportuna a derechos de petición y peticiones de órganos de control | AK55: Profesional Juridico de la DEE | AL55: 2025-06-30 | AM55: 2025-07-30 | AN55: Contratista designado para reporte de riesgos | AO55: Dirección de Energía | AP55: Jefe de Oficina | AQ55: 2025-02-03 | AR55: 2025-12-31 | AS55: A cierre del primer trimestre de 2025 se realizó el registro y seguimiento de las solicitudes de entes de control evidenciándose 37 solicitudes de las cuales dos se respondieron fuera del tiempo establecido; una primera solicitud venció el 31 de marzo del 2025 y el radicado de salida se genero el 1 de abril del 2025, lo anterior por el tiempo y esfuerzo que se requirió en el análisis de la información para proyectar la respuesta correspondiente, adicionalmente por los tiempos para el tramite de validación y firma; la segunda solicitud venció el 1 de abril dando respuesta con los archivos compartidos en drive con la Oficina de Control Interno y con la Contraloría 01/04/2025, sin embargo el memorando remisorio quedó con fecha del 2 de abril. | AT55: No | AU55: Se evidencia que se dio respuesta según seguimiento fuera de los tiempos, se sugiere analizar si el riesgo queda como materializado dado que hay incumplimiento de los tiempos de respuesta
A56: 49 | B56: ENERGÍA | C56: Gestión | D56: =IF(C56="Fiscal",_xlfn.CONCAT("Posibilidad de efectos dañosos sobre bienes públicos "," por o para ",F56," debido a ",G56),IF(C56="Gestión",_xlfn.CONCAT("Posibilidad de afectacion ",E56," por ",F56," debido a ",G56),"")) -> Posibilidad de afectacion reputacional por aplicación indebida de los reglamentos técnicos por parte de los regulados debido a diversidad en la interpretación de los requisitos establecidos, dado que estos reglamentos son aplicados por diferentes sectores y partes interesadas | E56: reputacional | F56: aplicación indebida de los reglamentos técnicos por parte de los regulados | G56: diversidad en la interpretación de los requisitos establecidos, dado que estos reglamentos son aplicados por diferentes sectores y partes interesadas | H56: Ejecucion y Administracion de procesos | I56: 11 | J56: =IF(I56<=0,"",IF(I56<=2,"Muy Baja",IF(I56<=24,"Baja",IF(I56<=500,"Media",IF(I56<=5000,"Alta","Muy Alta"))))) -> Baja | K56: 0.4 | L56: El riesgo afecta la imagen de alguna área de la organización | M56: =IF(NOT(ISERROR(MATCH(L56,'[5]Tabla Impacto'!#REF!,0))),'[5]Tabla Impacto'!$F$229&"Por favor no seleccionar los criterios de impacto(Afectación Económica o presupuestal y Pérdida Reputacional)",L56) -> El riesgo afecta la imagen de alguna área de la organización | N56: =IF(OR(M56='[5]Tabla Impacto'!$C$11,M56='[5]Tabla Impacto'!$D$11),"Leve",IF(OR(M56='[5]Tabla Impacto'!$C$12,M56='[5]Tabla Impacto'!$D$12),"Menor",IF(OR(M56='[5]Tabla Impacto'!$C$13,M56='[5]Tabla Impacto'!$D$13),"Moderado",IF(OR(M56='[5]Tabla Impacto'!$C$14,M56='[5]Tabla Impacto'!$D$14),"Mayor",IF(OR(M56='[5]Tabla Impacto'!$C$15,M56='[5]Tabla Impacto'!$D$15),"Catastrófico",""))))) -> Leve | O56: 0.2 | P56: Bajo | Q56: 1 | R56: El Coordinador del Grupo de Reglamentos Técnicos o su delegado realiza validación de cumplimientos de las buenas prácticas reglamentarias establecidas por el Ministerio de Comercio industria y turismo y realizará reuniones, mesas de trabajo y divulgación de los reglamentos con los regulados del sector, para recibir retroalimentación sobre la normatividad vigente y así obtener insumos que sirvan para actualizar o modificar los reglamentos a demás de medir su impacto | S56: El Coordinador del Grupo de Reglamentos Técnicos o su delegado | T56: Validar el cumplimientos de las buenas prácticas reglamentarias establecidas por el Ministerio de Comercio industria y turismo y socializar a quien corresponda el resultado del análisis realizado a la información recibida por el sector | U56: Documentos soporte de las buenas prácticas reglamentarias. Informe anual con el analisis y compilación de la información aportada por el sector | V56: Probabilidad | W56: Detectivo | X56: Manual | Y56: 30% | Z56: Documentado | AA56: Continua | AB56: Con Registro | AC56: 0.28 | AD56: Baja | AE56: 0.28 | AF56: Leve | AG56: 0.2 | AH56: Bajo | AI56: Evitar | AJ56: Liderar reuniones, mesas de trabajo y divulgaciones de los reglamentos con los regulados del sector Evidencia: Listados de asistencia y actas de reunión | AK56: El Coordinador del Grupo de Reglamentos Técnicos o su delegado | AL56: 2025-12-31 | AM56: 2025-06-15 | AN56: Contratista designado para reporte de riesgos | AO56: Dirección de Energía | AP56: Jefe de Oficina | AQ56: 2025-02-03 | AR56: 2025-12-31 | AS56: En lo corrido de la vigencia 2025 no se evidencia materialización del riesgo, para el control y mitigación de este se informa que se han adelantado las siguientes actividades con el fin de divulgar los reglamentos y cumplir las etapas de buenas prácticas reglamentarias: En cuanto al RETIE: - se realizó una actividad de divulgación del 27 de marzo del 2025, a técnicos, tecnólogos, eléctricos y electromecánicos en la ciudad de Armenia a fin de socializar el RETIE. - Se obtuvo concepto favorable del DNP sobre la medición metodológica del AIN -SIMPLE, cumpliendo las etapas de buenas prácticas reglamentarias el 14 de marzo del 2025. En cuanto RETSIT - Se adelanto evento el 13 de marzo del 2025, en el cual se informó el estado actual del RETSIT a profesionales del sector de refrigeración y acondicionamiento del aire. En cuanto RETILAP - el 31 de marzo del 2025 se culminó la elaboración del AIN-SIMPLE y se envió a la Oficina Asesora Jurídica para revisión y publicación a comentarios. - el 11 de marzo se realizó capacitación a la Federación Colombiana de Municipios, en la que se socializaron temas relevantes sobre alumbrado público. En cuanto RETIQ - Se obtuvo concepto favorable del DNP sobre la medición metodológica del AIN -COMPLETO, cumpliendo las etapas de buenas prácticas reglamentarias el 07 de febrero del 2025. - El 19 de marzo del 2025 se finalizo el borrador del proyecto de actualización de reglamento y se envío a la OAJ para revisión y publicación a comentarios En cuanto al proyecto de inversión se adelanto el plan de trabajo en el cual se incluye el título de “grupos de valor”, por lo tanto, se incluyeron las actividades a ser gestionadas con los diferentes actores y/o interesados en los reglamentos. | AT56: No | AU56: Se evidencia la realización de diferentes socializaciones de los instrumentos sin embargo, no se da cuenta de lo analizado en reuniones de acuerdo con la evidencia: Documentos soporte de las buenas prácticas reglamentarias o la construcción parcial del informe anual con el análisis y compilación de la información aportada por el sector. Se requiere que para el próximo seguimiento se remita el avance del plan de trabajo
A57: 50 | B57: ENERGÍA | C57: Fiscal | D57: Posibilidad de efectos dañosos sobre bienes públicos por o para dificultad y/o retraso en la ejecución de los proyectos financiados con los Fondos FAER y FAZNI y PRONE, que darán acceso al servicio de energía eléctrica debido a Inadecuada supervisión y verificación del cumplimiento de las condiciones contractuales | E57: económico y reputacional | F57: dificultad y/o retraso en la ejecución de los proyectos financiados con los Fondos FAER y FAZNI y PRONE, que darán acceso al servicio de energía eléctrica | G57: Inadecuada supervisión y verificación del cumplimiento de las condiciones contractuales | H57: Ejecucion y Administracion de procesos | I57: 250 | J57: =IF(I57<=0,"",IF(I57<=2,"Muy Baja",IF(I57<=24,"Baja",IF(I57<=500,"Media",IF(I57<=5000,"Alta","Muy Alta"))))) -> Media | K57: =IF(J57="","",IF(J57="Muy Baja",0.2,IF(J57="Baja",0.4,IF(J57="Media",0.6,IF(J57="Alta",0.8,IF(J57="Muy Alta",1,)))))) -> 0.6 | L57: El riesgo afecta la imagen de la entidad con algunos usuarios de relevancia frente al logro de los objetivos | M57: =IF(NOT(ISERROR(MATCH(L57,'[5]Tabla Impacto'!#REF!,0))),'[5]Tabla Impacto'!$F$229&"Por favor no seleccionar los criterios de impacto(Afectación Económica o presupuestal y Pérdida Reputacional)",L57) -> El riesgo afecta la imagen de la entidad con algunos usuarios de relevancia frente al logro de los objetivos | N57: =IF(OR(M57='[5]Tabla Impacto'!$C$11,M57='[5]Tabla Impacto'!$D$11),"Leve",IF(OR(M57='[5]Tabla Impacto'!$C$12,M57='[5]Tabla Impacto'!$D$12),"Menor",IF(OR(M57='[5]Tabla Impacto'!$C$13,M57='[5]Tabla Impacto'!$D$13),"Moderado",IF(OR(M57='[5]Tabla Impacto'!$C$14,M57='[5]Tabla Impacto'!$D$14),"Mayor",IF(OR(M57='[5]Tabla Impacto'!$C$15,M57='[5]Tabla Impacto'!$D$15),"Catastrófico",""))))) -> Moderado | O57: =IF(N57="","",IF(N57="Leve",0.2,IF(N57="Menor",0.4,IF(N57="Moderado",0.6,IF(N57="Mayor",0.8,IF(N57="Catastrófico",1,)))))) -> 0.6 | P57: =IF(OR(AND(J57="Muy Baja",N57="Leve"),AND(J57="Muy Baja",N57="Menor"),AND(J57="Baja",N57="Leve")),"Bajo",IF(OR(AND(J57="Muy baja",N57="Moderado"),AND(J57="Baja",N57="Menor"),AND(J57="Baja",N57="Moderado"),AND(J57="Media",N57="Leve"),AND(J57="Media",N57="Menor"),AND(J57="Media",N57="Moderado"),AND(J57="Alta",N57="Leve"),AND(J57="Alta",N57="Menor")),"Moderado",IF(OR(AND(J57="Muy Baja",N57="Mayor"),AND(J57="Baja",N57="Mayor"),AND(J57="Media",N57="Mayor"),AND(J57="Alta",N57="Moderado"),AND(J57="Alta",N57="Mayor"),AND(J57="Muy Alta",N57="Leve"),AND(J57="Muy Alta",N57="Menor"),AND(J57="Muy Alta",N57="Moderado"),AND(J57="Muy Alta",N57="Mayor")),"Alto",IF(OR(AND(J57="Muy Baja",N57="Catastrófico"),AND(J57="Baja",N57="Catastrófico"),AND(J57="Media",N57="Catastrófico"),AND(J57="Alta",N57="Catastrófico"),AND(J57="Muy Alta",N57="Catastrófico")),"Extremo","")))) -> Moderado | Q57: 1 | R57: Los profesionales del Grupo de Supervisión de la Dirección de Energía Eléctrica aplican los controles descritos en la ultima versión del procedimiento "SP-23" donde se realizan revisiones cruzadas en las áreas técnica, jurídica, financiera y administrativa, lo cual se realizará a través de la matriz general de supervisión donde se evidencian todas las actuaciones hechas en virtud de la supervisión realizada. En caso de haber desviación del control se reporta al grupo de gestión contractual el posible incumplimiento para que se inicie el respectivo proceso. | S57: Profesionales del Grupo de Supervisión de la Dirección de Energía Eléctrica | T57: Realizar revisiones del avance y cumplimiento de las condiciones contractuales, desde los aspectos técnicos, jurídicos y financieros, en caso tal de alguna inconsistencia realizar el reporte de incumplimientos al Grupo de Gestión Contractual | U57: Matriz general de supervisión. Reportes o informes al grupo de gestión contractual | V57: =IF(OR(W57="Preventivo",W57="Detectivo"),"Probabilidad",IF(W57="Correctivo","Impacto","")) -> Probabilidad | W57: Detectivo | X57: Manual | Y57: =IF(AND(W57="Preventivo",X57="Automático"),"50%",IF(AND(W57="Preventivo",X57="Manual"),"40%",IF(AND(W57="Detectivo",X57="Automático"),"40%",IF(AND(W57="Detectivo",X57="Manual"),"30%",IF(AND(W57="Correctivo",X57="Automático"),"35%",IF(AND(W57="Correctivo",X57="Manual"),"25%","")))))) -> 30% | Z57: Documentado | AA57: Continua | AB57: Con Registro | AC57: =IFERROR(IF(V57="Probabilidad",(K57-(+K57*Y57)),IF(V57="Impacto",K57,"")),"") -> 0.42 | AD57: =IFERROR(IF(AC57="","",IF(AC57<=0.2,"Muy Baja",IF(AC57<=0.4,"Baja",IF(AC57<=0.6,"Media",IF(AC57<=0.8,"Alta","Muy Alta"))))),"") -> Media | AE57: =+AC57 -> 0.42 | AF57: =IFERROR(IF(AG57="","",IF(AG57<=0.2,"Leve",IF(AG57<=0.4,"Menor",IF(AG57<=0.6,"Moderado",IF(AG57<=0.8,"Mayor","Catastrófico"))))),"") -> Moderado | AG57: =IFERROR(IF(V57="Impacto",(O57-(+O57*Y57)),IF(V57="Probabilidad",O57,"")),"") -> 0.6 | AH57: =IFERROR(IF(OR(AND(AD57="Muy Baja",AF57="Leve"),AND(AD57="Muy Baja",AF57="Menor"),AND(AD57="Baja",AF57="Leve")),"Bajo",IF(OR(AND(AD57="Muy baja",AF57="Moderado"),AND(AD57="Baja",AF57="Menor"),AND(AD57="Baja",AF57="Moderado"),AND(AD57="Media",AF57="Leve"),AND(AD57="Media",AF57="Menor"),AND(AD57="Media",AF57="Moderado"),AND(AD57="Alta",AF57="Leve"),AND(AD57="Alta",AF57="Menor")),"Moderado",IF(OR(AND(AD57="Muy Baja",AF57="Mayor"),AND(AD57="Baja",AF57="Mayor"),AND(AD57="Media",AF57="Mayor"),AND(AD57="Alta",AF57="Moderado"),AND(AD57="Alta",AF57="Mayor"),AND(AD57="Muy Alta",AF57="Leve"),AND(AD57="Muy Alta",AF57="Menor"),AND(AD57="Muy Alta",AF57="Moderado"),AND(AD57="Muy Alta",AF57="Mayor")),"Alto",IF(OR(AND(AD57="Muy Baja",AF57="Catastrófico"),AND(AD57="Baja",AF57="Catastrófico"),AND(AD57="Media",AF57="Catastrófico"),AND(AD57="Alta",AF57="Catastrófico"),AND(AD57="Muy Alta",AF57="Catastrófico")),"Extremo","")))),"") -> Moderado | AI57: Evitar | AJ57: Realizar reuniones de seguimiento con el ejecutor | AK57: Apoyo a la supervisión | AL57: 2025-12-31 | AM57: 2025-12-31 | AN57: Contratista designado para reporte de riesgos | AO57: Dirección de Energía | AP57: Jefe de Oficina | AQ57: 2025-02-03 | AR57: 2025-12-31 | AS57: El Grupo de Supervisión de la DEE, realizó el seguimiento técnico, jurídico y financiero a los proyectos a cargo de la Dirección durante los meses de enero y marzo del 2025, así mismo realizó actualización de la matriz de seguimiento y se remitieron las correspondientes solicitudes de modificaciones contractuales evitando el vencimiento de actividades o etapas de los cronogramas de cada contrato. lo cual se puede evidenciar en el enlace: https://minenergiacol-my.sharepoint.com/:f:/g/personal/jcpuerto_minenergia_gov_co/El8fnDH239JGvpbGUMAG7kEBZ6rqAf98kCuBg9_UMKRgpA?e=Kbq9pm De manera periódica se llevaron a cabo reuniones de seguimiento con los ejecutores de los contratos a cargo de la DEE, como es el caso de la reunión del 26 de marzo del 2025, en la que se revisaron los contratos FAER y FAZNI suscritos con Electrohuila y reunión de seguimiento a contratos PRONE del 13 de marzo del 2025. | AT57: No | AU57: Se evidencia seguimiento realizado y soportes de modificaciones contractuales a aplicar según características contractuales
A58: 51 | B58: ENERGÍA | C58: Gestión | D58: =IF(C58="Fiscal",_xlfn.CONCAT("Posibilidad de efectos dañosos sobre bienes públicos "," por o para ",F58," debido a ",G58),IF(C58="Gestión",_xlfn.CONCAT("Posibilidad de afectacion ",E58," por ",F58," debido a ",G58),"")) -> Posibilidad de afectacion económico y reputacional por Incumplimiento de las metas del Gobierno Nacional en usuarios conectados con servicio de energía eléctrica. debido a Insuficiencia de proyectos con viabilidad técnica y financiera favorable, o la no aprobación de proyectos en comité. | E58: económico y reputacional | F58: Incumplimiento de las metas del Gobierno Nacional en usuarios conectados con servicio de energía eléctrica. | G58: Insuficiencia de proyectos con viabilidad técnica y financiera favorable, o la no aprobación de proyectos en comité. | H58: Ejecucion y Administracion de procesos | I58: 3 | J58: =IF(I58<=0,"",IF(I58<=2,"Muy Baja",IF(I58<=24,"Baja",IF(I58<=500,"Media",IF(I58<=5000,"Alta","Muy Alta"))))) -> Baja | K58: 0.4 | L58: El riesgo afecta la imagen de la entidad con algunos usuarios de relevancia frente al logro de los objetivos | M58: =IF(NOT(ISERROR(MATCH(L58,'[5]Tabla Impacto'!#REF!,0))),'[5]Tabla Impacto'!$F$229&"Por favor no seleccionar los criterios de impacto(Afectación Económica o presupuestal y Pérdida Reputacional)",L58) -> El riesgo afecta la imagen de la entidad con algunos usuarios de relevancia frente al logro de los objetivos | N58: =IF(OR(M58='[5]Tabla Impacto'!$C$11,M58='[5]Tabla Impacto'!$D$11),"Leve",IF(OR(M58='[5]Tabla Impacto'!$C$12,M58='[5]Tabla Impacto'!$D$12),"Menor",IF(OR(M58='[5]Tabla Impacto'!$C$13,M58='[5]Tabla Impacto'!$D$13),"Moderado",IF(OR(M58='[5]Tabla Impacto'!$C$14,M58='[5]Tabla Impacto'!$D$14),"Mayor",IF(OR(M58='[5]Tabla Impacto'!$C$15,M58='[5]Tabla Impacto'!$D$15),"Catastrófico",""))))) -> Moderado | O58: 0.6 | P58: Moderado | Q58: 1 | R58: Realizar mesas de trabajo con los entes territoriales, operadores de red y otros estructuradores, para divulgar las diferentes fuentes de financiación (FAER, FAZNI, OCAD Paz, entre otros); en caso de no contar con suficiencia de proyectos solicitar a la IPSE la presentación de proyectos | S58: Coordinador (a) Grupo de Fondos de Inversion y Gestión del Sector Electrico Colombiano o su delegado | T58: Divulgar las fuentes de financiación con los entes territoriales, operadores de red y otros estructuradores | U58: Actas de reuniones Oficios | V58: Probabilidad | W58: Detectivo | X58: Manual | Y58: 30% | Z58: Documentado | AA58: Continua | AB58: Con Registro | AC58: 0.28 | AD58: Baja | AE58: 0.28 | AF58: Moderado | AG58: 0.6 | AH58: Moderado | AI58: Reducir (mitigar) | AJ58: Mesas de trabajo con los entes territoriales, operadores de red y otros estructuradores, para divulgar las diferentes fuentes de financiación públicas, así como las acciones necesarias por parte de los operadores de red para la ampliación de la cobertura | AK58: Coordinadora Grupo de Gestión del Sector o su delegado | AL58: 2025-03-01 | AM58: 2025-03-31 | AN58: Contratista designado para reporte de riesgos | AO58: Dirección de Energía | AP58: Jefe de Oficina | AQ58: 2025-02-03 | AR58: 2025-12-31 | AS58: En el primer trimestre de la vigencia 2025, no se evidencia la materialización de este riesgo. Para la mitigación del mismo, se realizaron mesas técnicas con una entidad territorial y operadores de red con el objetivo de divulgar las diferentes fuentes de financiación que contribuyen a la ampliación de cobertura y mejoramiento del servicio de energía eléctrica así: • El 18 de febrero se realizó socialización de los fondos de apoyo a la energización y se emitieron lineamiento para la ejecución de los contratos suscritos con los operadores; dicho espacio fue liderado por el Ministerio y se logró la participación de los operadores de red: Enelar, Enerca, Gensa, Electrocaquetá, Electrohuila, Dispak y Enelar. • El 27 de febrero se realizó mesa técnica con la Alcaldía Municipal de Cartagena espacio en el que se socializaron las generalidades y aspectos a tener en cuenta en el proyecto de convocatoria PRONE No 001 del 2025; así mismo, se aprovechó este espacio para socializar el Plan Nacional de Electrificación Rural y sus diferentes fuentes y mecanismos de financiación (Fondos FAZNI, FAER, PRONE, etc.). | AT58: No | AU58: Se soporta la realización de dos mesas de trabajo a través de listas de asistencia, sin embargo, no se evidencia la divulgación de las fuentes de financiación
A59: 52 | B59: ENERGÍA | C59: Gestión | D59: Posibilidad de afectacion reputacional por incumplimiento en las metas relacionadas con nuevos usuarios de energía eléctrica derivado de la falta de seguimiento, desde el equipo técnico del Grupo de Regalías, debido a la no realización de mesas de trabajo o visitas técnicas suficientes, que permitan evidenciar el avance y terminación de los proyectos que se traducen en nuevos usuarios de energía eléctrica para su oportuno reporte en los diferentes instrumentos de seguimiento. | E59: reputacional | F59: incumplimiento en las metas relacionadas con nuevos usuarios de energía eléctrica derivado de la falta de seguimiento, desde el equipo técnico del Grupo de Regalías, | G59: la no realización de mesas de trabajo o visitas técnicas suficientes, que permitan evidenciar el avance y terminación de los proyectos que se traducen en nuevos usuarios de energía eléctrica para su oportuno reporte en los diferentes instrumentos de seguimiento. | H59: Usuarios, productos y practicas , organizacionales | I59: 200 | J59: Media | K59: 0.6 | L59: El riesgo afecta la imagen de la entidad a nivel nacional, con efecto publicitarios sostenible a nivel país | M59: =IF(NOT(ISERROR(MATCH(L59,'[5]Tabla Impacto'!#REF!,0))),'[5]Tabla Impacto'!$F$229&"Por favor no seleccionar los criterios de impacto(Afectación Económica o presupuestal y Pérdida Reputacional)",L59) -> El riesgo afecta la imagen de la entidad a nivel nacional, con efecto publicitarios sostenible a nivel país | N59: =IF(OR(M59='[5]Tabla Impacto'!$C$11,M59='[5]Tabla Impacto'!$D$11),"Leve",IF(OR(M59='[5]Tabla Impacto'!$C$12,M59='[5]Tabla Impacto'!$D$12),"Menor",IF(OR(M59='[5]Tabla Impacto'!$C$13,M59='[5]Tabla Impacto'!$D$13),"Moderado",IF(OR(M59='[5]Tabla Impacto'!$C$14,M59='[5]Tabla Impacto'!$D$14),"Mayor",IF(OR(M59='[5]Tabla Impacto'!$C$15,M59='[5]Tabla Impacto'!$D$15),"Catastrófico",""))))) -> Catastrófico | O59: 1 | P59: Extremo | Q59: 1 | R59: El equipo técnico del Grupo de Regalías, realizará el seguimiento que permita evidenciar el avance y terminación de los proyectos que se traducen en nuevos usuarios de energía eléctrica que contribuyan a las metas de la Entidad y el Gobierno nacional, a traves de mesas técnicas o visitas reflejadas en actas y listas de asistencia, fichas de seguimiento Grupo de Regalías, adicionalmente, este seguimiento se registrará en la matriz correspondiente con el fin de facilitar la consulta, control relacionados con la revisión de los proyectos y contribuirá a su oportuno reporte en los diferentes instrumentos de seguimiento. | S59: equipo técnico del Grupo de Regalías | T59: realizará el seguimiento que permita evidenciar el avance y terminación de los proyectos que se traducen en nuevos usuarios de energía eléctrica que contribuyan a las metas de la Entidad y el Gobierno nacional | U59: mesas técnicas o visitas reflejadas en actas y listas de asistencia, fichas de seguimiento Grupo de Regalías, adicionalmente, este seguimiento se registrará en la matriz correspondiente con el fin de facilitar la consulta, control relacionados con la revisión de los proyectos y contribuirá a su oportuno reporte en los diferentes instrumentos de seguimiento. | V59: Probabilidad | W59: Preventivo | X59: Manual | Y59: 40% | Z59: Sin Documentar | AA59: Continua | AB59: Con Registro | AC59: 0.36 | AD59: Baja | AE59: 0.36 | AF59: Catastrófico | AG59: 1 | AH59: Extremo | AI59: Evitar | AJ59: Documentar el control | AK59: Asesora | AL59: 2025-01-01 | AM59: Trimestral | AN59: Coordinador | AO59: Gupo de Regalías | AP59: Jefe de Grupo | AQ59: 2025-02-03 | AR59: 2025-12-31 | AS59: Durante el primer trimestre de 2025 no se materializó el riesgo, se aplicaron los controles establecidos, esto se evidencia teniendo en cuenta que durante este período se realizó el seguimiento al avance/terminación de 8 proyectos en ejecución que se traducen en 2.009 nuevos usuarios de energía eléctrica. Adicionalmente, se evidencian 3 nuevos proyectos de energía aprobados, los cuales se traducen en 100 nuevos usuarios de energía eléctrica, esto para un total de 2.109 de nuevos usuarios de energía eléctrica. Se anexa como evidencia una matriz con la relación de los proyectos objeto de seguimiento. | AT59: No | AU59: Se evidencia seguimiento realizado a proyectos con 2.109 usuarios nuevos
A60: 53 | B60: ENERGÍA | C60: Gestión | D60: Posibilidad de afectacion reputacional por demoras en la verificación de requisitos por parte del equipo técnico del Grupo de Regalías y en consecuencia el incumplimiento en los términos establecidos en la normativa vigente del SGR debido a al retraso en el envio de las comunicaciones correspondientes a las entidades adscritas al Ministerio, las cuales apoyan esta función (IPSE y UPME), entre otros. | E60: reputacional | F60: demoras en la verificación de requisitos por parte del equipo técnico del Grupo de Regalías y en consecuencia el incumplimiento en los términos establecidos en la normativa vigente del SGR | G60: al retraso en el envio de las comunicaciones correspondientes a las entidades adscritas al Ministerio, las cuales apoyan esta función (IPSE y UPME), entre otros. | H60: Usuarios, productos y practicas , organizacionales | I60: 180 | J60: =IF(I60<=0,"",IF(I60<=2,"Muy Baja",IF(I60<=24,"Baja",IF(I60<=500,"Media",IF(I60<=5000,"Alta","Muy Alta"))))) -> Media | K60: =IF(J60="","",IF(J60="Muy Baja",0.2,IF(J60="Baja",0.4,IF(J60="Media",0.6,IF(J60="Alta",0.8,IF(J60="Muy Alta",1,)))))) -> 0.6 | L60: El riesgo afecta la imagen de la entidad a nivel nacional, con efecto publicitarios sostenible a nivel país | M60: =IF(NOT(ISERROR(MATCH(L60,'[5]Tabla Impacto'!#REF!,0))),'[5]Tabla Impacto'!$F$229&"Por favor no seleccionar los criterios de impacto(Afectación Económica o presupuestal y Pérdida Reputacional)",L60) -> El riesgo afecta la imagen de la entidad a nivel nacional, con efecto publicitarios sostenible a nivel país | N60: =IF(OR(M60='[5]Tabla Impacto'!$C$11,M60='[5]Tabla Impacto'!$D$11),"Leve",IF(OR(M60='[5]Tabla Impacto'!$C$12,M60='[5]Tabla Impacto'!$D$12),"Menor",IF(OR(M60='[5]Tabla Impacto'!$C$13,M60='[5]Tabla Impacto'!$D$13),"Moderado",IF(OR(M60='[5]Tabla Impacto'!$C$14,M60='[5]Tabla Impacto'!$D$14),"Mayor",IF(OR(M60='[5]Tabla Impacto'!$C$15,M60='[5]Tabla Impacto'!$D$15),"Catastrófico",""))))) -> Catastrófico | O60: =IF(N60="","",IF(N60="Leve",0.2,IF(N60="Menor",0.4,IF(N60="Moderado",0.6,IF(N60="Mayor",0.8,IF(N60="Catastrófico",1,)))))) -> 1 | P60: =IF(OR(AND(J60="Muy Baja",N60="Leve"),AND(J60="Muy Baja",N60="Menor"),AND(J60="Baja",N60="Leve")),"Bajo",IF(OR(AND(J60="Muy baja",N60="Moderado"),AND(J60="Baja",N60="Menor"),AND(J60="Baja",N60="Moderado"),AND(J60="Media",N60="Leve"),AND(J60="Media",N60="Menor"),AND(J60="Media",N60="Moderado"),AND(J60="Alta",N60="Leve"),AND(J60="Alta",N60="Menor")),"Moderado",IF(OR(AND(J60="Muy Baja",N60="Mayor"),AND(J60="Baja",N60="Mayor"),AND(J60="Media",N60="Mayor"),AND(J60="Alta",N60="Moderado"),AND(J60="Alta",N60="Mayor"),AND(J60="Muy Alta",N60="Leve"),AND(J60="Muy Alta",N60="Menor"),AND(J60="Muy Alta",N60="Moderado"),AND(J60="Muy Alta",N60="Mayor")),"Alto",IF(OR(AND(J60="Muy Baja",N60="Catastrófico"),AND(J60="Baja",N60="Catastrófico"),AND(J60="Media",N60="Catastrófico"),AND(J60="Alta",N60="Catastrófico"),AND(J60="Muy Alta",N60="Catastrófico")),"Extremo","")))) -> Extremo | Q60: 1 | R60: El equipo técnico del Grupo de Regalías, realizará un estricto seguimiento a las solicitudes para la adecuada emisión de conceptosa traves del envío oportuno de comunicaciones a las entidades adscritas al Ministerio que apoyan esta función (IPSE y UPME). Adicionalmente se consolidará en una matriz de control el seguimiento en donde se evidencien las solicitudes de conceptos y los tiempos establecidos. | S60: equipo técnico del Grupo de Regalías | T60: realizará un estricto seguimiento a las solicitudes para la adecuada emisión de conceptos | U60: envío oportuno de comunicaciones a las entidades adscritas al Ministerio que apoyan esta función (IPSE y UPME). Adicionalmente se consolidará en una matriz de control el seguimiento en donde se evidencien las solicitudes de conceptos y los tiempos establecidos. | V60: =IF(OR(W60="Preventivo",W60="Detectivo"),"Probabilidad",IF(W60="Correctivo","Impacto","")) -> Probabilidad | W60: Preventivo | X60: Manual | Y60: =IF(AND(W60="Preventivo",X60="Automático"),"50%",IF(AND(W60="Preventivo",X60="Manual"),"40%",IF(AND(W60="Detectivo",X60="Automático"),"40%",IF(AND(W60="Detectivo",X60="Manual"),"30%",IF(AND(W60="Correctivo",X60="Automático"),"35%",IF(AND(W60="Correctivo",X60="Manual"),"25%","")))))) -> 40% | Z60: Sin Documentar | AA60: Continua | AB60: Con Registro | AC60: =IFERROR(IF(V60="Probabilidad",(K60-(+K60*Y60)),IF(V60="Impacto",K60,"")),"") -> 0.36 | AD60: =IFERROR(IF(AC60="","",IF(AC60<=0.2,"Muy Baja",IF(AC60<=0.4,"Baja",IF(AC60<=0.6,"Media",IF(AC60<=0.8,"Alta","Muy Alta"))))),"") -> Baja | AE60: =+AC60 -> 0.36 | AF60: =IFERROR(IF(AG60="","",IF(AG60<=0.2,"Leve",IF(AG60<=0.4,"Menor",IF(AG60<=0.6,"Moderado",IF(AG60<=0.8,"Mayor","Catastrófico"))))),"") -> Catastrófico | AG60: =IFERROR(IF(V60="Impacto",(O60-(+O60*Y60)),IF(V60="Probabilidad",O60,"")),"") -> 1 | AH60: =IFERROR(IF(OR(AND(AD60="Muy Baja",AF60="Leve"),AND(AD60="Muy Baja",AF60="Menor"),AND(AD60="Baja",AF60="Leve")),"Bajo",IF(OR(AND(AD60="Muy baja",AF60="Moderado"),AND(AD60="Baja",AF60="Menor"),AND(AD60="Baja",AF60="Moderado"),AND(AD60="Media",AF60="Leve"),AND(AD60="Media",AF60="Menor"),AND(AD60="Media",AF60="Moderado"),AND(AD60="Alta",AF60="Leve"),AND(AD60="Alta",AF60="Menor")),"Moderado",IF(OR(AND(AD60="Muy Baja",AF60="Mayor"),AND(AD60="Baja",AF60="Mayor"),AND(AD60="Media",AF60="Mayor"),AND(AD60="Alta",AF60="Moderado"),AND(AD60="Alta",AF60="Mayor"),AND(AD60="Muy Alta",AF60="Leve"),AND(AD60="Muy Alta",AF60="Menor"),AND(AD60="Muy Alta",AF60="Moderado"),AND(AD60="Muy Alta",AF60="Mayor")),"Alto",IF(OR(AND(AD60="Muy Baja",AF60="Catastrófico"),AND(AD60="Baja",AF60="Catastrófico"),AND(AD60="Media",AF60="Catastrófico"),AND(AD60="Alta",AF60="Catastrófico"),AND(AD60="Muy Alta",AF60="Catastrófico")),"Extremo","")))),"") -> Extremo | AI60: Evitar | AJ60: Documentar el control | AK60: Asesora | AL60: 2025-01-01 | AM60: Trimestral | AN60: Coordinador | AO60: Gupo de Regalías | AP60: Jefe de Grupo | AQ60: 2025-02-03 | AR60: 2025-12-31 | AS60: Durante el primer trimestre de 2025 no se materializó el riesgo, se aplicaron los controles establecidos, esto se evidencia teniendo en cuenta que durante este período se realizó el seguimiento a las 78 solicitudes de concepto técnico realizadas a la UPME e IPSE, así mismo se desarrollaron 14 mesas de trabajo para los proyectos en los que resultó necesario hacer algún tipo de aclaración. Se anexa como evidencia una matriz con la relación de los conceptos solicitados y las mesas realizadas. | AT60: No | AU60: Se evidencia seguimiento realizado en 78 solicitudes durante el primer trimestre, de estos 22 no tienen un estado dentro del cuadro de seguimiento (1 de enero, 1 de febrero y 20 de marzo)
A61: 54 | B61: ENERGÍA | C61: Gestión | D61: =IF(C61="Fiscal",_xlfn.CONCAT("Posibilidad de efectos dañosos sobre bienes públicos "," por o para ",F61," debido a ",G61),IF(C61="Gestión",_xlfn.CONCAT("Posibilidad de afectacion ",E61," por ",F61," debido a ",G61),"")) -> Posibilidad de afectacion reputacional por rezago en la ejecución de los conceptos de gasto de regalias que corresponden a los distribuidos y asignados por el Ministerio de Minas y Energía debido a la falta de acompañamiento, desde el equipo técnico del Grupo de Regalías, a las entidades beneficiarias de estos recursos debido a la no revisión del componente técnico de los proyectos o la insuficiente realización de mesas de trabajo que permitan promover la inversión de estos recursos en cumplimiento de los objetivos y fines del proyecto de inversión que corresponda. | E61: reputacional | F61: rezago en la ejecución de los conceptos de gasto de regalias que corresponden a los distribuidos y asignados por el Ministerio de Minas y Energía debido a la falta de acompañamiento, desde el equipo técnico del Grupo de Regalías, a las entidades beneficiarias de estos recursos | G61: la no revisión del componente técnico de los proyectos o la insuficiente realización de mesas de trabajo que permitan promover la inversión de estos recursos en cumplimiento de los objetivos y fines del proyecto de inversión que corresponda. | H61: Usuarios, productos y practicas , organizacionales | I61: 80 | J61: =IF(I61<=0,"",IF(I61<=2,"Muy Baja",IF(I61<=24,"Baja",IF(I61<=500,"Media",IF(I61<=5000,"Alta","Muy Alta"))))) -> Media | K61: =IF(J61="","",IF(J61="Muy Baja",0.2,IF(J61="Baja",0.4,IF(J61="Media",0.6,IF(J61="Alta",0.8,IF(J61="Muy Alta",1,)))))) -> 0.6 | L61: El riesgo afecta la imagen de la entidad a nivel nacional, con efecto publicitarios sostenible a nivel país | M61: =IF(NOT(ISERROR(MATCH(L61,'[5]Tabla Impacto'!#REF!,0))),'[5]Tabla Impacto'!$F$229&"Por favor no seleccionar los criterios de impacto(Afectación Económica o presupuestal y Pérdida Reputacional)",L61) -> El riesgo afecta la imagen de la entidad a nivel nacional, con efecto publicitarios sostenible a nivel país | N61: =IF(OR(M61='[5]Tabla Impacto'!$C$11,M61='[5]Tabla Impacto'!$D$11),"Leve",IF(OR(M61='[5]Tabla Impacto'!$C$12,M61='[5]Tabla Impacto'!$D$12),"Menor",IF(OR(M61='[5]Tabla Impacto'!$C$13,M61='[5]Tabla Impacto'!$D$13),"Moderado",IF(OR(M61='[5]Tabla Impacto'!$C$14,M61='[5]Tabla Impacto'!$D$14),"Mayor",IF(OR(M61='[5]Tabla Impacto'!$C$15,M61='[5]Tabla Impacto'!$D$15),"Catastrófico",""))))) -> Catastrófico | O61: =IF(N61="","",IF(N61="Leve",0.2,IF(N61="Menor",0.4,IF(N61="Moderado",0.6,IF(N61="Mayor",0.8,IF(N61="Catastrófico",1,)))))) -> 1 | P61: =IF(OR(AND(J61="Muy Baja",N61="Leve"),AND(J61="Muy Baja",N61="Menor"),AND(J61="Baja",N61="Leve")),"Bajo",IF(OR(AND(J61="Muy baja",N61="Moderado"),AND(J61="Baja",N61="Menor"),AND(J61="Baja",N61="Moderado"),AND(J61="Media",N61="Leve"),AND(J61="Media",N61="Menor"),AND(J61="Media",N61="Moderado"),AND(J61="Alta",N61="Leve"),AND(J61="Alta",N61="Menor")),"Moderado",IF(OR(AND(J61="Muy Baja",N61="Mayor"),AND(J61="Baja",N61="Mayor"),AND(J61="Media",N61="Mayor"),AND(J61="Alta",N61="Moderado"),AND(J61="Alta",N61="Mayor"),AND(J61="Muy Alta",N61="Leve"),AND(J61="Muy Alta",N61="Menor"),AND(J61="Muy Alta",N61="Moderado"),AND(J61="Muy Alta",N61="Mayor")),"Alto",IF(OR(AND(J61="Muy Baja",N61="Catastrófico"),AND(J61="Baja",N61="Catastrófico"),AND(J61="Media",N61="Catastrófico"),AND(J61="Alta",N61="Catastrófico"),AND(J61="Muy Alta",N61="Catastrófico")),"Extremo","")))) -> Extremo | Q61: 1 | R61: El equipo técnico del Grupo de Regalías, realizará el acompañamiento técnico a las entidades beneficiarias de los recursos de inversión distribuidos y asignados por el Ministerio de Minas y Energía, mediante la emisión de fichas de revisión del componente técnico de los proyectos y la realización de mesas tecnicas, asi mismo se registrarán los proyectos en la matriz de seguimiento dispuesta para tal fin. | S61: equipo técnico del Grupo de Regalías | T61: realizará el acompañamiento técnico a las entidades beneficiarias de los recursos de inversión distribuidos y asignados por el Ministerio de Minas y Energía | U61: la emisión de fichas de revisión del componente técnico de los proyectos y la realización de mesas tecnicas, asi mismo se registrarán los proyectos en la matriz de seguimiento dispuesta para tal fin. | V61: =IF(OR(W61="Preventivo",W61="Detectivo"),"Probabilidad",IF(W61="Correctivo","Impacto","")) -> Probabilidad | W61: Preventivo | X61: Manual | Y61: 40% | Z61: Sin Documentar | AA61: Continua | AB61: Con Registro | AC61: =IFERROR(IF(V61="Probabilidad",(K61-(+K61*Y61)),IF(V61="Impacto",K61,"")),"") -> 0.36 | AD61: =IFERROR(IF(AC61="","",IF(AC61<=0.2,"Muy Baja",IF(AC61<=0.4,"Baja",IF(AC61<=0.6,"Media",IF(AC61<=0.8,"Alta","Muy Alta"))))),"") -> Baja | AE61: =+AC61 -> 0.36 | AF61: =IFERROR(IF(AG61="","",IF(AG61<=0.2,"Leve",IF(AG61<=0.4,"Menor",IF(AG61<=0.6,"Moderado",IF(AG61<=0.8,"Mayor","Catastrófico"))))),"") -> Catastrófico | AG61: =IFERROR(IF(V61="Impacto",(O61-(+O61*Y61)),IF(V61="Probabilidad",O61,"")),"") -> 1 | AH61: =IFERROR(IF(OR(AND(AD61="Muy Baja",AF61="Leve"),AND(AD61="Muy Baja",AF61="Menor"),AND(AD61="Baja",AF61="Leve")),"Bajo",IF(OR(AND(AD61="Muy baja",AF61="Moderado"),AND(AD61="Baja",AF61="Menor"),AND(AD61="Baja",AF61="Moderado"),AND(AD61="Media",AF61="Leve"),AND(AD61="Media",AF61="Menor"),AND(AD61="Media",AF61="Moderado"),AND(AD61="Alta",AF61="Leve"),AND(AD61="Alta",AF61="Menor")),"Moderado",IF(OR(AND(AD61="Muy Baja",AF61="Mayor"),AND(AD61="Baja",AF61="Mayor"),AND(AD61="Media",AF61="Mayor"),AND(AD61="Alta",AF61="Moderado"),AND(AD61="Alta",AF61="Mayor"),AND(AD61="Muy Alta",AF61="Leve"),AND(AD61="Muy Alta",AF61="Menor"),AND(AD61="Muy Alta",AF61="Moderado"),AND(AD61="Muy Alta",AF61="Mayor")),"Alto",IF(OR(AND(AD61="Muy Baja",AF61="Catastrófico"),AND(AD61="Baja",AF61="Catastrófico"),AND(AD61="Media",AF61="Catastrófico"),AND(AD61="Alta",AF61="Catastrófico"),AND(AD61="Muy Alta",AF61="Catastrófico")),"Extremo","")))),"") -> Extremo | AI61: Evitar | AJ61: Documentar el control | AK61: Asesora | AL61: 2025-01-01 | AM61: Trimestral | AN61: Coordinador | AO61: Gupo de Regalías | AP61: Jefe de Grupo | AQ61: 2025-02-03 | AR61: 2025-12-31 | AU61: No se realizó seguimiento por parte de la primera línea
A62: 55 | B62: GESTIÓN CONTRACTUAL | C62: Gestión | D62: Posibilidad de afectacion económico y reputacional por demoras y reprocesos en los procesos de contratación debido a fallas e indisponibilidad en la platforma SECOP | E62: económico y reputacional | F62: demoras y reprocesos en los procesos de contratación | G62: fallas e indisponibilidad en la platforma SECOP | H62: Fallas Tecnologicas | I62: 1200 | J62: Alta | K62: 0.8 | L62: El riesgo afecta la imagen de la entidad con algunos usuarios de relevancia frente al logro de los objetivos | M62: =IF(NOT(ISERROR(MATCH(L62,'[5]Tabla Impacto'!#REF!,0))),'[5]Tabla Impacto'!$F$229&"Por favor no seleccionar los criterios de impacto(Afectación Económica o presupuestal y Pérdida Reputacional)",L62) -> El riesgo afecta la imagen de la entidad con algunos usuarios de relevancia frente al logro de los objetivos | N62: =IF(OR(M62='[5]Tabla Impacto'!$C$11,M62='[5]Tabla Impacto'!$D$11),"Leve",IF(OR(M62='[5]Tabla Impacto'!$C$12,M62='[5]Tabla Impacto'!$D$12),"Menor",IF(OR(M62='[5]Tabla Impacto'!$C$13,M62='[5]Tabla Impacto'!$D$13),"Moderado",IF(OR(M62='[5]Tabla Impacto'!$C$14,M62='[5]Tabla Impacto'!$D$14),"Mayor",IF(OR(M62='[5]Tabla Impacto'!$C$15,M62='[5]Tabla Impacto'!$D$15),"Catastrófico",""))))) -> Moderado | O62: 0.6 | P62: Alto | Q62: 1 | R62: El Coordinador Grupo de Gestión Contractual, a través del enlace designado, reporta fallas en la funcionalidad de la plataforma SECOP ante Colombia Compra Eficiente y aplica protocolos en caso de indisponibilidad de la plataforma SECOP y adelanta adendas en caso de requerirse | S62: Coordinador (a) Grupo de Gestión Contractual | T62: Reportar fallas en la plataforma SECOP, ante Colombia Compra Eficiente, aplicar protocolos en caso de indisponibilidad de la plataforma secop, adelantar adendas y guardar reporte de incidentes radicados | U62: Certificados de indisponibilidad general y particular, protocolos expedidos por Colombia compra eficiente y constancias de casos radicados en Colombia compra eficiente | V62: Impacto | W62: Correctivo | X62: Manual | Y62: =IF(AND(W62="Preventivo",X62="Automático"),"50%",IF(AND(W62="Preventivo",X62="Manual"),"40%",IF(AND(W62="Detectivo",X62="Automático"),"40%",IF(AND(W62="Detectivo",X62="Manual"),"30%",IF(AND(W62="Correctivo",X62="Automático"),"35%",IF(AND(W62="Correctivo",X62="Manual"),"25%","")))))) -> 25% | Z62: Sin Documentar | AA62: Aleatoria | AB62: Con Registro | AC62: 0.8 | AD62: Alta | AE62: 0.8 | AF62: Moderado | AG62: 0.45 | AH62: Alto | AI62: Evitar | AN62: Coordinador (a) Grupo de Gestión Contractual | AO62: Subdirección Administrativa y Financiera | AP62: Pablo César Pacheco Rodríguez | AQ62: 2025-03-03 | AR62: 2025-12-31 | AS62: Durante el primer trimestre de la vigencia 2025, se presentaron 4 radicados por fallas en secop, aplicando protocolo de indisponibilidad emitido por Colombia Compra Eficiente. Las fallas presentadas no afectaron la adjudicación de procesos de contratación, tampoco fue necesario realizar adendas. Se adjunta evidencia correspondiente a relación de casos registrados en SECOP y protocolo de indisponibilidad expedido por Colombia Compra Eficiente para la presente vigencia | AT62: No | AU62: Se evidencia registro de 4 soportes solicitados en SECOP y el protocolo aplicado en los casos en que se dio indisponibilidad definido por Colombia Compra Eficiente.
A63: 56 | B63: GESTIÓN FINANCIERA | C63: Gestión | D63: =IF(C63="Fiscal",_xlfn.CONCAT("Posibilidad de efectos dañosos sobre bienes públicos "," por o para ",F63," debido a ",G63),IF(C63="Gestión",_xlfn.CONCAT("Posibilidad de afectacion ",E63," por ",F63," debido a ",G63),"")) -> Posibilidad de afectacion económico por Reducción o no aprobación de los recursos PAC por parte del Ministerio de Hacienda y Crédito Público. debido a Falta de planeación y seguimiento a la ejecución de los recursos PAC programados por parte de las dependencias. | E63: económico | F63: Reducción o no aprobación de los recursos PAC por parte del Ministerio de Hacienda y Crédito Público. | G63: Falta de planeación y seguimiento a la ejecución de los recursos PAC programados por parte de las dependencias. | H63: Ejecucion y Administracion de procesos | I63: 12 | J63: =IF(I63<=0,"",IF(I63<=2,"Muy Baja",IF(I63<=24,"Baja",IF(I63<=500,"Media",IF(I63<=5000,"Alta","Muy Alta"))))) -> Baja | K63: =IF(J63="","",IF(J63="Muy Baja",0.2,IF(J63="Baja",0.4,IF(J63="Media",0.6,IF(J63="Alta",0.8,IF(J63="Muy Alta",1,)))))) -> 0.4 | L63: Mayor a 500 SMLMV | M63: =IF(NOT(ISERROR(MATCH(L63,'[5]Tabla Impacto'!#REF!,0))),'[5]Tabla Impacto'!$F$229&"Por favor no seleccionar los criterios de impacto(Afectación Económica o presupuestal y Pérdida Reputacional)",L63) -> Mayor a 500 SMLMV | N63: =IF(OR(M63='[5]Tabla Impacto'!$C$11,M63='[5]Tabla Impacto'!$D$11),"Leve",IF(OR(M63='[5]Tabla Impacto'!$C$12,M63='[5]Tabla Impacto'!$D$12),"Menor",IF(OR(M63='[5]Tabla Impacto'!$C$13,M63='[5]Tabla Impacto'!$D$13),"Moderado",IF(OR(M63='[5]Tabla Impacto'!$C$14,M63='[5]Tabla Impacto'!$D$14),"Mayor",IF(OR(M63='[5]Tabla Impacto'!$C$15,M63='[5]Tabla Impacto'!$D$15),"Catastrófico",""))))) -> Catastrófico | O63: =IF(N63="","",IF(N63="Leve",0.2,IF(N63="Menor",0.4,IF(N63="Moderado",0.6,IF(N63="Mayor",0.8,IF(N63="Catastrófico",1,)))))) -> 1 | P63: =IF(OR(AND(J63="Muy Baja",N63="Leve"),AND(J63="Muy Baja",N63="Menor"),AND(J63="Baja",N63="Leve")),"Bajo",IF(OR(AND(J63="Muy baja",N63="Moderado"),AND(J63="Baja",N63="Menor"),AND(J63="Baja",N63="Moderado"),AND(J63="Media",N63="Leve"),AND(J63="Media",N63="Menor"),AND(J63="Media",N63="Moderado"),AND(J63="Alta",N63="Leve"),AND(J63="Alta",N63="Menor")),"Moderado",IF(OR(AND(J63="Muy Baja",N63="Mayor"),AND(J63="Baja",N63="Mayor"),AND(J63="Media",N63="Mayor"),AND(J63="Alta",N63="Moderado"),AND(J63="Alta",N63="Mayor"),AND(J63="Muy Alta",N63="Leve"),AND(J63="Muy Alta",N63="Menor"),AND(J63="Muy Alta",N63="Moderado"),AND(J63="Muy Alta",N63="Mayor")),"Alto",IF(OR(AND(J63="Muy Baja",N63="Catastrófico"),AND(J63="Baja",N63="Catastrófico"),AND(J63="Media",N63="Catastrófico"),AND(J63="Alta",N63="Catastrófico"),AND(J63="Muy Alta",N63="Catastrófico")),"Extremo","")))) -> Extremo | Q63: 1 | R63: El profesional asignado del Grupo de Tesorería, realiza un seguimiento continuo a la ejecución de los recursos PAC solicitados mensualmente ante el Ministerio de Hacienda y Crédito Público, según la programación realizada por cada una de las dependencias del MME, con el fin de verificar que todas las obligaciones se causen y se paguen oportunamente. | S63: Profesional PAC Grupo de Tesorería | T63: Realizar control y seguimiento de la ejecución de los recursos PAC programados por cada una de las dependencias del MME, con el fin de evidenciar que los recursos asignados por parte del MHCP sean ejecutados por cada una de las dependencias del MME. | U63: Comunicaciones de seguimiento enviadas a cada una de las dependencias que presentan baja ejecución. | V63: =IF(OR(W63="Preventivo",W63="Detectivo"),"Probabilidad",IF(W63="Correctivo","Impacto","")) -> Probabilidad | W63: Preventivo | X63: Manual | Y63: 40% | Z63: Documentado | AA63: Continua | AB63: Con Registro | AC63: =IFERROR(IF(V63="Probabilidad",(K63-(+K63*Y63)),IF(V63="Impacto",K63,"")),"") -> 0.24 | AD63: =IFERROR(IF(AC63="","",IF(AC63<=0.2,"Muy Baja",IF(AC63<=0.4,"Baja",IF(AC63<=0.6,"Media",IF(AC63<=0.8,"Alta","Muy Alta"))))),"") -> Baja | AE63: =+AC63 -> 0.24 | AF63: =IFERROR(IF(AG63="","",IF(AG63<=0.2,"Leve",IF(AG63<=0.4,"Menor",IF(AG63<=0.6,"Moderado",IF(AG63<=0.8,"Mayor","Catastrófico"))))),"") -> Catastrófico | AG63: =IFERROR(IF(V63="Impacto",(O63-(+O63*Y63)),IF(V63="Probabilidad",O63,"")),"") -> 1 | AH63: =IFERROR(IF(OR(AND(AD63="Muy Baja",AF63="Leve"),AND(AD63="Muy Baja",AF63="Menor"),AND(AD63="Baja",AF63="Leve")),"Bajo",IF(OR(AND(AD63="Muy baja",AF63="Moderado"),AND(AD63="Baja",AF63="Menor"),AND(AD63="Baja",AF63="Moderado"),AND(AD63="Media",AF63="Leve"),AND(AD63="Media",AF63="Menor"),AND(AD63="Media",AF63="Moderado"),AND(AD63="Alta",AF63="Leve"),AND(AD63="Alta",AF63="Menor")),"Moderado",IF(OR(AND(AD63="Muy Baja",AF63="Mayor"),AND(AD63="Baja",AF63="Mayor"),AND(AD63="Media",AF63="Mayor"),AND(AD63="Alta",AF63="Moderado"),AND(AD63="Alta",AF63="Mayor"),AND(AD63="Muy Alta",AF63="Leve"),AND(AD63="Muy Alta",AF63="Menor"),AND(AD63="Muy Alta",AF63="Moderado"),AND(AD63="Muy Alta",AF63="Mayor")),"Alto",IF(OR(AND(AD63="Muy Baja",AF63="Catastrófico"),AND(AD63="Baja",AF63="Catastrófico"),AND(AD63="Media",AF63="Catastrófico"),AND(AD63="Alta",AF63="Catastrófico"),AND(AD63="Muy Alta",AF63="Catastrófico")),"Extremo","")))),"") -> Extremo | AI63: Evitar | AN63: Profesional Especializado | AO63: Subdirección Administrativa y Financiera Grupo de Tesorería | AP63: Pablo César Pacheco Rodríguez | AQ63: 2025-01-01 | AR63: 2025-12-31 | AS63: Durante el 1er Trimestre de 2025, se realizaron mensualmente de manera oportuna, las solicitudes de PAC Ordinario y Extraordinario. En consecuencia el Ministerio de Minas y Energía tuvo una ejecución de PAC del 99,33% que equivale a $60.679,871.451,98 millones con respecto a un PAC Asignado de $61.709,804.836,84 millones. Para los meses de enero, febrero y marzo fueron del 99.84%, 95.24% y 99,52% respectivamente, lo que evidencia que el Ministerio de Minas y Energía, ha cumplido oportunamente con el pago de sus obligaciones. Así mismo, debido a la excelente ejecución de PAC por parte del Ministerio de Minas y Energía, el Ministerio de Hacienda tendrá en consideración continuar aprobando los recursos solicitados para el año 2025. | AT63: No | AU63: No hay evidencia del soporte de la ejecución del control
A64: 57 | B64: GESTIÓN FINANCIERA | C64: Gestión | D64: =IF(C64="Fiscal",_xlfn.CONCAT("Posibilidad de efectos dañosos sobre bienes públicos "," por o para ",F64," debido a ",G64),IF(C64="Gestión",_xlfn.CONCAT("Posibilidad de afectacion ",E64," por ",F64," debido a ",G64),"")) -> Posibilidad de afectacion económico y reputacional por Incumplimiento en el pago de las obligaciones adquiridas con terceros. debido a No cumplimiento parcial o total de los Requisitos establecidos para el trámite de pago. | E64: económico y reputacional | F64: Incumplimiento en el pago de las obligaciones adquiridas con terceros. | G64: No cumplimiento parcial o total de los Requisitos establecidos para el trámite de pago. | H64: Ejecucion y Administracion de procesos | I64: 360 | J64: Media | K64: 0.6 | L64: Mayor a 500 SMLMV | M64: =IF(NOT(ISERROR(MATCH(L64,'[5]Tabla Impacto'!#REF!,0))),'[5]Tabla Impacto'!$F$229&"Por favor no seleccionar los criterios de impacto(Afectación Económica o presupuestal y Pérdida Reputacional)",L64) -> Mayor a 500 SMLMV | N64: =IF(OR(M64='[5]Tabla Impacto'!$C$11,M64='[5]Tabla Impacto'!$D$11),"Leve",IF(OR(M64='[5]Tabla Impacto'!$C$12,M64='[5]Tabla Impacto'!$D$12),"Menor",IF(OR(M64='[5]Tabla Impacto'!$C$13,M64='[5]Tabla Impacto'!$D$13),"Moderado",IF(OR(M64='[5]Tabla Impacto'!$C$14,M64='[5]Tabla Impacto'!$D$14),"Mayor",IF(OR(M64='[5]Tabla Impacto'!$C$15,M64='[5]Tabla Impacto'!$D$15),"Catastrófico",""))))) -> Catastrófico | O64: 1 | P64: Extremo | Q64: 1 | R64: El Profesional del Grupo de Tesorería, revisa el cumplimiento de los requisitos necesarios para cada tipo de pago y una vez cumplido los mismos, se realiza la orden de pago en el aplicativo SIIF Nación y/o SPGR según corresponda, posteriormente a los dos días hábiles siguientes, confirmamos que la orden de pago se encuentre en estado Pagada. | S64: Profesional Grupo de Tesorería | T64: Verificar las consistencias de los requisitos presentados en las cuentas, lo anterior con el fin de identificar el estado de los posibles ajustes que se hayan adelantado en el flujo de las cuentas en el sistema Neón. | U64: Reporte de rechazos generado del sistema Neón. | V64: Probabilidad | W64: Preventivo | X64: Manual | Y64: =IF(AND(W64="Preventivo",X64="Automático"),"50%",IF(AND(W64="Preventivo",X64="Manual"),"40%",IF(AND(W64="Detectivo",X64="Automático"),"40%",IF(AND(W64="Detectivo",X64="Manual"),"30%",IF(AND(W64="Correctivo",X64="Automático"),"35%",IF(AND(W64="Correctivo",X64="Manual"),"25%","")))))) -> 40% | Z64: Documentado | AA64: Continua | AB64: Con Registro | AC64: 0.36 | AD64: Baja | AE64: 0.36 | AF64: Catastrófico | AG64: 1 | AH64: Extremo | AI64: Evitar | AN64: Profesional | AO64: Subdirección Administrativa y Financiera Grupo de Tesorería | AP64: Pablo César Pacheco Rodríguez | AQ64: 2025-01-01 | AR64: 2025-12-31 | AS64: En el 1er Trimestre de 2025, se pago el 71,13% de las cuentas que fueron rechazadas por inconsistencias en requisitos presentados en las cuentas. La ejecución de pagos para los meses de enero, febrero y marzo fue del 100%, 86.67% y 57.14% respectivamente, lo que evidencia que el Ministerio de Minas y Energía ha cumplido oportunamente con el pago de sus obligaciones. | AT64: No | AU64: No hay evidencia del soporte de la ejecución del control
A65: 58 | B65: GESTIÓN FINANCIERA | C65: Gestión | D65: =IF(C65="Fiscal",_xlfn.CONCAT("Posibilidad de efectos dañosos sobre bienes públicos "," por o para ",F65," debido a ",G65),IF(C65="Gestión",_xlfn.CONCAT("Posibilidad de afectacion ",E65," por ",F65," debido a ",G65),"")) -> Posibilidad de afectacion económico por reducción o aplazamiento de las partidas asignadas en el presupuesto del ministerio por baja ejecución del presupuesto asignado, según las metas establecidas en los Acuerdos de Gestión debido a falta de cumplimiento oportuno y falta de planeación así como ausencia de medidas correctivas por parte de las dependencias | E65: económico | F65: reducción o aplazamiento de las partidas asignadas en el presupuesto del ministerio por baja ejecución del presupuesto asignado, según las metas establecidas en los Acuerdos de Gestión | G65: falta de cumplimiento oportuno y falta de planeación así como ausencia de medidas correctivas por parte de las dependencias | H65: Ejecucion y Administracion de procesos | I65: 12 | J65: =IF(I65<=0,"",IF(I65<=2,"Muy Baja",IF(I65<=24,"Baja",IF(I65<=500,"Media",IF(I65<=5000,"Alta","Muy Alta"))))) -> Baja | K65: =IF(J65="","",IF(J65="Muy Baja",0.2,IF(J65="Baja",0.4,IF(J65="Media",0.6,IF(J65="Alta",0.8,IF(J65="Muy Alta",1,)))))) -> 0.4 | L65: Mayor a 500 SMLMV | M65: =IF(NOT(ISERROR(MATCH(L65,'[5]Tabla Impacto'!#REF!,0))),'[5]Tabla Impacto'!$F$229&"Por favor no seleccionar los criterios de impacto(Afectación Económica o presupuestal y Pérdida Reputacional)",L65) -> Mayor a 500 SMLMV | N65: =IF(OR(M65='[5]Tabla Impacto'!$C$11,M65='[5]Tabla Impacto'!$D$11),"Leve",IF(OR(M65='[5]Tabla Impacto'!$C$12,M65='[5]Tabla Impacto'!$D$12),"Menor",IF(OR(M65='[5]Tabla Impacto'!$C$13,M65='[5]Tabla Impacto'!$D$13),"Moderado",IF(OR(M65='[5]Tabla Impacto'!$C$14,M65='[5]Tabla Impacto'!$D$14),"Mayor",IF(OR(M65='[5]Tabla Impacto'!$C$15,M65='[5]Tabla Impacto'!$D$15),"Catastrófico",""))))) -> Catastrófico | O65: =IF(N65="","",IF(N65="Leve",0.2,IF(N65="Menor",0.4,IF(N65="Moderado",0.6,IF(N65="Mayor",0.8,IF(N65="Catastrófico",1,)))))) -> 1 | P65: =IF(OR(AND(J65="Muy Baja",N65="Leve"),AND(J65="Muy Baja",N65="Menor"),AND(J65="Baja",N65="Leve")),"Bajo",IF(OR(AND(J65="Muy baja",N65="Moderado"),AND(J65="Baja",N65="Menor"),AND(J65="Baja",N65="Moderado"),AND(J65="Media",N65="Leve"),AND(J65="Media",N65="Menor"),AND(J65="Media",N65="Moderado"),AND(J65="Alta",N65="Leve"),AND(J65="Alta",N65="Menor")),"Moderado",IF(OR(AND(J65="Muy Baja",N65="Mayor"),AND(J65="Baja",N65="Mayor"),AND(J65="Media",N65="Mayor"),AND(J65="Alta",N65="Moderado"),AND(J65="Alta",N65="Mayor"),AND(J65="Muy Alta",N65="Leve"),AND(J65="Muy Alta",N65="Menor"),AND(J65="Muy Alta",N65="Moderado"),AND(J65="Muy Alta",N65="Mayor")),"Alto",IF(OR(AND(J65="Muy Baja",N65="Catastrófico"),AND(J65="Baja",N65="Catastrófico"),AND(J65="Media",N65="Catastrófico"),AND(J65="Alta",N65="Catastrófico"),AND(J65="Muy Alta",N65="Catastrófico")),"Extremo","")))) -> Extremo | Q65: 1 | R65: El profesional del Grupo de Presupuesto realiza un seguimiento continuo a la ejecución presupuestal de la entidad y mediante comunicaciones dirigidas a cada una de las dependencias remite el informe periodico del estado de su ejecución, con el fin de identificar y evidenciar los recursos pendientes por ejecutar. Para el cumplimiento de los acuerdos de gestión, se implementan controles como el monitoreo mensual de ejecución, informes trimestrales y la priorización de áreas específicas para reuniones de análisis. En estas reuniones se definen acciones correctivas para alinear la ejecución con lo programado y se realiza un seguimiento continuo a las áreas priorizadas, conforme a lo establecido en el Procedimiento T-GF-P-17 | S65: Profesional del Grupo de Presupuesto | T65: Realizar un seguimiento oportuno a la ejecución presupuestal de la entidad para identificar las disponibilidades emitidas pendientes por comprometer, los saldos de registros presupuestales sin ejecución y los saldos de reservas presupuestales. Se priorizarán los recursos de funcionamiento y los proyectos de inversión con baja ejecución, con el objetivo de coordinar con las dependencias las acciones necesarias y establecer un cronograma para el cumplimiento de las metas definidas en los Acuerdos de Gestión | U65: Informe de Seguimiento Informe de Gestión Financiera Informe de Gastos Informe de Reserva Presupuestal Memorandos de Seguimiento Reuniones de Seguimiento Alertas de ejecución Informe Ejecutivo para la alta dirección | V65: =IF(OR(W65="Preventivo",W65="Detectivo"),"Probabilidad",IF(W65="Correctivo","Impacto","")) -> Impacto | W65: Correctivo | X65: Manual | Y65: 25% | Z65: Documentado | AA65: Continua | AB65: Con Registro | AC65: =IFERROR(IF(V65="Probabilidad",(K65-(+K65*Y65)),IF(V65="Impacto",K65,"")),"") -> 0.4 | AD65: =IFERROR(IF(AC65="","",IF(AC65<=0.2,"Muy Baja",IF(AC65<=0.4,"Baja",IF(AC65<=0.6,"Media",IF(AC65<=0.8,"Alta","Muy Alta"))))),"") -> Baja | AE65: =+AC65 -> 0.4 | AF65: =IFERROR(IF(AG65="","",IF(AG65<=0.2,"Leve",IF(AG65<=0.4,"Menor",IF(AG65<=0.6,"Moderado",IF(AG65<=0.8,"Mayor","Catastrófico"))))),"") -> Mayor | AG65: =IFERROR(IF(V65="Impacto",(O65-(+O65*Y65)),IF(V65="Probabilidad",O65,"")),"") -> 0.75 | AH65: =IFERROR(IF(OR(AND(AD65="Muy Baja",AF65="Leve"),AND(AD65="Muy Baja",AF65="Menor"),AND(AD65="Baja",AF65="Leve")),"Bajo",IF(OR(AND(AD65="Muy baja",AF65="Moderado"),AND(AD65="Baja",AF65="Menor"),AND(AD65="Baja",AF65="Moderado"),AND(AD65="Media",AF65="Leve"),AND(AD65="Media",AF65="Menor"),AND(AD65="Media",AF65="Moderado"),AND(AD65="Alta",AF65="Leve"),AND(AD65="Alta",AF65="Menor")),"Moderado",IF(OR(AND(AD65="Muy Baja",AF65="Mayor"),AND(AD65="Baja",AF65="Mayor"),AND(AD65="Media",AF65="Mayor"),AND(AD65="Alta",AF65="Moderado"),AND(AD65="Alta",AF65="Mayor"),AND(AD65="Muy Alta",AF65="Leve"),AND(AD65="Muy Alta",AF65="Menor"),AND(AD65="Muy Alta",AF65="Moderado"),AND(AD65="Muy Alta",AF65="Mayor")),"Alto",IF(OR(AND(AD65="Muy Baja",AF65="Catastrófico"),AND(AD65="Baja",AF65="Catastrófico"),AND(AD65="Media",AF65="Catastrófico"),AND(AD65="Alta",AF65="Catastrófico"),AND(AD65="Muy Alta",AF65="Catastrófico")),"Extremo","")))),"") -> Alto | AI65: Evitar | AN65: Coordinador Grupo Presupuesto | AO65: Subdirección Administrativa y Financiera Grupo Presupuesto | AP65: Pablo César Pacheco Rodríguez | AQ65: 2025-02-21 | AR65: 2025-12-31 | AU65: No se realizó reporte
A66: 59 | B66: GESTIÓN FINANCIERA | C66: Gestión | D66: Posibilidad de afectacion reputacional por Procesos disciplinarios y sanciones de los entes de control e imposibilidad de tomar decisiones a tiempo y confiables debido a entrega inoportuna de la información contable y financiera, solicitada por las entidades de control acorde con las fechas establecidas | E66: reputacional | F66: Procesos disciplinarios y sanciones de los entes de control e imposibilidad de tomar decisiones a tiempo y confiables | G66: entrega inoportuna de la información contable y financiera, solicitada por las entidades de control acorde con las fechas establecidas | H66: Ejecucion y Administracion de procesos | I66: 24 | J66: Baja | K66: 0.4 | L66: El riesgo afecta la imagen de de la entidad con efecto publicitario sostenido a nivel de sector administrativo, nivel departamental o municipal | M66: =IF(NOT(ISERROR(MATCH(L66,'[5]Tabla Impacto'!#REF!,0))),'[5]Tabla Impacto'!$F$229&"Por favor no seleccionar los criterios de impacto(Afectación Económica o presupuestal y Pérdida Reputacional)",L66) -> El riesgo afecta la imagen de de la entidad con efecto publicitario sostenido a nivel de sector administrativo, nivel departamental o municipal | N66: =IF(OR(M66='[5]Tabla Impacto'!$C$11,M66='[5]Tabla Impacto'!$D$11),"Leve",IF(OR(M66='[5]Tabla Impacto'!$C$12,M66='[5]Tabla Impacto'!$D$12),"Menor",IF(OR(M66='[5]Tabla Impacto'!$C$13,M66='[5]Tabla Impacto'!$D$13),"Moderado",IF(OR(M66='[5]Tabla Impacto'!$C$14,M66='[5]Tabla Impacto'!$D$14),"Mayor",IF(OR(M66='[5]Tabla Impacto'!$C$15,M66='[5]Tabla Impacto'!$D$15),"Catastrófico",""))))) -> Mayor | O66: 0.8 | P66: Alto | Q66: 1 | R66: El Profesional Especializado del Grupo de Gestion Financiera y Contable que de acuerdo con la fecha de entrega de la información financiera que establece por la Contaduría General de la Nación, y realiza el envió con debida antelación de comunicación de oficios internos y externos solicitando la información contable para ser incluida en los estados financieros del MME, revisa y valida la remisión de la información y los seguimientos sobre las entidades que no realizaron el reporte. | S66: Profesional Especializado del Grupo de Gestion Financiera y Contable | T66: De acuerdo con la fecha de entrega de la información financiera establecida por la Contaduría General de la Nación, se envía con la debida antelación cartas internas y externas de solicitud de la información contable para ser incluida en los estados financieros del MME. Una vez cumplidos los términos se valida la remisión de la información y se efectúa seguimientos obre las entidades que no realizaron el reporte para su envió. | U66: Comunicaciones internas y externas de solicitud de información. | V66: Probabilidad | W66: Preventivo | X66: Manual | Y66: =IF(AND(W66="Preventivo",X66="Automático"),"50%",IF(AND(W66="Preventivo",X66="Manual"),"40%",IF(AND(W66="Detectivo",X66="Automático"),"40%",IF(AND(W66="Detectivo",X66="Manual"),"30%",IF(AND(W66="Correctivo",X66="Automático"),"35%",IF(AND(W66="Correctivo",X66="Manual"),"25%","")))))) -> 40% | Z66: Documentado | AA66: Continua | AB66: Con Registro | AC66: 0.24 | AD66: Baja | AE66: 0.24 | AF66: Mayor | AG66: 0.8 | AH66: Alto | AI66: Evitar | AN66: Profesional Especializado | AO66: Subdirección Administrativa y Financiera Grupo de Gestión Financiera y Contable | AP66: Pablo César Pacheco Rodríguez | AQ66: 2025-03-01 | AR66: 2025-12-31 | AS66: El Profesional Especializado del Grupo de Gestión Financiera y Contable encargado de esta función, y de acuerdo al cronograma de envíos establecido por la Contaduría General de la Nación, realiza el envío de la información financiera y contable a través del aplicativo CHIP . | AT66: No | AU66: Se verifica el envío de 10 formularios a través del aplicativo CHIP, del periodo de diciembre; se sugiere que para el próximo reporte se deje la carta de solicitud de la información que establece el control
A67: 60 | B67: GESTIÓN FINANCIERA | C67: Gestión | D67: =IF(C67="Fiscal",_xlfn.CONCAT("Posibilidad de efectos dañosos sobre bienes públicos "," por o para ",F67," debido a ",G67),IF(C67="Gestión",_xlfn.CONCAT("Posibilidad de afectacion ",E67," por ",F67," debido a ",G67),"")) -> Posibilidad de afectacion económico y reputacional por irregularidades o deficiencias en la gestión fiscal de la entidad y sanciones disciplinarias. debido a No fenecimiento de la cuenta por la inobservancia e inaplicabilidad de las dinámicas del Plan General de Contabilidad Publica o aplicación de manera parcial o errónea de las normas o instrucciones dadas por la CGN y otras entidades | E67: económico y reputacional | F67: irregularidades o deficiencias en la gestión fiscal de la entidad y sanciones disciplinarias. | G67: No fenecimiento de la cuenta por la inobservancia e inaplicabilidad de las dinámicas del Plan General de Contabilidad Publica o aplicación de manera parcial o errónea de las normas o instrucciones dadas por la CGN y otras entidades | H67: Ejecucion y Administracion de procesos | I67: 1 | J67: =IF(I67<=0,"",IF(I67<=2,"Muy Baja",IF(I67<=24,"Baja",IF(I67<=500,"Media",IF(I67<=5000,"Alta","Muy Alta"))))) -> Muy Baja | K67: =IF(J67="","",IF(J67="Muy Baja",0.2,IF(J67="Baja",0.4,IF(J67="Media",0.6,IF(J67="Alta",0.8,IF(J67="Muy Alta",1,)))))) -> 0.2 | L67: El riesgo afecta la imagen de la entidad a nivel nacional, con efecto publicitarios sostenible a nivel país | M67: =IF(NOT(ISERROR(MATCH(L67,'[5]Tabla Impacto'!#REF!,0))),'[5]Tabla Impacto'!$F$229&"Por favor no seleccionar los criterios de impacto(Afectación Económica o presupuestal y Pérdida Reputacional)",L67) -> El riesgo afecta la imagen de la entidad a nivel nacional, con efecto publicitarios sostenible a nivel país | N67: =IF(OR(M67='[5]Tabla Impacto'!$C$11,M67='[5]Tabla Impacto'!$D$11),"Leve",IF(OR(M67='[5]Tabla Impacto'!$C$12,M67='[5]Tabla Impacto'!$D$12),"Menor",IF(OR(M67='[5]Tabla Impacto'!$C$13,M67='[5]Tabla Impacto'!$D$13),"Moderado",IF(OR(M67='[5]Tabla Impacto'!$C$14,M67='[5]Tabla Impacto'!$D$14),"Mayor",IF(OR(M67='[5]Tabla Impacto'!$C$15,M67='[5]Tabla Impacto'!$D$15),"Catastrófico",""))))) -> Catastrófico | O67: =IF(N67="","",IF(N67="Leve",0.2,IF(N67="Menor",0.4,IF(N67="Moderado",0.6,IF(N67="Mayor",0.8,IF(N67="Catastrófico",1,)))))) -> 1 | P67: =IF(OR(AND(J67="Muy Baja",N67="Leve"),AND(J67="Muy Baja",N67="Menor"),AND(J67="Baja",N67="Leve")),"Bajo",IF(OR(AND(J67="Muy baja",N67="Moderado"),AND(J67="Baja",N67="Menor"),AND(J67="Baja",N67="Moderado"),AND(J67="Media",N67="Leve"),AND(J67="Media",N67="Menor"),AND(J67="Media",N67="Moderado"),AND(J67="Alta",N67="Leve"),AND(J67="Alta",N67="Menor")),"Moderado",IF(OR(AND(J67="Muy Baja",N67="Mayor"),AND(J67="Baja",N67="Mayor"),AND(J67="Media",N67="Mayor"),AND(J67="Alta",N67="Moderado"),AND(J67="Alta",N67="Mayor"),AND(J67="Muy Alta",N67="Leve"),AND(J67="Muy Alta",N67="Menor"),AND(J67="Muy Alta",N67="Moderado"),AND(J67="Muy Alta",N67="Mayor")),"Alto",IF(OR(AND(J67="Muy Baja",N67="Catastrófico"),AND(J67="Baja",N67="Catastrófico"),AND(J67="Media",N67="Catastrófico"),AND(J67="Alta",N67="Catastrófico"),AND(J67="Muy Alta",N67="Catastrófico")),"Extremo","")))) -> Extremo | Q67: 1 | R67: El Profesional Especializado del Grupo de Gestion Financiera y Contable que realiza el análisis de partidas inusuales y saldos negativos con periodicidad trimestral de las cuentas del Balance del MME , de acuerdo a la asignación establecida y con el fin de evitar registros que nos correspondan a las cuentas, en caso de encontrar inconsistencias se efectúa el comprobante de corrección correspondiente del ajuste. | S67: Profesional Especializado del Grupo de Gestion Financiera y Contable | T67: Analizar de manera trimestral las cuentas del Balance del MME, de acuerdo a la distribución establecida, con el fin de evitar registros que no correspondan a estas cuentas. En caso de encontrar inconsistencias se efectúa el comprobante de corrección correspondiente | U67: Cuentas analizadas detectando partidas inusuales y saldos negativos en las cuentas del balance General del MME | V67: =IF(OR(W67="Preventivo",W67="Detectivo"),"Probabilidad",IF(W67="Correctivo","Impacto","")) -> Probabilidad | W67: Preventivo | X67: Manual | Y67: 40% | Z67: Documentado | AA67: Continua | AB67: Con Registro | AC67: =IFERROR(IF(V67="Probabilidad",(K67-(+K67*Y67)),IF(V67="Impacto",K67,"")),"") -> 0.12 | AD67: =IFERROR(IF(AC67="","",IF(AC67<=0.2,"Muy Baja",IF(AC67<=0.4,"Baja",IF(AC67<=0.6,"Media",IF(AC67<=0.8,"Alta","Muy Alta"))))),"") -> Muy Baja | AE67: =+AC67 -> 0.12 | AF67: =IFERROR(IF(AG67="","",IF(AG67<=0.2,"Leve",IF(AG67<=0.4,"Menor",IF(AG67<=0.6,"Moderado",IF(AG67<=0.8,"Mayor","Catastrófico"))))),"") -> Catastrófico | AG67: =IFERROR(IF(V67="Impacto",(O67-(+O67*Y67)),IF(V67="Probabilidad",O67,"")),"") -> 1 | AH67: =IFERROR(IF(OR(AND(AD67="Muy Baja",AF67="Leve"),AND(AD67="Muy Baja",AF67="Menor"),AND(AD67="Baja",AF67="Leve")),"Bajo",IF(OR(AND(AD67="Muy baja",AF67="Moderado"),AND(AD67="Baja",AF67="Menor"),AND(AD67="Baja",AF67="Moderado"),AND(AD67="Media",AF67="Leve"),AND(AD67="Media",AF67="Menor"),AND(AD67="Media",AF67="Moderado"),AND(AD67="Alta",AF67="Leve"),AND(AD67="Alta",AF67="Menor")),"Moderado",IF(OR(AND(AD67="Muy Baja",AF67="Mayor"),AND(AD67="Baja",AF67="Mayor"),AND(AD67="Media",AF67="Mayor"),AND(AD67="Alta",AF67="Moderado"),AND(AD67="Alta",AF67="Mayor"),AND(AD67="Muy Alta",AF67="Leve"),AND(AD67="Muy Alta",AF67="Menor"),AND(AD67="Muy Alta",AF67="Moderado"),AND(AD67="Muy Alta",AF67="Mayor")),"Alto",IF(OR(AND(AD67="Muy Baja",AF67="Catastrófico"),AND(AD67="Baja",AF67="Catastrófico"),AND(AD67="Media",AF67="Catastrófico"),AND(AD67="Alta",AF67="Catastrófico"),AND(AD67="Muy Alta",AF67="Catastrófico")),"Extremo","")))),"") -> Extremo | AI67: Evitar | AN67: Profesional Especializado | AO67: Subdirección Administrativa y Financiera Grupo de Gestión Financiera y Contable | AP67: Pablo César Pacheco Rodríguez | AQ67: 2025-03-01 | AR67: 2025-12-31 | AS67: El Grupo de Gestión financiera y contable realiza el análisis de partidas inusuales y saldos negativos de las cuentas del Balance del MME , de acuerdo con la asignación establecida, con el fin de evitar registros que nos correspondan a la naturaleza de las cuentas, teniendo en cuenta la dinámica establecida en Plan General de Contabilidad Pública emitido por la Contaduría General de la Nación. En caso de encontrar inconsistencias se efectúa el comprobante de corrección correspondiente del ajuste. | AT67: No | AU67: Se requiere que se evidencie el análisis realizado a las cuentas del Balance del periodo, dado que se evidencia las cuentas realizadas
